Workbook

Sheet Base
A1: CENTRO ESPECIALIZADO EN DIÁLISIS PERITONEAL | R1: EM | S1: Equipo Medico | W1: Condición
A2: GRUPO 00 | B2: GRUPO 01 | C2: GRUPO 03 | D2: GRUPO 03 | E2: ESPACIO | F2: TIPO INFRAESTRUCTURA | G2: Cant | H2: ANEXO | I2: Obs | J2: TIPO | K2: EQUIPAMIENTO | L2: Cant * Esp | M2: TIPO EQUIP | N2: ANEXO | O2: TIPO | P2: Obs
A3: ADMINISTRATIVO | B3: ADMISIÓN Y ESTADÍSTICA | C3: Área Técnica | D3: AMBIENTES | E3: Admisión, Información y Recepción | F3: AMBIENTE | G3: 1 | I3: Para construcciones nuevas deseable 6 m2 | J3: Requerido | K3: Mostrador / escritorio/Mesa de despacho | L3: 1 | M3: MG | N3: EQ_01
K4: Armario/Archivador | L4: 1 | M4: MG | P4: Puede estar incorporado en el Mostrador/escritorio o Mesa de despacho lo que se requiere es que tengan donde almacenar documentos temporalmente
K5: Computador completo (Portátil o de escritorio) | L5: 1 | M5: EG | N5: EQ_02
K6: Basurero | L6: 1 | M6: MG | P6: Recipiente para desechos comunes
K7: Silla | L7: 1 | M7: MG
K8: Tablero de avisos | L8: 1 | M8: MG | P8: Puede ser remplazado cuando hay acceso directo al sistema audiovisual de la sala de espera de consulta externa
K9: Teléfono | L9: 1 | M9: EG
E10: Archivo | F10: AMBIENTE | G10: 1 | I10: Para construcciones nuevas calcular según la demanda (cantidad y tipo de elementos a archivar) | J10: Requerido | K10: Estantería | L10: 1 | M10: MG
K11: Armario/Archivador | L11: 1 | M11: MG
K12: Escalera pata de gallo / Gradilla | L12: 1 | M12: MG | O12: Condición | P12: Si es que tiene estanterías altas que no sean accesibles al operador/funcionario/usuario
K13: Escritorio/ Mesa de despacho | L13: 1 | M13: MG | N13: EQ_01 | O13: Condición | P13: Se activará cuando el servicio posea otra zona administrativa responsable del manejo exclusivo del archivo
K14: Computador completo (Portátil o de Escritorio) | L14: 1 | M14: EG | N14: EQ_02 | O14: Condición
K15: Silla | L15: 1 | M15: MG | O15: Condición
K16: Basurero | L16: 1 | M16: MG | P16: Recipiente para desechos comunes
K17: Extintor de incendios portátil | L17: 1 | M17: EG | P17: Se verificará según la normativa y que este accesible para este ambiente aunque este compartido con otro
D18: INSTALACIONES | E18: Estructura General | F18: INSTALACIÓN | G18: 1 | H18: EG_01 | J18: Requerido
E19: Instalaciones Generales | F19: INSTALACIÓN | G19: 1 | H19: IG_01 | J19: Requerido
A20: ASISTENCIAL | B20: CONSULTA EXTERNA | C20: Área de Atención de Consulta | D20: AMBIENTES | E20: Sala de Espera | F20: AMBIENTE | G20: 1 | I20: Para construcciones nuevas deseable, 1 familiar por paciente y 1 paciente por puesto de diálisis, 1m2 por persona | J20: Requerido | K20: Banca/sillas | L20: 2 | M20: MG | P20: Mínimo contar con 6 puestos para la sala de espera (bancas en tándem o sillas o sillones)
K21: Basurero | L21: 1 | M21: MG | P21: Recipiente para desechos comunes
K22: Reloj de pared | L22: 1 | M22: MG
K23: Extintor de incendios portátil | L23: 1 | M23: EG | P23: El mismo que cubrirá toda el servicio de consulta externa / Se verificará según la normativa y que este accesible para este ambiente aunque este compartido con otro
K24: Sistema Audiovisual de Información | L24: 1 | M24: EG | N24: EQ_03
E25: Baños/Baterías Sanitarias | F25: AMBIENTE | G25: 1 | I25: Para construcciones nuevas deseable 4m2 | J25: Requerido | K25: Inodoro | L25: 1 | M25: MG
K26: Dispensador de papel higiénico | M26: MG
K27: Lavabo | L27: 1 | M27: MG
K28: Dispensador de jabón | L28: 1 | M28: MG
K29: Dispensador de papel toalla | L29: 1 | M29: MG | P29: Se justifica si cuenta con secador de manos
K30: Espejo empotrado | L30: 1 | M30: MG
K31: Barras de apoyo | L31: 1 | M31: MG | O31: Deseable
K32: Gancho doble | L32: 1 | M32: MG
K33: Basurero | L33: 2 | M33: MG | P33: Recipiente para desechos comunes e infecciosos. Se justifica recipiente de desechos comunes si cuenta con secador de manos
E34: Enfermería (Se vuelve requerido en el caso de contar con más de 5 consultorios para profesionales médicos) | F34: AMBIENTE | G34: 1 | I34: Para construcciones nuevas deseable 16m2 | J34: Condición | K34: Escritorio/Mesa de despacho | L34: 1 | M34: MG | N34: EQ_01
K35: Computador completo (Portátil o de Escritorio) | L35: 1 | M35: EG | N35: EQ_02
K36: Armario/Vitrina/Archivador | L36: 1 | M36: MG
K37: Báscula + tallímetro | L37: 1 | M37: EM
K38: Cinta métrica | L38: 1 | M38: EM
K39: Set de recipientes para el manejo de desechos peligrosos y no peligrosos | L39: 1 | M39: MG | N39: EQ_07
K40: Camilla de exploración | L40: 1 | M40: MM | O40: Condición
K41: Escabel | L41: 1 | M41: MG | O41: Condición | P41: Requerido en el caso de contar con camila de exploración y esta no sea regulable hasta un altura mínima de 50 cm desde el piso
K42: Coche de curaciones | L42: 1 | M42: MM | N42: EQ_08
K43: Lámpara examen rodable | L43: 1 | M43: EM
K44: Mesa auxiliar | L44: 1 | M44: MM
K45: Dispensador de papel toalla | L45: 1 | M45: MG
K46: Dispensador de jabón | L46: 1 | M46: MG
K47: Lavabo | L47: 1 | M47: MG
K48: Estetoscopio para adultos | L48: 1 | M48: EM
K49: Tensiómetro para adultos | L49: 1 | M49: EM
K50: Tensiómetro pediátrico | L50: 1 | M50: EM | O50: Condición | P50: Se justifica cuando el tensiómetro para adultos cuenta con brazaletes para tallas pediátricas / Será requerido en el caso de ofertar prestación pediátrica
K51: Estetoscopio pediátrico | L51: 1 | M51: EM | O51: Condición | P51: Será requerido en el caso de ofertar prestación pediátrica
K52: Termómetro | L52: 1 | M52: EM | P52: Deseable que sea digital
K53: Silla confidente | L53: 1 | M53: MG
K54: Silla | L54: 1 | M54: MG
E55: Consultorio Médico | F55: AMBIENTE | G55: 1 | I55: Para construcciones nuevas deseable 16m2 | J55: Requerido | K55: Escritorio/Mesa de despacho | L55: 1 | M55: MG | N55: EQ_01
K56: Computador completo (portátil o de escritorio) | L56: 1 | M56: EG | N56: EQ_02
K57: Armario/Archivador/Vitrina | L57: 1 | M57: MG
K58: Báscula + tallímetro | L58: 1 | M58: EM | P58: Se justifica si el servicio cuenta con enfermería
K59: Camilla de exploración | L59: 1 | M59: MG
K60: Escabel | L60: 1 | M60: MG | P60: Se justifica si la camilla de exploración es regulable hasta un altura mínima de 50 cm desde el piso
K61: Set de diagnóstico | L61: 1 | M61: EM | N61: EQ_10
K62: Coche de curaciones | L62: 1 | M62: MG | N62: EQ_09 | O62: Condición | P62: Será requerido en el caso de no contar con este en enfermermería
K63: Dispensador de papel toalla | L63: 1 | M63: MG
K64: Dispensador de jabón | L64: 1 | M64: MG
K65: Lavabo | L65: 1 | M65: EG
K66: Tensiómetro para adultos | L66: 1 | M66: EM
K67: Estetoscopio para adultos | L67: 1 | M67: EM
K68: Tensiómetro pediátrico | L68: 1 | M68: EM | O68: Condición | P68: Se justifica cuando el tensiómetro para adultos cuenta con brazaletes para tallas pediátricas / Será requerido en el caso de ofertar prestación pediátrica
K69: Estetoscopio pediátrico | L69: 1 | M69: EM | O69: Condición | P69: Será requerido en el caso de ofertar prestación pediátrica
K70: Termómetro | L70: 1 | M70: EM | P70: Deseable que sea digital
K71: Negatoscopio | L71: 1 | M71: EM
K72: Lámpara de examen rodable | L72: 1 | M72: MM
K73: Set de recipientes para el manejo de desechos peligrosos y no peligrosos | L73: 1 | M73: MG | N73: EQ_07
K74: Silla confidente | L74: 2 | M74: MG
K75: Silla | L75: 1 | M75: MG
E76: Consultorio de Psicología (Puede compartir con la Oficina de Trabajo Social y el Consultorio de Nutrición, pero debe asegurarse la privacidad del paciente mediante horarios diferenciados en cada prestación) | F76: AMBIENTE | G76: 1 | I76: Para construcciones nuevas deseable 12m2 | J76: Requerido | K76: Escritorio/Mesa de despacho | L76: 1 | M76: MG | N76: EQ_01
K77: Computador completo (Portátil o de escritorio) | L77: 1 | M77: EM | N77: EQ_02
K78: Armario/Vitrina/Archivador | L78: 1 | M78: MG
K79: Basurero | L79: 1 | M79: MG | P79: Recipiente para desechos comunes
K80: Dispensador para solución hidroalcohólica | L80: 1 | M80: MG
K81: Silla confidente | L81: 2 | M81: MG
K82: Silla | L82: 1 | M82: MG
E83: Consultorio de Nutrición (Puede compartir con la Oficina de Trabajo Social y el Consultorio de Psicología, pero debe asegurarse la privacidad del paciente mediante horarios diferenciados en cada prestación) | F83: AMBIENTE | G83: 1 | I83: Para construcciones nuevas deseable 12m2 | J83: Requerido | K83: Escritorio/Mesa de despacho | L83: 1 | M83: MG | N83: EQ_01
K84: Computador completo (Portátil o de escritorio) | L84: 1 | M84: EG | N84: EQ_02
K85: Armario/Vitrina/Archivador | L85: 1 | M85: MG
K86: Plicómetro | L86: 1 | M86: EM | O86: Condición
K87: Cinta métrica | L87: 1 | M87: EM
K88: Báscula + tallimetro | L88: 1 | M88: EM
K89: Silla confidente | L89: 2 | M89: MG
K90: Silla | L90: 1 | M90: MG
K91: Basurero | L91: 1 | M91: MG | P91: Recipiente para desechos comunes
K92: Dispensador para solución hidroalcohólica | L92: 1 | M92: MG
D93: INSTALACIONES | E93: Estructura General | F93: INSTALACIÓN | G93: 1 | H93: EG_01 | J93: Requerido
E94: Instalaciones Generales | F94: INSTALACIÓN | G94: 1 | H94: IG_01 | J94: Requerido
A95: APOYO TERAPÉUTICO | B95: ATENCIÓN DE APOYO TERAPÉUTICO | C95: Área de Procedimientos | D95: AMBIENTES | E95: Área de Lavado de Manos | F95: AMBIENTE | G95: 1 | J95: Condición | K95: Lavabo | L95: 1 | M95: MG
K96: Dispensador de jabón | L96: 1 | M96: MG
K97: Dispensador de papel toalla | L97: 1 | M97: MG
K98: Basurero | L98: 1 | M98: MG | P98: Recipiente para desechos comunes
E99: Sala de procedimientos (Debe existir acuerdo con un establecimiento que cuente con atención en centro quirúrgico para inserción de catéteres peritoneales, en caso de no haber convenio se hará requerido) | F99: AMBIENTE | G99: 1 | I99: Para construcciones nuevas deseable 16m2 | J99: Condición | K99: Camilla de exploración/Mesa de operaciones | L99: 1 | M99: MM | P99: Será requerido una mesa de operaciones si se realiza inserción de catéteres
K100: Porta sueros | L100: 1 | M100: EM
K101: Tensiómetro para adultos | L101: 1 | M101: EM
K102: Estetoscopio para adultos | L102: 1 | M102: EM
K103: Tensiómetro pediátrico | L103: 1 | M103: EM | O103: Condición | P103: Se justifica cuando el tensiómetro para adultos cuenta con brazaletes para tallas pediátricas / Será requerido en el caso de ofertar prestación pediátrica
K104: Estetoscopio pediátrico | L104: 1 | M104: EM | O104: Condición | P104: Será requerido en el caso de ofertar prestación pediátrica
K105: Coche de paro completo y reanimación | L105: 1 | M105: EM | N105: EQ_09 | O105: Condición | P105: Será requerido en el caso de que realice inserción de catéteres/Se justifica si hay acceso directo a la sala de recambio
K106: Desfibrilador | L106: 1 | M106: EM | O106: Condición | P106: Será requerido en el caso de que realice inserción de catéteres/Se justifica si hay acceso directo a la sala de recambio
K107: Electrocardiógrafo | L107: 1 | M107: EM | O107: Condición | P107: Será requerido en el caso de que realice inserción de catéteres/Se justifica si hay acceso directo a la sala de recambio
K108: Equipo de oxígeno portátil | L108: 1 | M108: EM | O108: Condición | P108: Será requerido en el caso de que realice inserción de catéteres/Se justifica si hay acceso directo a la sala de recambio
K109: Lámpara quirúrgica básica cielítica portátil o fija/Lámpara de examen rodable | L109: 1 | M109: MM | P109: Será requerida la lámpara quirúrgica si se realiza inserción de catéteres
K110: Monitor de parámetros vitales | L110: 1 | M110: EM | O110: Condición | P110: Será requerido en el caso de que realice inserción de catéteres
K111: Silla/taburete giratorio | L111: 1 | M111: MG
K112: Coche de curaciones | L112: 1 | M112: EM | N112: EQ_08
K113: Mesa mayo | L113: 1 | M113: MM
K114: Equipo de cirugía general - cirugía mayor | L114: 1 | M114: EM | N114: EQ_30 | O114: Condición | P114: Será requerido en el caso de que realice inserción de catéteres
K115: Mesa para instrumental | L115: 1 | M115: MM | O115: Condición | P115: Será requerido en el caso de que realice inserción de catéteres
K116: Soporte bajo rodado, una cubeta acero inoxidable | L116: 1 | M116: MG | O116: Condición | P116: Será requerido en el caso de que realice inserción de catéteres
K117: Set de recipientes para el manejo de desechos peligrosos y no peligrosos | L117: 1 | M117: MG | N117: EQ_07
K118: Flujómetro para O2 con humidificador | L118: 1 | M118: MG | O118: Condición | P118: Será requerido en el caso de que realice inserción de catéteres
E119: Zona de esterilización (Se convierte en Requerido si existe la Sala de Procedimientos. Puede seguir como condición en el caso de tener externalizado el servicio de esterilización) | F119: AMBIENTE | G119: 1 | I119: - | J119: Condición | K119: Esterilizador a vapor / calor seco | L119: 1 | M119: EM
K120: Dispensador de papel toalla | L120: 1 | M120: MG
K121: Dispensador de jabón | L121: 1 | M121: MG
K122: Basurero | L122: 1 | M122: MG | P122: Recipiente para desechos comunes
K123: Mesón con fregadero | L123: 1 | M123: MG
D124: INSTALACIONES | E124: Estructura General | F124: INSTALACIÓN | G124: 1 | H124: DIA_EG_01 | J124: Condición
E125: Instalaciones Generales | F125: INSTALACIÓN | G125: 1 | H125: DIA_IG_01 | J125: Condición
C126: Área de Soporte y Suministros (Esta área funcional debe estar centralizada y no debe estar en contacto con las áreas de diálisis peritoneal) | D126: AMBIENTES | E126: Cuarto de limpieza | F126: AMBIENTE | G126: 1 | I126: Para construcciones nuevas deseable 2m2 | J126: Requerido | K126: Coche de limpieza | L126: 1 | M126: MG
K127: Stock de Insumos de Limpieza | L127: 1 | M127: EG | N127: EQ_05
K128: Estantería | L128: 1 | M128: MG
K129: Lavadero con poza profunda para el preparado y enjuague de los útiles de limpieza | L129: 1 | M129: MG
E130: Almacenamiento intermedio o temporal de desechos (Será requerido en los establecimientos cuya generación supere los 65 Kg/día de desechos sanitarios y si se realiza la colocación de catéteres) | F130: AMBIENTE | G130: 1 | I130: Para construcciones nuevas deseable 4m2 | J130: Condición | K130: Set de recipientes para el manejo de desechos peligrosos y no peligrosos | L130: 1 | M130: MG | N130: EQ_07
E131: Lencería (Será requerido en el caso de contar con lencería que deba ser esterilizada) | F131: AMBIENTE | G131: 1 | I131: Para construcciones nuevas 4m2 | J131: Condición | K131: Estantería | L131: 1 | M131: MG
K132: Coche de ropa limpia | L132: 1 | M132: MG
D133: INSTALACIONES | E133: Estructura General | F133: INSTALACIÓN | G133: 1 | H133: EG_01 | J133: Requerido
E134: Instalaciones Generales | F134: INSTALACIÓN | G134: 1 | H134: IG_01 | J134: Requerido
C135: Área de Diálisis Peritoneal | D135: AMBIENTES | E135: Sala de entrenamiento | F135: AMBIENTE | G135: 1 | I135: Para construcciones nuevas deseable 20m2 | J135: Requerido | K135: Silla | L135: 2 | M135: MG
K136: Coche de curaciones | L136: 1 | M136: MM | N136: EQ_08
K137: Mesa auxiliar para equipos | L137: 1 | M137: MG
K138: Camilla/Sillón reclinable | L138: 1 | M138: MM | O138: Condición
K139: Mesón con doble Lavabo | L139: 1 | M139: MG
K140: Porta sueros | L140: 1 | M140: EM
K141: Máquina Cicladora | L141: 2 | M141: EM | P141: Una máquina es de reserva
K142: Set de recipientes para el manejo de desechos peligrosos y no peligrosos | L142: 1 | M142: MG | N142: EQ_07
K143: Sistema Audiovisual de Información | L143: 1 | M143: EG | N143: EQ_03
E144: Área de recambios | F144: AMBIENTE | G144: 1 | I144: Para construcciones nuevas deseable 8m2 | J144: Requerido | K144: Camilla/Sillón Reclinable | L144: 1 | M144: MG
K145: Silla | L145: 1 | M145: MG
K146: Porta sueros | L146: 1 | M146: EM
K147: Set de recipientes para el manejo de desechos peligrosos y no peligrosos | L147: 1 | M147: MG | N147: EQ_07
K148: Máquina Cicladora | L148: 1 | M148: EM
K149: Coche de paro completo y reanimación | L149: 1 | M149: EM | N149: EQ_09
K150: Desfibrilador | L150: 1 | M150: EM
K151: Electrocardiógrafo | L151: 1 | M151: EM
K152: Equipo de oxígeno portátil | L152: 1 | M152: EM
K153: Mesa auxiliar para equipos | L153: 1 | M153: MG
D154: INSTALACIONES | E154: Estructura General | F154: INSTALACIÓN | G154: 1 | H154: EG_01 | J154: Requerido
E155: Instalaciones Generales | F155: INSTALACIÓN | G155: 1 | H155: IG_01 | J155: Requerido
C156: Área Técnica de Apoyo | D156: AMBIENTES | E156: Limpio | F156: AMBIENTE | G156: 1 | I156: Para construcciones nuevas deseable 6m2 | J156: Requerido | K156: Mesón con lavabo | L156: 1 | M156: MG
K157: Dispensador de papel toalla | L157: 1 | M157: MG
K158: Dispensador de jabón | L158: 1 | M158: MG
K159: Armario/Vitrina | L159: 1 | M159: MG
K160: Basurero | L160: 1 | M160: MG | P160: Recipiente para desechos comunes
E161: Usado | F161: AMBIENTE | G161: 1 | I161: Para construcciones nuevas deseable 6m2 | J161: Requerido | K161: Estantería | L161: 1 | M161: MG
K162: Basurero | L162: 1 | M162: MG | P162: Recipientes para desechos comunes
K163: Fregadero | L163: 1 | M163: MG
D164: INSTALACIONES | E164: Estructura General | F164: INSTALACIÓN | G164: 1 | H164: EG_01 | J164: Requerido
E165: Instalaciones Generales | F165: INSTALACIÓN | G165: 1 | H165: IG_01 | J165: Requerido
C166: Área para los Usuarios | D166: AMBIENTES | E166: Repostería | F166: AMBIENTE | G166: 1 | I166: Para construcciones nuevas deseable 12m2 ó dimensionar 1m2 por paciente y por puesto | J166: Condición | K166: Lavabo | L166: 1 | M166: MG | P166: Se justifica si tiene acceso directo a un lavabo
K167: Dispensador de papel toalla | L167: 1 | M167: MG | P167: Se justifica si tiene acceso directo a un lavabo
K168: Dispensador de jabón | L168: 1 | M168: MG | P168: Se justifica si tiene acceso directo a un lavabo
K169: Basurero | L169: 1 | M169: EG | P169: Recipiente para desechos comunes
K170: Mesa | L170: 1 | M170: MG
K171: Silla | L171: 4 | M171: MG
E172: Vestidor de pacientes | F172: AMBIENTE | G172: 2 | I172: Para construcciones nuevas deseable dimensionar 0,5m2 por puesto | J172: Requerido | K172: Casilleros/Lockers | L172: 5 | M172: MG
K173: Banco de vestuario | L173: 1 | M173: MG
K174: Gancho doble | L174: 1 | M174: MG
K175: Basurero | L175: 1 | M175: MG | P175: Recipiente para desechos comunes
E176: Baño de vestidor | G176: 2 | J176: Requerido | K176: Inodoro | L176: 1 | M176: MG
K177: Lavabo | L177: 1 | M177: EG
K178: Dispensador de papel toalla | L178: 1 | M178: MG
K179: Dispensador de jabón | L179: 1 | M179: MG
K180: Dispensador de papel higiénico | L180: 1 | M180: MG
K181: Espejo empotrado | L181: 1 | M181: MG
K182: Gancho doble | L182: 1 | M182: MG
K183: Barras de apoyo | L183: 1 | M183: EG
K184: Basurero | L184: 2 | M184: MG | P184: Recipientes para desechos comunes e infecciosos
D185: INSTALACIONES | E185: Estructura General | F185: INSTALACIÓN | G185: 1 | H185: EG_01 | J185: Requerido
E186: Instalaciones Generales | F186: INSTALACIÓN | G186: 1 | H186: IG_01 | J186: Requerido
A187: APOYO DIAGNÓSTICO | B187: DIAGNÓSTICO EN LABORATORIO (LABORATORIO DE ANÁLISIS CLÍNICO) (En el caso de no contar con el servicio dentro del establecimiento debe existir un convenio con un Laboratorio de Análisis Clínico con permiso de funcionamiento emitido por el MSP; debe cumplir con las normas de transporte y conservación de muestras) | C187: Área de Preanálisis | D187: AMBIENTES | E187: Toma de muestras | F187: AMBIENTE | G187: 1 | I187: Para construcciones nuevas deseable 5m2 | J187: Condición | K187: Silla para toma de muestras | L187: 1 | M187: MG
K188: Mesa auxiliar | L188: 1 | M188: MM
K189: Set de recipientes para el manejo de desechos peligrosos y no peligrosos | L189: 1 | M189: MG | N189: EQ_07
K190: Dispensador de papel toalla | L190: 1 | M190: MG
K191: Dispensador de jabón | L191: 1 | M191: MG
K192: Lavabo | L192: 1 | M192: MG
K193: Taburete giratorio | L193: 1 | M193: MG
E194: Pre análisis | F194: AMBIENTE | G194: 1 | I194: Para construcciones nuevas es requerido 2 m2 por puesto | J194: Condición | K194: Centrifuga | L194: 1 | M194: EM
K195: Silla | L195: 1 | M195: MG
K196: Canastilla/Coche para transporte de material | L196: 1 | M196: MG
K197: Set de recipientes para el manejo de desechos peligrosos y no peligrosos | L197: 1 | M197: MG | N197: EQ_07
D198: INSTALACIONES | E198: Estructura General | F198: INSTALACIÓN | G198: 1 | H198: EG_01 | J198: Condición
E199: Instalaciones Generales | F199: INSTALACIÓN | G199: 1 | H199: IG_01 | J199: Condición
C200: Área de Análisis | D200: AMBIENTES | E200: Hematología | F200: AMBIENTE | G200: 1 | I200: Para construcciones nuevas calcular según la demanda y el equipamiento | J200: Requerido | K200: Analizador Hematológico | L200: 1 | M200: EM
... 254 more rows

Sheet BaseTalentoHumano
D3: CENTRO ESPECIALIZADO EN DIÁLISIS PERITONEAL
D4: GRUPO 00 | E4: GRUPO 01 | F4: GRUPO 02 | G4: Personal | H4: Tipo Personal | I4: Cant Mínima | J4: Por Puestos / Pacientes / Servicios / Turnos | K4: ANEXO | L4: Observaciones | M4: TIPO
D5: ADMINISTRATIVO | E5: ADMISIÓN Y ESTADISTICA | F5: Área Técnica | G5: Analista de Admisiones y Estadísticas | H5: ADMINISTRATIVO | I5: 1 | M5: Requerido
D6: ASISTENCIAL | E6: CONSULTA EXTERNA | F6: Área de Atención de Consulta | G6: Licenciada/o en Enfermería | H6: ASISTENCIAL | I6: 1 | L6: Requerida en el caso de haber más de 5 consultorios médicos | M6: Condición
G7: Médico Especialista en Nefrología | H7: ASISTENCIAL | I7: 1 | L7: Puede ser el mismo director médico | M7: Requerido
G8: Psicologo Clínico | H8: ASISTENCIAL | I8: 1 | M8: Requerido
G9: Nutricionista | H9: ASISTENCIAL | I9: 1 | M9: Requerido
D10: APOYO TERAPÉUTICO | E10: ATENCIÓN DE APOYO TERAPÉUTICO | F10: Área de Procedimientos | G10: Médico Especialista en Cirugía Digestiva o en Cirugía General con experiencia en colocación de catéteres peritoneales | H10: ASISTENCIAL | I10: 1 | L10: Será requerido en el caso de que realice inserción de catéteres | M10: Condición
G11: Licenciada/o en Enfermería con experiencia en instrumentación | H11: ASISTENCIAL | I11: 1 | L11: Será requerido en el caso de que realice inserción de catéteres | M11: Condición
G12: Auxiliar o Asistente de Enfermería | H12: ASISTENCIAL | I12: 1 | L12: Será requerido en el caso de que realice inserción de catéteres | M12: Condición
F13: Área de Diálisis Peritoneal | G13: Médico Tratante especialista en Nefrología o cualquier Médico con experiencia mínima de 2 años en servicios de diálisis y/o certificados avalizados por la Sociedad de Nefrología, Diálisis Y Trasplantes y/o Universidades acreditadas, notarizados) (1 profesional por cada 50 pacientes) | H13: ASISTENCIAL | I13: 1 | J13: 50 | M13: Requerido
G14: Licenciada/o en Enfermería con experiencia en servicios de diálisis y/o certificados avalizados por la Sociedad de Nefrología, Diálisis Y Trasplantes y/o Universidades acreditadas, notarizados) (1 profesional por cada 50 pacientes) | H14: ASISTENCIAL | I14: 1 | J14: 50 | M14: Requerido
G15: Auxiliar o Asistente de Enfermería (1 por cada 14 pacientes) (personal de enfermería con experiencia en diálisis) | H15: ASISTENCIAL | I15: 1 | J15: 14 | M15: Requerido
D16: APOYO DIAGNÓSTICO | E16: DIAGNÓSTICO EN LABORATORIO (LABORATORIO DE ANÁLISIS CLÍNICO) | F16: Área de Análisis | G16: Tecnólogo /Licenciado en Laboratorio Clínico | H16: ASISTENCIAL | I16: 1 | L16: Será requerido en el caso de contar con el LAC | M16: Condición
G17: Auxiliar de Laboratorio | H17: ADMINISTRATIVO | I17: 1 | L17: Será requerido en el caso de contar con el LAC | M17: Condición
D18: APOYO TERAPÉUTICO | E18: DOTACIÓN DE MEDICAMENTOS Y DISPOSITIVOS MÉDICOS (FARMACIA) | F18: Área de Farmacia | G18: Químico / Bioquímico / Farmacéutico | H18: ADMINISTRATIVO | I18: 1 | L18: Puede ser itinerante | M18: Requerido
G19: Asistente de Farmacia | H19: ASISTENCIAL | I19: 1 | L19: Puede ser el mismo auxiliar de servicios | M19: Requerido
D20: ADMINISTRATIVO | E20: ADMINISTRACIÓN TÉCNICA | F20: Área Técnica | G20: Director Médico (Médico espcialista en Nefrología) | H20: ADMINISTRATIVO | I20: 1 | L20: Puede ser el mismo encargado de dar la prestación de consulta externa | M20: Requerido
G21: Secretaria | H21: ADMINISTRATIVO | I21: 1 | L21: Puede ser el mismo Analista de Admisión y Estadísticas | M21: Requerido
G22: Trabajador Social | H22: ASISTENCIAL | I22: 1 | M22: Requerido
G23: Jefe de Enfermería (Lcda. (o) en Enfermería con experiencia en servicios de diálisis y/o certificados avalizados por la Sociedad de Nefrología, Diálisis Y Trasplantes y/o Universidades acreditadas, notarizados) | H23: ADMINISTRATIVO | I23: 1 | L23: Puede ser el mismo que de prestación en el área de Diálisis Peritoneal | M23: Requerido
D24: GENERAL | E24: SERVICIOS INTERNOS DE APOYO | F24: Área de Apoyo y almacenamiento (suministros e insumos) para el establecimiento | G24: Auxiliar de Servicios | H24: ADMINISTRATIVO | I24: 1 | M24: Requerido
F25: Limpieza | G25: Auxiliar de Servicios | H25: ADMINISTRATIVO | I25: 1 | M25: Requerido

Sheet BaseNorma
A1: CENTRO ESPECIALIZADO EN DIÁLISIS PERITONEAL
A2: GRUPO 00 | B2: GRUPO 01 | C2: GRUPO 02 | D2: Personal | E2: Cant Mínima | F2: Factor | G2: Observaciones | H2: TIPO
A3: ADMINISTRATIVO | B3: ADMISIÓN Y ESTADISTICA | C3: Admisión, Información y Recepción | D3: Instructivo para el Llenado del Registro Diario Automatizado de Consultas y Atenciones Ambulatorias (RDACAA). 2013 | E3: 1 | G3: Será requerido para Establecimientos del MSP | H3: Condición
D4: Manual de Instalación del Tarjetero índice | E4: 1 | G4: Será requerido para Establecimientos del MSP | H4: Condición
D5: Manual del Usuario del Tarjetero Indice | E5: 1 | G5: Será requerido para Establecimientos del MSP | H5: Condición
D6: Manual de Manejo, Archivo de las Historias Clínicas | E6: 1 | H6: Requerido
D7: Norma Técnica: Subsistema de Referencia, Derivación, Contrareferencia, Referencia inversa y Transferencia del Sistema Nacional de Salud. 2014 | E7: 1 | H7: Requerido
D8: Políticas Uso de Servicios de Red y Servicios Informáticos del Ministerio de Salud Pública | E8: 1 | G8: Será requerido para Establecimientos del MSP | H8: Condición
D9: Modelo de Gestión de requerimientos e inconformidades ciudadanas para mejorar los servicios de salud a nivel nacional | E9: 1 | H9: Requerido
D10: Reglamento de Señalización de Seguridad para Establecimientos de Salud | E10: 1 | H10: Requerido
D11: Registro de Indicadores de Morbilidad y Mortalidad | E11: 1 | H11: Requerido
D12: Acuerdo Ministerial 5212: Tipología Sustitutiva para Homologar los Establecimientos de Salud por Niveles de Atención y Servicios de Apoyo del Sistema Nacional de Salud | E12: 1 | H12: Requerido
D13: Manual de Normas de Bioseguridad para la Red de Servicios de Salud en el Ecuador | E13: 1 | H13: Requerido
D14: Norma Técnica: Atención Integral en Violencia de Género. 2014 | E14: 1 | H14: Requerido
D15: Protocolos de Procedimientos de Limpieza | E15: 1 | H15: Requerido
D16: Registro de limpieza del área funcional del Establecimiento | E16: 1 | H16: Requerido
D17: Registro de Mantenimiento de Equipos: Preventivo y/o Correctivo | E17: 1 | H17: Requerido
D18: Acuerdo Ministerial 5186: Reglamento Interministerial para la Gestión Integral de Desechos Sanitarios | E18: 1 | H18: Requerido
D19: Registro de Sistema de Información y Análisis Estadístico que Incluya: Consultas, Interconsultas, Procedimientos, Índice de Infecciones, Morbimortalidad, Manejo de Catéteres Peritoneales, Anemia, Hipertensión Arterial, Enfermedad Ósea, Nutrición, Atención Psicológica, Trabajo Social y Complicaciones de los pacientes en Diálisis Peritoneal. | E19: 1 | H19: Requerido
A20: ASISTENCIAL | B20: CONSULTA EXTERNA | C20: Enfermería (En el caso de contar con la prestación, las condiciones se vuelven requeridas) | D20: Instructivo para el Llenado del Registro Diario Automatizado de Consultas y Atenciones Ambulatorias (RDACAA). 2013 | E20: 1 | G20: Será requerido para Establecimientos del MSP | H20: Condición
D21: Clasificación Estadística Internacional de Enfermedades y Problemas Relacionados con la Salud. Décima Revisión - CIE10 | E21: 1 | H21: Condición
D22: Reglamento a la Ley Organica de Salud | E22: 1 | H22: Condición
D23: Guía para la adecuación cultural de los servicios de salud. 2006 | E23: 1 | H23: Condición
D24: Manual del modelo de atención integral en salud - MAIS. 2013 | E24: 1 | H24: Condición
D25: Ley Derechos y Amparo al Paciente | E25: 1 | H25: Condición
D26: Cuadro nacional de medicamentos básicos y registro terapéutico. 9na revisión | E26: 1 | H26: Condición
D27: Acuerdo Ministerial 4693: Reforma a la 9na. Revisión del Cuadro Nacional de Medicamentos Básicos y Registro Terapéutico | E27: 1 | H27: Condición
D28: Modelo de gestión de aplicación de consentimiento informado en práctica asistencial. 2015 | E28: 1 | H28: Condición
D29: Guía de Práctica Clínica: Cuidados Paliativos. 2014 | E29: 1 | H29: Condición
D30: Norma de atención Cuidados Paliativos. 2015 | E30: 1 | H30: Condición
D31: Guía de cuidados paliativos para el ciudadano | E31: 1 | H31: Condición
D32: Manual de procedimientos de Enfermería | E32: 1 | H32: Condición
D33: Guía de Práctica Clínica: Lupus eritematoso sistémico (LES). 2013 | E33: 1 | H33: Condición
D34: Guía de Práctica Clínica: Transfusión de sangre y sus componentes. 2013 | E34: 1 | H34: Condición
D35: Guía de Práctica Clínica: Prevención, Diagnóstico, Tratamiento y Control de la Tuberculosis. 2015 | E35: 1 | H35: Condición
D36: Manual de Normas y Procedimientos para el Control de la Tuberculosis en Ecuador. 2010 | E36: 1 | H36: Condición
D37: Guía de atención integral de adultos y Adolescentes con infección por VIH/SIDA. 2012 | E37: 1 | G37: Será requerido en el caso de ofertar la prestación | H37: Condición
D38: Normas y protocolos de atención integral de salud de las y los adultos mayores - 1. 2010 | E38: 1 | H38: Condición
D39: Normas y protocolos de atención integral de salud de las y los adultos mayores - 2. 2010 | E39: 1 | H39: Condición
D40: Normas y protocolos de atención integral de salud de las y los adultos mayores - 3. 2010 | E40: 1 | H40: Condición
D41: Manual para cuidadores de la persona adulta mayor dependiente | E41: 1 | H41: Condición
D42: Normas de atención integral a la niñez. 2011 | E42: 1 | G42: Será requerido en el caso de ofertar la prestación | H42: Condición
D43: Normas y procedimientos para la atención integral de salud a adolescentes. 2009 | E43: 1 | G43: Será requerido en el caso de ofertar la prestación | H43: Condición
D44: Guía de Supervisión: Salud de Adolescentes. 2014 | E44: 1 | G44: Será requerido en el caso de ofertar la prestación | H44: Condición
D45: Promoción de la Salud Mental: Manejo del Estrés | E45: 1 | H45: Condición
D46: Guía de Abordaje del Tabaquismo en Atención Primaria de Salud | E46: 1 | H46: Condición
D47: Manual de procedimientos de antropometría y determinación de la presión arterial. 2012 | E47: 1 | H47: Condición
D48: Acuerdo Ministerial 179: Promoción de Medicamentos en General | E48: 1 | H48: Condición
D49: Acuerdo Ministerial 1124: Instructivo para el uso de la Receta Médica. | E49: 1 | G49: Será requerido para Establecimientos del MSP | H49: Condición
D50: Acuerdo Ministerial 4912: Reforma al Reglamento para la Gestión del Suministro de Medicamentos y Control Administrativo Financiero, y el Instructivo para el uso de la Receta Médica. | E50: 1 | G50: Será requerido para Establecimientos del MSP | H50: Condición
D51: Acuerdo Ministerial 5186: Reglamento Interministerial para la Gestión Integral de Desechos Sanitarios | E51: 1 | H51: Condición
D52: Manual de lencería sanitaria para los establecimientos de salud pertenecientes al MSP. 2014 | E52: 1 | G52: Será requerido para Establecimientos del MSP | H52: Condición
D53: Manual de Normas de Bioseguridad para la Red de Servicios de Salud en el Ecuador | E53: 1 | H53: Condición
D54: Protocolos de Procedimientos de Limpieza, Desinfección y Esterilización | E54: 1 | H54: Condición
D55: Registro de limpieza y desinfección del área funcional del Establecimiento | E55: 1 | H55: Condición
D56: Registro de Mantenimiento de Equipos: Preventivo y/o Correctivo | E56: 1 | H56: Condición
C57: Consultorio Médico | D57: Instructivo para el Llenado del Registro Diario Automatizado de Consultas y Atenciones Ambulatorias (RDACAA). 2013 | E57: 1 | G57: Será requerido para Establecimientos del MSP | H57: Condición
D58: Clasificación Estadística Internacional de Enfermedades y Problemas Relacionados con la Salud. Décima Revisión - CIE10 | E58: 1 | H58: Requerido
D59: Reglamento a la Ley Organica de Salud | E59: 1 | H59: Requerido
D60: Guía para la adecuación cultural de los servicios de salud. 2006 | E60: 1 | H60: Requerido
D61: Manual del modelo de atención integral en salud - MAIS. 2013 | E61: 1 | H61: Requerido
D62: Ley Derechos y Amparo al Paciente | E62: 1 | H62: Requerido
D63: Ley de sustancias estupefacientes y Psicotrópicas | E63: 1 | H63: Requerido
D64: Cuadro nacional de medicamentos básicos y registro terapéutico. 9na revisión | E64: 1 | H64: Requerido
D65: Acuerdo Ministerial 4693: Reforma a la 9na. Revisión del Cuadro Nacional de Medicamentos Básicos y Registro Terapéutico | E65: 1 | H65: Requerido
D66: Norma Técnica: Subsistema de Referencia, Derivación, Contrareferencia, Referencia inversa y Transferencia del Sistema Nacional de Salud. 2014 | E66: 1 | H66: Requerido
D67: Registro de Evolución de la Atención Médica y Procedimientos Efectuados | E67: 1 | H67: Requerido
D68: Registro de Indicadores para la Satisfacción del Usuario | E68: 1 | H68: Requerido
D69: Guía de Práctica Clínica: Cuidados Paliativos. 2014 | E69: 1 | H69: Requerido
D70: Guía de Práctica Clínica: Lupus eritematoso sistémico (LES). 2013 | E70: 1 | H70: Requerido
D71: Guía de Práctica Clínica: Transfusión de sangre y sus componentes. 2013 | E71: 1 | H71: Requerido
D72: Guía de atención integral de adultos y Adolescentes con infección por VIH/SIDA. 2012 | E72: 1 | G72: Será requerido en el caso de ofertar la prestación | H72: Condición
D73: Guía de Práctica Clínica: Prevención, Diagnóstico, Tratamiento y Control de la Tuberculosis. 2015 | E73: 1 | H73: Requerido
D74: Manual de Normas y Procedimientos para el Control de la Tuberculosis en Ecuador. 2010 | E74: 1 | H74: Requerido
D75: Normas y protocolos para la alimentación y nutrición en la atención integral a personas que viven con VIH/SIDA. 2010 | E75: 1 | G75: Será requerido en el caso de ofertar la prestación | H75: Condición
D76: Norma de atención Cuidados Paliativos. 2015 | E76: 1 | H76: Requerido
D77: Guía de cuidados paliativos para el ciudadano | E77: 1 | H77: Requerido
D78: Normas y protocolos de atención integral de salud de las y los adultos mayores - 1. 2010 | E78: 1 | H78: Requerido
D79: Normas y protocolos de atención integral de salud de las y los adultos mayores - 2. 2010 | E79: 1 | H79: Requerido
D80: Normas y protocolos de atención integral de salud de las y los adultos mayores - 3. 2010 | E80: 1 | H80: Requerido
D81: Normas y procedimientos para la atención integral de salud a adolescentes. 2009 | E81: 1 | G81: Será requerido en el caso de ofertar la prestación | H81: Condición
D82: Guía de Supervisión: Salud de Adolescentes. 2014 | E82: 1 | G82: Será requerido en el caso de ofertar la prestación | H82: Condición
D83: Manual de procedimientos de antropometría y determinación de la presión arterial. 2012 | E83: 1 | H83: Requerido
D84: Acuerdo Ministerial 179: Promoción de Medicamentos en General | E84: 1 | H84: Requerido
D85: Acuerdo Ministerial 1124: Instructivo para el uso de la Receta Médica. | E85: 1 | G85: Será requerido para Establecimientos del MSP | H85: Condición
D86: Acuerdo Ministerial 4912: Reforma al Reglamento para la Gestión del Suministro de Medicamentos y Control Administrativo Financiero, y el Instructivo para el uso de la Receta Médica. | E86: 1 | G86: Será requerido para Establecimientos del MSP | H86: Condición
D87: Acuerdo Ministerial 5186: Reglamento Interministerial para la Gestión Integral de Desechos Sanitarios | E87: 1 | H87: Requerido
D88: Manual de Normas de Bioseguridad para la Red de Servicios de Salud en el Ecuador | E88: 1 | H88: Requerido
D89: Protocolos de Procedimientos de Limpieza, Desinfección y Esterilización | E89: 1 | H89: Requerido
D90: Registro de limpieza y desinfección del área funcional del Establecimiento | E90: 1 | H90: Requerido
D91: Registro de Mantenimiento de Equipos: Preventivo y/o Correctivo | E91: 1 | H91: Requerido
C92: Consultorio de Psicología | D92: Instructivo para el Llenado del Registro Diario Automatizado de Consultas y Atenciones Ambulatorias (RDACAA). 2013 | E92: 1 | G92: Será requerido para Establecimientos del MSP | H92: Condición
D93: Clasificación Estadística Internacional de Enfermedades y Problemas Relacionados con la Salud. Décima Revisión - CIE10 | E93: 1 | H93: Requerido
D94: Reglamento a la Ley Organica de Salud | E94: 1 | H94: Requerido
D95: Guía para la adecuación cultural de los servicios de salud. 2006 | E95: 1 | H95: Requerido
D96: Manual del modelo de atención integral en salud - MAIS. 2013 | E96: 1 | H96: Requerido
D97: Ley Derechos y Amparo al Paciente | E97: 1 | H97: Requerido
D98: Ley de sustancias estupefacientes y Psicotrópicas | E98: 1 | H98: Requerido
D99: Cuadro nacional de medicamentos básicos y registro terapéutico. 9na revisión | E99: 1 | H99: Requerido
D100: Acuerdo Ministerial 4693: Reforma a la 9na. Revisión del Cuadro Nacional de Medicamentos Básicos y Registro Terapéutico | E100: 1 | H100: Requerido
D101: Norma Técnica: Subsistema de Referencia, Derivación, Contrareferencia, Referencia inversa y Transferencia del Sistema Nacional de Salud. 2014 | E101: 1 | H101: Requerido
D102: Fundamentos de la Prevención en Materia de Drogas | E102: 1 | G102: Será requerido para Establecimientos del MSP | H102: Condición
D103: Guía de Abordaje del Tabaquismo en Atención Primaria de Salud | E103: 1 | G103: Será requerido para Establecimientos del MSP | H103: Condición
D104: Guía de Práctica Clínica: Lupus eritematoso sistémico (LES). 2013 | E104: 1 | H104: Requerido
D105: Plan Estratégico Nacional de Salud Mental 2015 - 2017 | E105: 1 | H105: Requerido
D106: Modelo de Atención de Salud Mental, en el Marco del Modelo de Atención Integral de Salud (MAIS) - con enfoque familiar, comunitario e intercultural | E106: 1 | H106: Requerido
D107: Acuerdo Ministerial 1124: Instructivo para el uso de la Receta Médica. | E107: 1 | G107: Será requerido para Establecimientos del MSP | H107: Condición
D108: Acuerdo Ministerial 4912: Reforma al Reglamento para la Gestión del Suministro de Medicamentos y Control Administrativo Financiero, y el Instructivo para el uso de la Receta Médica. | E108: 1 | G108: Será requerido para Establecimientos del MSP | H108: Condición
D109: Acuerdo Ministerial 5186: Reglamento Interministerial para la Gestión Integral de Desechos Sanitarios | E109: 1 | H109: Requerido
D110: Manual de Normas de Bioseguridad para la Red de Servicios de Salud en el Ecuador | E110: 1 | H110: Requerido
D111: Protocolos de Procedimientos de Limpieza, Desinfección y Esterilización | E111: 1 | H111: Requerido
D112: Registro de limpieza y desinfección del área funcional del Establecimiento | E112: 1 | H112: Requerido
D113: Registro de Mantenimiento de Equipos: Preventivo y/o Correctivo | E113: 1 | H113: Requerido
C114: Consultorio de Nutrición | D114: Instructivo para el Llenado del Registro Diario Automatizado de Consultas y Atenciones Ambulatorias (RDACAA). 2013 | E114: 1 | G114: Será requerido para Establecimientos del MSP | H114: Condición
D115: Clasificación Estadística Internacional de Enfermedades y Problemas Relacionados con la Salud. Décima Revisión - CIE10 | E115: 1 | H115: Requerido
D116: Reglamento a la Ley Organica de Salud | E116: 1 | H116: Requerido
D117: Guía para la adecuación cultural de los servicios de salud. 2006 | E117: 1 | H117: Requerido
D118: Manual del modelo de atención integral en salud - MAIS. 2013 | E118: 1 | H118: Requerido
D119: Ley Derechos y Amparo al Paciente | E119: 1 | H119: Requerido
D120: Cuadro nacional de medicamentos básicos y registro terapéutico. 9na revisión | E120: 1 | H120: Requerido
D121: Acuerdo Ministerial 4693: Reforma a la 9na. Revisión del Cuadro Nacional de Medicamentos Básicos y Registro Terapéutico | E121: 1 | H121: Requerido
D122: Norma Técnica: Subsistema de Referencia, Derivación, Contrareferencia, Referencia inversa y Transferencia del Sistema Nacional de Salud. 2014 | E122: 1 | H122: Requerido
D123: Normas y protocolos para la alimentación y nutrición en la atención integral a personas que viven con VIH/SIDA. 2010 | E123: 1 | G123: Será requerido en el caso de ofertar la prestación | H123: Condición
D124: Introducción a la Guía de actividad Física dirigido al personal de salud I. 2011 | E124: 1 | H124: Requerido
D125: Guía de actividad Física dirigido al personal de salud II. 2011 | E125: 1 | H125: Requerido
D126: Manual de procedimientos de antropometría y determinación de la presión arterial. 2012 | E126: 1 | H126: Requerido
D127: Acuerdo Ministerial 1124: Instructivo para el uso de la Receta Médica. | E127: 1 | G127: Será requerido para Establecimientos del MSP | H127: Condición
D128: Acuerdo Ministerial 4912: Reforma al Reglamento para la Gestión del Suministro de Medicamentos y Control Administrativo Financiero, y el Instructivo para el uso de la Receta Médica. | E128: 1 | G128: Será requerido para Establecimientos del MSP | H128: Condición
D129: Acuerdo Ministerial 5186: Reglamento Interministerial para la Gestión Integral de Desechos Sanitarios | E129: 1 | H129: Requerido
D130: Manual de Normas de Bioseguridad para la Red de Servicios de Salud en el Ecuador | E130: 1 | H130: Requerido
D131: Protocolos de Procedimientos de Limpieza, Desinfección y Esterilización | E131: 1 | H131: Requerido
D132: Registro de limpieza y desinfección del área funcional del Establecimiento | E132: 1 | H132: Requerido
D133: Registro de Mantenimiento de Equipos: Preventivo y/o Correctivo | E133: 1 | H133: Requerido
A134: APOYO TERAPÉUTICO | B134: ATENCIÓN DE APOYO TERAPÉUTICO | C134: Área de Procedimientos | D134: Instructivo para el Llenado del Registro Diario Automatizado de Consultas y Atenciones Ambulatorias (RDACAA). 2013 | E134: 1 | G134: Será requerido para Establecimientos del MSP | H134: Condición
D135: Norma Técnica: Subsistema de Referencia, Derivación, Contrareferencia, Referencia inversa y Transferencia del Sistema Nacional de Salud. 2014 | E135: 1 | H135: Condición
D136: Modelo de gestión de aplicación de consentimiento informado en práctica asistencial. 2015 | E136: 1 | H136: Condición
D137: Lista de Verificación de la Seguridad de la Cirugía | E137: 1 | G137: Será requerido en el caso de ofertar la prestación | H137: Condición
D138: Manual de Aplicación de la lista OMS de verificación de la seguridad de la cirugía. 2009 | E138: 1 | G138: Será requerido en el caso de ofertar la prestación | H138: Condición
D139: La Cirugía Segura Salva Vidas. 2013 | E139: 1 | G139: Será requerido en el caso de ofertar la prestación | H139: Condición
D140: Acuerdo Ministerial 5186: Reglamento Interministerial para la Gestión Integral de Desechos Sanitarios | E140: 1 | H140: Condición
D141: Manual de Normas de Bioseguridad para la Red de Servicios de Salud en el Ecuador | E141: 1 | H141: Condición
D142: Protocolos de Procedimientos de Limpieza, Desinfección y Esterilización | E142: 1 | H142: Condición
D143: Registro de limpieza y desinfección del área funcional del Establecimiento | E143: 1 | H143: Condición
D144: Registro de Mantenimiento de Equipos: Preventivo y/o Correctivo | E144: 1 | H144: Condición
C145: Área de Diálisis Peritoneal | D145: Instructivo para el Llenado del Registro Diario Automatizado de Consultas y Atenciones Ambulatorias (RDACAA). 2013 | E145: 1 | G145: Será requerido para Establecimientos del MSP | H145: Condición
D146: Clasificación Estadística Internacional de Enfermedades y Problemas Relacionados con la Salud. Décima Revisión - CIE10 | E146: 1 | H146: Requerido
D147: Reglamento a la Ley Organica de Salud | E147: 1 | H147: Requerido
D148: Guía para la adecuación cultural de los servicios de salud. 2006 | E148: 1 | H148: Requerido
D149: Manual del modelo de atención integral en salud - MAIS. 2013 | E149: 1 | H149: Requerido
D150: Ley Derechos y Amparo al Paciente | E150: 1 | H150: Requerido
D151: Ley de sustancias estupefacientes y Psicotrópicas | E151: 1 | H151: Requerido
D152: Cuadro nacional de medicamentos básicos y registro terapéutico. 9na revisión | E152: 1 | H152: Requerido
D153: Acuerdo Ministerial 4693: Reforma a la 9na. Revisión del Cuadro Nacional de Medicamentos Básicos y Registro Terapéutico | E153: 1 | H153: Requerido
D154: Norma Técnica: Subsistema de Referencia, Derivación, Contrareferencia, Referencia inversa y Transferencia del Sistema Nacional de Salud. 2014 | E154: 1 | H154: Requerido
D155: Protocolo de procedimientos de Diálisis Peritoneal | E155: 1 | H155: Requerido
D156: Registro de Evolución de la Atención Médica y Procedimientos Efectuados | E156: 1 | H156: Requerido
D157: Registro de Indicadores para la Satisfacción del Usuario | E157: 1 | H157: Requerido
D158: Guía de Práctica Clínica: Transfusión de sangre y sus componentes. 2013 | E158: 1 | H158: Requerido
D159: Guía de atención integral de adultos y Adolescentes con infección por VIH/SIDA. 2012 | E159: 1 | G159: Será requerido en el caso de ofertar la prestación | H159: Condición
D160: Normas y protocolos de atención integral de salud de las y los adultos mayores - 1. 2010 | E160: 1 | H160: Requerido
D161: Normas y protocolos de atención integral de salud de las y los adultos mayores - 2. 2010 | E161: 1 | H161: Requerido
D162: Normas y protocolos de atención integral de salud de las y los adultos mayores - 3. 2010 | E162: 1 | H162: Requerido
D163: Normas y procedimientos para la atención integral de salud a adolescentes. 2009 | E163: 1 | G163: Será requerido en el caso de ofertar la prestación | H163: Condición
D164: Guía de Supervisión: Salud de Adolescentes. 2014 | E164: 1 | G164: Será requerido en el caso de ofertar la prestación | H164: Condición
D165: Manual de procedimientos de antropometría y determinación de la presión arterial. 2012 | E165: 1 | H165: Requerido
D166: Acuerdo Ministerial 5186: Reglamento Interministerial para la Gestión Integral de Desechos Sanitarios | E166: 1 | H166: Requerido
D167: Manual de Normas de Bioseguridad para la Red de Servicios de Salud en el Ecuador | E167: 1 | H167: Requerido
D168: Protocolos de Procedimientos de Limpieza, Desinfección y Esterilización | E168: 1 | H168: Requerido
D169: Registro de limpieza y desinfección del área funcional del Establecimiento | E169: 1 | H169: Requerido
D170: Registro de Mantenimiento de Equipos: Preventivo y/o Correctivo | E170: 1 | H170: Requerido
A171: APOYO DIAGNÓSTICO | B171: DIAGNÓSTICO EN LABORATORIO (LABORATORIO DE ANÁLISIS CLÍNICO) | C171: Área de Análisis | D171: Acuerdo Ministerial 2393: Reglamento para el Funcionamiento de los Laboratorios Clinicos | E171: 1 | H171: Condición
D172: Acuerdo Ministerial 5186: Reglamento Interministerial para la Gestión Integral de Desechos Sanitarios | E172: 1 | H172: Condición
D173: Manual de Normas de Bioseguridad para la Red de Servicios de Salud en el Ecuador | E173: 1 | H173: Condición
D174: Protocolos de Procedimientos de Limpieza, Desinfección y Esterilización | E174: 1 | H174: Condición
D175: Registro de limpieza y desinfección del área funcional del Establecimiento | E175: 1 | H175: Condición
D176: Registro de Mantenimiento de Equipos: Preventivo y/o Correctivo | E176: 1 | H176: Condición
D177: Registro de Temperatura de los Refrigeradores | E177: 1 | H177: Condición
A178: APOYO TERAPÉUTICO | B178: DOTACIÓN DE MEDICAMENTOS Y DISPOSITIVOS MÉDICOS (FARMACIA) | C178: Área de Farnacia | D178: Guía para la recepción y almacenamiento de medicamentos en el MSP | E178: 1 | G178: Será requerido para Establecimientos del MSP | H178: Condición
D179: Manual de Procesos para la Gestión de Suministros de Medicamentos | E179: 1 | G179: Será requerido para Establecimientos del MSP | H179: Condición
D180: Acuerdo Ministerial 1124: Instructivo para el uso de la Receta Médica. | E180: 1 | G180: Será requerido para Establecimientos del MSP | H180: Condición
D181: Acuerdo Ministerial 4912: Reforma al Reglamento para la Gestión del Suministro de Medicamentos y Control Administrativo Financiero, y el Instructivo para el uso de la Receta Médica. | E181: 1 | G181: Será requerido para Establecimientos del MSP | H181: Condición
D182: Cuadro nacional de medicamentos básicos y registro terapéutico. 9na revisión | E182: 1 | H182: Requerido
D183: Acuerdo Ministerial 4693: Reforma a la 9na. Revisión del Cuadro Nacional de Medicamentos Básicos y Registro Terapéutico | E183: 1 | H183: Requerido
D184: Acuerdo Ministerial 205: Reglamento para el registro y control sanitario de dispositivos médicos, reactivos bioquímicos y de diagnóstico; y, productos dentales | E184: 1 | H184: Requerido
D185: Acuerdo Ministerial 4872: Reglamento de buenas prácticas de almacenamiento, distribución y transporte para establecimientos farmacéuticos | E185: 1 | H185: Requerido
D186: Registro de Temperatura de los refrigeradores | E186: 1 | H186: Requerido
D187: Registro de Temperatura y Humedad ambiental | E187: 1 | H187: Requerido
D188: Acuerdo Ministerial 5186: Reglamento Interministerial para la Gestión Integral de Desechos Sanitarios | E188: 1 | H188: Requerido
D189: Manual de Normas de Bioseguridad para la Red de Servicios de Salud en el Ecuador | E189: 1 | H189: Requerido
D190: Protocolos de Procedimientos de Limpieza, Desinfección y Esterilización | E190: 1 | H190: Requerido
D191: Registro de limpieza y desinfección del área funcional del Establecimiento | E191: 1 | H191: Requerido
D192: Registro de Mantenimiento de Equipos: Preventivo y/o Correctivo | E192: 1 | H192: Requerido
A193: ADMINISTRATIVO | B193: ADMINISTRACIÓN TÉCNICA | C193: Despacho del Director | D193: Constitución de la Republica del Ecuador | E193: 1 | H193: Requerido
D194: Plan Nacional del Buen Vivir 2013-2017 | E194: 1 | H194: Requerido
D195: Agenda Social 2017 | E195: 1 | H195: Requerido
D196: Código Orgánico Integral Penal - COIP | E196: 1 | H196: Requerido
D197: Ley Orgánica del Servidor Publico - LOSEP | E197: 1 | G197: Será requerido para Establecimientos del MSP | H197: Condición
D198: Reglamento a Ley Orgánica del Servidor Publico - LOSEP | E198: 1 | G198: Será requerido para Establecimientos del MSP | H198: Condición
D199: Codificación del Código del Trabajo (2005) | E199: 1 | H199: Requerido
D200: Código Orgánico de Organización Territorial, Autonomia y Descentralización - COOTAD | E200: 1 | H200: Requerido
... 47 more rows

Sheet Menu
B2: MATRIZ DE LICENCIAMIENTO:
B3: CENTRO ESPECIALIZADO EN DIÁLISIS PERITONEAL
B5: ENTIDAD DEL SISTEMA:
B6: NOMBRE UNIDAD OPERATIVA:
B7: CÓDIGO/RUC:
D8: REGION:
B9: PROVINCIA:
B10: CANTON:
B11: PARROQUIA:
B12: ZONA:
B13: DIRECCION:
D14: TELÉFONO:
B15: AREA/DISTRITO:
B16: RESPONSABLE:
B17: CORREO ELECTRÓNICO:
D18: FECHA:

Sheet Infraestructura
A1: FILTROS: | B1: Anx: | C1: Requerido: | D1: m² Util: | E1: Tipo: | F1: BUENO: | G1: MALO: | H1: Calif: | I1: Observaciones:
A2: =Menu!$B$3 -> CENTRO ESPECIALIZADO EN DIÁLISIS PERITONEAL
A3: INFRAESTRUCTURA | O3: AMBIENTES | W3: INSTALACIONES | AE3: TOTAL AMBIENTES | AM3: TOTAL INSTALACIONES
A4: SERVICIO DE ADMISIÓN Y CONSULTA EXTERNA | AE4: =SUM(O5:O23) -> 70 | AF4: =SUM(P5:P23) -> 0 | AG4: =SUM(Q5:Q23) -> 0 | AH4: =SUM(R5:R23) -> 0 | AI4: 0 | AJ4: 0 | AK4: 10 | AL4: 0 | AM4: 0 | AN4: 0 | AO4: 0 | AP4: 0 | AQ4: 0 | AR4: 0 | AS4: 0 | AT4: 0
A5: CONSULTA EXTERNA | AE5: =SUM(O6:O23) -> 70 | AF5: =SUM(P6:P23) -> 0 | AG5: =SUM(Q6:Q23) -> 0 | AH5: 0 | AI5: 0 | AJ5: 0 | AK5: 10 | AL5: 0 | AM5: 0 | AN5: 0 | AO5: 0 | AP5: 0 | AQ5: 0 | AR5: 0 | AS5: 0 | AT5: 0
A6: ADMISIÓN Y CONTROL | AE6: =SUM(O7:O13) -> 30 | AF6: =SUM(P7:P13) -> 0 | AG6: =SUM(Q7:Q13) -> 0 | AH6: =SUM(R7:R13) -> 0 | AI6: 0 | AJ6: 0 | AK6: 0 | AL6: 0 | AM6: 0 | AN6: 0 | AO6: 0 | AP6: 0 | AQ6: 0 | AR6: 0 | AS6: 0 | AT6: 0
A7: AMBIENTES | B7: =B1 -> Anx: | C7: =C$1 -> Requerido: | D7: m² Util: | E7: Tipo: | F7: BUENO: | G7: MALO: | H7: Calif: | I7: Observaciones: | K7: AMBIENTE | AE7: =SUM(O8:O10) -> 30 | AF7: =SUM(P8:P10) -> 0 | AG7: =SUM(Q8:Q10) -> 0 | AH7: =SUM(R8:R10) -> 0 | AI7: 0 | AJ7: 0 | AK7: 0 | AL7: 0 | AM7: 0 | AN7: 0 | AO7: 0 | AP7: 0 | AQ7: 0 | AR7: 0 | AS7: 0 | AT7: 0
A8: Baterías Sanitarias | C8: 2 | D8: - | E8: Requerido | F8: 0 | G8: 0 | H8: =IF(AND(F8>=C8,F8>0),10,0) -> 0 | K8: AMBIENTE | O8: =IF(UPPER(E8)="REQUERIDO", 10, "") -> 10 | P8: =IF(UPPER(E8)="REQUERIDO", H8, "") -> 0
A9: Recepción Admisión | C9: 1 | D9: - | E9: Requerido | F9: 0 | G9: 0 | H9: =IF(AND(F9>=C9,F9>0),10,0) -> 0 | K9: AMBIENTE | O9: =IF(UPPER(E9)="REQUERIDO", 10, "") -> 10 | P9: =IF(UPPER(E9)="REQUERIDO", H9, "") -> 0
A10: Sala de Espera | C10: 1 | D10: 12m² | E10: Requerido | F10: 0 | G10: 0 | H10: =IF(AND(F10>=C10,F10>0),10,0) -> 0 | O10: =IF(UPPER(E10)="REQUERIDO", 10, "") -> 10 | P10: =IF(UPPER(E10)="REQUERIDO", H10, "") -> 0
A11: INSTALACIONES | B11: =B1 -> Anx: | C11: =C$1 -> Requerido: | D11: m² Util: | E11: Tipo: | F11: BUENO: | G11: MALO: | H11: Calif: | I11: Observaciones: | K11: INSTALACIÓN | AE11: =SUM(O12:O13) -> 0 | AF11: =SUM(P12:P13) -> 0 | AG11: 0 | AH11: 0 | AI11: 0 | AJ11: 0 | AK11: 0 | AL11: 0 | AM11: 0 | AN11: 0 | AO11: 0 | AP11: 0 | AQ11: 0 | AR11: 0 | AS11: 0 | AT11: 0
A12: Estructura General | B12: DIA_EG_01 | C12: 1 | D12: . | E12: Requerido | F12: 0 | G12: 0 | H12: =IF(AND(F12>=C12,F12>0),10,0) -> 0 | K12: INSTALACIÓN
A13: Instalaciones Generales | B13: DIA_IG_01 | C13: 1 | D13: - | E13: Requerido | F13: 0 | G13: 0 | H13: =IF(AND(F13>=C13,F13>0),10,0) -> 0
A14: ÁREA DE PACIENTE | AE14: =SUM(O15:O20) -> 40 | AF14: =SUM(P15:P20) -> 0 | AG14: =SUM(Q15:Q20) -> 0 | AH14: =SUM(R15:R20) -> 0 | AI14: 0 | AJ14: 0 | AK14: 10 | AL14: 0 | AM14: 0 | AN14: 0 | AO14: 0 | AP14: 0 | AQ14: 0 | AR14: 0 | AS14: 0 | AT14: 0
A15: AMBIENTES | B15: =B1 -> Anx: | C15: =C$1 -> Requerido: | D15: m² Util: | E15: Tipo: | F15: BUENO: | G15: MALO: | H15: Calif: | I15: Observaciones: | AE15: =SUM(O16:O20) -> 40 | AF15: =SUM(P16:P20) -> 0 | AG15: =SUM(Q16:Q20) -> 0 | AH15: =SUM(R16:R20) -> 0 | AI15: 0 | AJ15: 0 | AK15: 10 | AL15: 0 | AM15: 0 | AN15: 0 | AO15: 0 | AP15: 0 | AQ15: 0 | AR15: 0 | AS15: 0 | AT15: 0
A16: Consultorio de Enfermería con Lavabo. (Se convertirá en REQUERIDO cuando exista 5 Consultorios Médicos) | C16: 1 | D16: - | E16: Condición | F16: 0 | G16: 0 | H16: =IF(AND(F16>=C16,F16>0),10,0) -> 0 | K16: AMBIENTE | U16: =IF(UPPER(E16)="CONDICIÓN", 10, 0) -> 10 | V16: =IF(UPPER(E16)="CONDICIÓN", H16, "") -> 0
A17: Consultorio Médico con Lavabo | C17: 1 | D17: 14m² | E17: Requerido | F17: 0 | G17: 0 | H17: =IF(AND(F17>=C17,F17>0),10,0) -> 0 | K17: AMBIENTE | O17: =IF(UPPER(E17)="REQUERIDO", 10, "") -> 10 | P17: =IF(UPPER(E17)="REQUERIDO", H17, "") -> 0
A18: Consultorio Psicología | C18: 1 | D18: - | E18: Requerido | F18: 0 | G18: 0 | H18: =IF(AND(F18>=C18,F18>0),10,0) -> 0 | K18: AMBIENTE | O18: =IF(UPPER(E18)="REQUERIDO", 10, "") -> 10 | P18: =IF(UPPER(E18)="REQUERIDO", H18, "") -> 0
A19: Consultorio Trabajo Social | C19: 1 | D19: - | E19: Requerido | F19: 0 | G19: 0 | H19: =IF(AND(F19>=C19,F19>0),10,0) -> 0 | K19: AMBIENTE | O19: =IF(UPPER(E19)="REQUERIDO", 10, "") -> 10 | P19: =IF(UPPER(E19)="REQUERIDO", H19, "") -> 0
A20: Consultorio Nutrición | C20: 1 | D20: - | E20: Requerido | F20: 0 | G20: 0 | H20: =IF(AND(F20>=C20,F20>0),10,0) -> 0 | K20: AMBIENTE | O20: =IF(UPPER(E20)="REQUERIDO", 10, "") -> 10 | P20: =IF(UPPER(E20)="REQUERIDO", H20, "") -> 0
A21: INSTALACIONES | B21: =B1 -> Anx: | C21: =C$1 -> Requerido: | D21: m² Util: | E21: Tipo: | F21: BUENO: | G21: MALO: | H21: Calif: | I21: Observaciones: | AE21: =SUM(O22:O23) -> 0 | AF21: =SUM(P22:P23) -> 0 | AG21: 0 | AH21: 0 | AI21: =SUM(S22:S23) -> 0 | AJ21: 0 | AK21: 0 | AL21: 0 | AM21: 0 | AN21: 0 | AO21: 0 | AP21: 0 | AQ21: 0 | AR21: 0 | AS21: 0 | AT21: 0
A22: Estructura General | B22: DIA_EG_01 | C22: 1 | D22: - | E22: Requerido | F22: 0 | G22: 0 | H22: =IF(AND(F22>=C22,F22>0),10,0) -> 0 | K22: INSTALACIÓN
A23: Instalaciones Generales | B23: DIA_IG_01 | C23: 1 | D23: - | E23: Requerido | F23: 0 | G23: 0 | H23: =IF(AND(F23>=C23,F23>0),10,0) -> 0 | K23: INSTALACIÓN
A24: SERVICIO DE DIÁLISIS PERITONEAL | AE24: =SUM(O25:O48) -> 40 | AF24: =SUM(P25:P48) -> 0 | AG24: =SUM(Q25:Q48) -> 0 | AH24: =SUM(R25:R48) -> 0 | AI24: 0 | AJ24: 0 | AK24: 30 | AL24: 0 | AM24: 0 | AN24: 0 | AO24: 0 | AP24: 0 | AQ24: 0 | AR24: 0 | AS24: 0 | AT24: 0
A25: ÁREA DE PROCEDIMIENTO DE DIÁLISIS PERITONEAL | AE25: =SUM(O26:O32) -> 0 | AF25: =SUM(P26:P32) -> 0 | AG25: =SUM(Q26:Q32) -> 0 | AH25: 0 | AI25: 0 | AJ25: =SUM(T26:T32) -> 0 | AK25: 20 | AL25: 0 | AM25: =SUM(W26:W32) -> 0 | AN25: 0 | AO25: 0 | AP25: =SUM(Z26:Z32) -> 0 | AQ25: 0 | AR25: 0 | AS25: =SUM(AC26:AC32) -> 0 | AT25: 0
A26: ÁREA DE TRATAMIENTO | AE26: =SUM(O27:O32) -> 0 | AF26: =SUM(P27:P32) -> 0 | AG26: 0 | AH26: 0 | AI26: =SUM(S27:S32) -> 0 | AJ26: =SUM(T27:T32) -> 0 | AK26: 20 | AL26: =SUM(V27:V32) -> 0 | AM26: =SUM(W27:W32) -> 0 | AN26: 0 | AO26: =SUM(Y27:Y32) -> 0 | AP26: =SUM(Z27:Z32) -> 0 | AQ26: 0 | AR26: =SUM(AB27:AB32) -> 0 | AS26: =SUM(AC27:AC32) -> 0 | AT26: 0
A27: AMBIENTES | B27: =B1 -> Anx: | C27: =C$1 -> Requerido: | D27: m² Util: | E27: Tipo: | F27: BUENO: | G27: MALO: | H27: Calif: | I27: Observaciones: | AE27: =SUM(O27:O29) -> 0 | AF27: =SUM(P27:P29) -> 0 | AG27: =SUM(Q27:Q29) -> 0 | AH27: 0 | AI27: 0 | AJ27: 0 | AK27: 20 | AL27: 0 | AM27: 0 | AN27: 0 | AO27: 0 | AP27: 0 | AQ27: 0 | AR27: 0 | AS27: 0 | AT27: 0
A28: Sala de procedimientos - Debe existir acuerdo con una unidad quirúrgica para realización, reparación de Fístulas y colocación de Catéteres en caso de no haber convenio se hará requerido | C28: 1 | D28: - | E28: Condición | F28: 0 | G28: 0 | H28: =IF(AND(F28>=C28,F28>0),10,0) -> 0 | K28: AMBIENTE | U28: =IF(UPPER(E28)="CONDICIÓN", 10, 0) -> 10 | V28: =IF(UPPER(E28)="CONDICIÓN", H28, "") -> 0
A29: Zona de autoclave - Se convierte en Requerido si existe Sala de Procedimientos, o sigue siendo una condición si tiene acuerdo con una unidad externa que preste el servicio de esterilización | C29: 1 | D29: - | E29: Condición | F29: 0 | G29: 0 | H29: =IF(AND(F29>=C29,F29>0),10,0) -> 0 | K29: AMBIENTE | U29: 10 | V29: 0
A30: INSTALACIONES | B30: =B1 -> Anx: | C30: =C$1 -> Requerido: | D30: m² Util: | E30: Tipo: | F30: BUENO: | G30: MALO: | H30: Calif: | I30: Observaciones: | AE30: =SUM(O31:O32) -> 0 | AF30: 0 | AG30: 0 | AH30: 0 | AI30: 0 | AJ30: 0 | AK30: 0 | AL30: 0 | AM30: 0 | AN30: 0 | AO30: 0 | AP30: 0 | AQ30: 0 | AR30: 0 | AS30: 0 | AT30: 0
A31: Estructura General | B31: DIA_EG_01 | C31: 1 | D31: - | E31: Condición | F31: 0 | G31: 0 | H31: =IF(AND(F31>=C31,F31>0),10,0) -> 0 | K31: INSTALACIÓN
A32: Instalaciones Generales | B32: DIA_IG_01 | C32: 1 | D32: - | E32: Condición | F32: 0 | G32: 0 | H32: =IF(AND(F32>=C32,F32>0),10,0) -> 0 | K32: INSTALACIÓN
A33: ÁREA DE APOYO Y APROVISONAMIENTO | AE33: =SUM(O34:O48) -> 40 | AF33: =SUM(P34:P48) -> 0 | AG33: =SUM(Q34:Q48) -> 0 | AH33: =SUM(R34:R48) -> 0 | AI33: 0 | AJ33: 0 | AK33: 10 | AL33: 0 | AM33: 0 | AN33: 0 | AO33: 0 | AP33: 0 | AQ33: 0 | AR33: 0 | AS33: 0 | AT33: 0
A34: Está área funcional debe estar centralizada y no debe estar en contacto con las áreas de tratamiento | AE34: =SUM(O35:O41) -> 20 | AF34: =SUM(P35:P41) -> 0 | AG34: 0 | AH34: 0 | AI34: =SUM(S35:S41) -> 0 | AJ34: =SUM(T35:T41) -> 0 | AK34: 10 | AL34: =SUM(V35:V41) -> 0 | AM34: =SUM(W35:W41) -> 0 | AN34: 0 | AO34: =SUM(Y35:Y41) -> 0 | AP34: =SUM(Z35:Z41) -> 0 | AQ34: 0 | AR34: =SUM(AB35:AB41) -> 0 | AS34: =SUM(AC35:AC41) -> 0 | AT34: 0
A35: AMBIENTES | B35: =B1 -> Anx: | C35: =C$1 -> Requerido: | D35: m² Util: | E35: Tipo: | F35: BUENO: | G35: MALO: | H35: Calif: | I35: Observaciones: | AE35: =SUM(O36:O38) -> 20 | AF35: =SUM(P36:P38) -> 0 | AG35: =SUM(Q36:Q38) -> 0 | AH35: 0 | AI35: 0 | AJ35: =SUM(T36:T38) -> 0 | AK35: 10 | AL35: 0 | AM35: =SUM(W36:W38) -> 0 | AN35: 0 | AO35: 0 | AP35: =SUM(Z36:Z38) -> 0 | AQ35: 0 | AR35: 0 | AS35: =SUM(AC36:AC38) -> 0 | AT35: 0
A36: Cuarto de limpieza con vertedero | C36: 1 | D36: - | E36: Requerido | F36: 0 | G36: 0 | H36: =IF(AND(F36>=C36,F36>0),10,0) -> 0 | K36: AMBIENTE | O36: =IF(UPPER(E36)="REQUERIDO", 10, "") -> 10 | P36: =IF(UPPER(E36)="REQUERIDO", H36, "") -> 0
A37: Almacenamiento intermedio de desechos; se hará requerido cuando el servicio tenga más 50 puestos o camillas | C37: 1 | D37: - | E37: Condición | F37: 0 | G37: 0 | H37: =IF(AND(F37>=C37,F37>0),10,0) -> 0 | K37: AMBIENTE | U37: =IF(UPPER(E37)="CONDICIÓN", 10, 0) -> 10 | V37: =IF(UPPER(E37)="CONDICIÓN", H37, "") -> 0
A38: Lencería | C38: 1 | D38: - | E38: Requerido | F38: 0 | G38: 0 | H38: =IF(AND(F38>=C38,F38>0),10,0) -> 0 | K38: AMBIENTE | O38: =IF(UPPER(E38)="REQUERIDO", 10, "") -> 10 | P38: =IF(UPPER(E38)="REQUERIDO", H38, "") -> 0
A39: INSTALACIONES | B39: =B1 -> Anx: | C39: =C$1 -> Requerido: | D39: m² Util: | E39: Tipo: | F39: BUENO: | G39: MALO: | H39: Calif: | I39: Observaciones: | AE39: =SUM(O40:O41) -> 0 | AF39: =SUM(P40:P41) -> 0 | AG39: 0 | AH39: 0 | AI39: 0 | AJ39: 0 | AK39: 0 | AL39: 0 | AM39: 0 | AN39: 0 | AO39: 0 | AP39: 0 | AQ39: 0 | AR39: 0 | AS39: 0 | AT39: 0
A40: Estructura General | B40: DIA_EG_01 | C40: 1 | D40: . | E40: Requerido | F40: 0 | G40: 0 | H40: =IF(AND(F40>=C40,F40>0),10,0) -> 0 | K40: INSTALACIÓN
A41: Instalaciones Generales | B41: DIA_IG_01 | C41: 1 | D41: - | E41: Requerido | F41: 0 | G41: 0 | H41: =IF(AND(F41>=C41,F41>0),10,0) -> 0 | K41: INSTALACIÓN
A42: ÁREA PACIENTE | AE42: =SUM(O43:O48) -> 20 | AF42: =SUM(P43:P48) -> 0 | AG42: 0 | AH42: 0 | AI42: =SUM(S43:S48) -> 0 | AJ42: =SUM(T43:T48) -> 0 | AK42: 0 | AL42: =SUM(V43:V48) -> 0 | AM42: =SUM(W43:W48) -> 0 | AN42: 0 | AO42: =SUM(Y43:Y48) -> 0 | AP42: =SUM(Z43:Z48) -> 0 | AQ42: 0 | AR42: =SUM(AB43:AB48) -> 0 | AS42: =SUM(AC43:AC48) -> 0 | AT42: 0
A43: AMBIENTES | B43: =B1 -> Anx: | C43: =C$1 -> Requerido: | D43: m² Util: | E43: Tipo: | F43: BUENO: | G43: MALO: | H43: Calif: | I43: Observaciones: | AE43: =SUM(O44:O45) -> 20 | AF43: =SUM(P44:P45) -> 0 | AG43: 0 | AH43: 0 | AI43: =SUM(S44:S45) -> 0 | AJ43: =SUM(T44:T45) -> 0 | AK43: 0 | AL43: =SUM(V44:V45) -> 0 | AM43: =SUM(W44:W45) -> 0 | AN43: 0 | AO43: =SUM(Y44:Y45) -> 0 | AP43: =SUM(Z44:Z45) -> 0 | AQ43: 0 | AR43: =SUM(AB44:AB45) -> 0 | AS43: =SUM(AC44:AC45) -> 0 | AT43: 0
A44: Repostería | C44: 1 | D44: - | E44: Requerido | F44: 0 | G44: 0 | H44: =IF(AND(F44>=C44,F44>0),10,0) -> 0 | K44: AMBIENTE | O44: =IF(UPPER(E44)="REQUERIDO", 10, "") -> 10 | P44: =IF(UPPER(E44)="REQUERIDO", H44, "") -> 0
A45: Vestidor de pacientes | C45: 2 | D45: 8m² | E45: Requerido | F45: 0 | G45: 0 | H45: =IF(AND(F45>=C45,F45>0),10,0) -> 0 | K45: AMBIENTE | O45: =IF(UPPER(E45)="REQUERIDO", 10, "") -> 10 | P45: =IF(UPPER(E45)="REQUERIDO", H45, "") -> 0
A46: INSTALACIONES | B46: =B1 -> Anx: | C46: =C$1 -> Requerido: | D46: m² Util: | E46: Tipo: | F46: BUENO: | G46: MALO: | H46: Calif: | I46: Observaciones: | AE46: =SUM(O47:O48) -> 0 | AF46: 0 | AG46: 0 | AH46: 0 | AI46: 0 | AJ46: 0 | AK46: 0 | AL46: 0 | AM46: 0 | AN46: 0 | AO46: 0 | AP46: 0 | AQ46: 0 | AR46: 0 | AS46: 0 | AT46: 0
A47: Estructura General | B47: DIA_EG_01 | C47: 1 | D47: . | E47: Requerido | F47: 0 | G47: 0 | H47: =IF(AND(F47>=C47,F47>0),10,0) -> 0 | K47: INSTALACIÓN
A48: Instalaciones Generales | B48: DIA_IG_01 | C48: 1 | D48: - | E48: Requerido | F48: 0 | G48: 0 | H48: =IF(AND(F48>=C48,F48>0),10,0) -> 0 | K48: INSTALACIÓN
A49: SERVICIO DE DIÁLISIS PERITONEAL | AE49: =SUM(O50:O64) -> 40 | AF49: =SUM(P50:P64) -> 0 | AG49: 0 | AH49: 0 | AI49: =SUM(S50:S64) -> 0 | AJ49: =SUM(T50:T64) -> 0 | AK49: 0 | AL49: =SUM(V50:V64) -> 0 | AM49: =SUM(W50:W64) -> 0 | AN49: 0 | AO49: =SUM(Y50:Y64) -> 0 | AP49: =SUM(Z50:Z64) -> 0 | AQ49: 0 | AR49: =SUM(AB50:AB64) -> 0 | AS49: =SUM(AC50:AC64) -> 0 | AT49: 0
A50: ÁREA DE TRATAMIENTO DE DIÁLISIS PERITONEAL | AE50: =SUM(O51:O64) -> 40 | AF50: =SUM(P51:P64) -> 0 | AG50: 0 | AH50: 0 | AI50: =SUM(S51:S64) -> 0 | AJ50: =SUM(T51:T64) -> 0 | AK50: 0 | AL50: =SUM(V51:V64) -> 0 | AM50: =SUM(W51:W64) -> 0 | AN50: 0 | AO50: =SUM(Y51:Y64) -> 0 | AP50: =SUM(Z51:Z64) -> 0 | AQ50: 0 | AR50: =SUM(AB51:AB64) -> 0 | AS50: =SUM(AC51:AC64) -> 0 | AT50: 0
A51: ÁREA DE TRATAMIENTO | AE51: =SUM(O52:O57) -> 20 | AF51: =SUM(P52:P57) -> 0 | AG51: 0 | AH51: 0 | AI51: =SUM(S52:S57) -> 0 | AJ51: =SUM(T52:T57) -> 0 | AK51: 0 | AL51: =SUM(V52:V57) -> 0 | AM51: =SUM(W52:W57) -> 0 | AN51: 0 | AO51: =SUM(Y52:Y57) -> 0 | AP51: =SUM(Z52:Z57) -> 0 | AQ51: 0 | AR51: =SUM(AB52:AB57) -> 0 | AS51: =SUM(AC52:AC57) -> 0 | AT51: 0
A52: AMBIENTES | B52: =B1 -> Anx: | C52: =C$1 -> Requerido: | D52: m² Util: | E52: Tipo: | F52: BUENO: | G52: MALO: | H52: Calif: | I52: Observaciones: | AE52: =SUM(O52:O54) -> 20 | AF52: =SUM(P53:P54) -> 0 | AG52: =SUM(Q52:Q54) -> 0 | AH52: =SUM(R52:R54) -> 0 | AI52: =SUM(S53:S54) -> 0 | AJ52: =SUM(T52:T54) -> 0 | AK52: 0 | AL52: =SUM(V53:V54) -> 0 | AM52: =SUM(W52:W54) -> 0 | AN52: 0 | AO52: =SUM(Y53:Y54) -> 0 | AP52: =SUM(Z52:Z54) -> 0 | AQ52: 0 | AR52: =SUM(AB53:AB54) -> 0 | AS52: =SUM(AC52:AC54) -> 0 | AT52: 0
A53: Sala de entrenamiento | C53: 1 | D53: - | E53: Requerido | F53: 0 | G53: 0 | H53: =IF(AND(F53>=C53,F53>0),10,0) -> 0 | K53: AMBIENTE | O53: =IF(UPPER(E53)="REQUERIDO", 10, 0) -> 10 | P53: =IF(UPPER(E53)="REQUERIDO", H53, "") -> 0
A54: Área de recambios | C54: 1 | D54: - | E54: Requerido | F54: 0 | G54: 0 | H54: =IF(AND(F54>=C54,F54>0),10,0) -> 0 | K54: AMBIENTE | O54: =IF(UPPER(E54)="REQUERIDO", 10, 0) -> 10 | P54: =IF(UPPER(E54)="REQUERIDO", H54, "") -> 0
A55: INSTALACIONES | B55: =B1 -> Anx: | C55: =C$1 -> Requerido: | D55: m² Util: | E55: Tipo: | F55: BUENO: | G55: MALO: | H55: Calif: | I55: Observaciones: | AE55: =SUM(O56:O57) -> 0 | AF55: 0 | AG55: 0 | AH55: 0 | AI55: 0 | AJ55: 0 | AK55: 0 | AL55: 0 | AM55: 0 | AN55: 0 | AO55: 0 | AP55: 0 | AQ55: 0 | AR55: 0 | AS55: 0 | AT55: 0
A56: Estructura General | B56: DIA_EG_01 | C56: 1 | D56: - | E56: Condición | F56: 0 | G56: 0 | H56: =IF(AND(F56>=C56,F56>0),10,0) -> 0 | K56: INSTALACIÓN
A57: Instalaciones Generales | B57: DIA_IG_01 | C57: 1 | D57: - | E57: Condición | F57: 0 | G57: 0 | H57: =IF(AND(F57>=C57,F57>0),10,0) -> 0 | K57: INSTALACIÓN
A58: ÁREA TÉCNICA | AE58: =SUM(O59:O64) -> 20 | AF58: =SUM(P59:P64) -> 0 | AG58: 0 | AH58: 0 | AI58: =SUM(S59:S64) -> 0 | AJ58: =SUM(T59:T64) -> 0 | AK58: 0 | AL58: =SUM(V59:V64) -> 0 | AM58: =SUM(W59:W64) -> 0 | AN58: 0 | AO58: =SUM(Y59:Y64) -> 0 | AP58: =SUM(Z59:Z64) -> 0 | AQ58: 0 | AR58: =SUM(AB59:AB64) -> 0 | AS58: =SUM(AC59:AC64) -> 0 | AT58: 0
A59: AMBIENTES | B59: =B1 -> Anx: | C59: =C$1 -> Requerido: | D59: m² Util: | E59: Tipo: | F59: BUENO: | G59: MALO: | H59: Calif: | I59: Observaciones: | AE59: =SUM(O60:O61) -> 20 | AF59: =SUM(P60:P61) -> 0 | AG59: =SUM(Q60:Q61) -> 0 | AH59: 0 | AI59: 0 | AJ59: 0 | AK59: 0 | AL59: 0 | AM59: 0 | AN59: 0 | AO59: 0 | AP59: 0 | AQ59: 0 | AR59: 0 | AS59: 0 | AT59: 0
A60: Limpio | C60: 1 | D60: - | E60: Requerido | F60: 0 | G60: 0 | H60: =IF(AND(F60>=C60,F60>0),10,0) -> 0 | K60: AMBIENTE | O60: =IF(UPPER(E60)="REQUERIDO", 10, 0) -> 10 | P60: =IF(UPPER(E60)="REQUERIDO", H60, "") -> 0
A61: Usado | C61: 1 | D61: - | E61: Requerido | F61: 0 | G61: 0 | H61: =IF(AND(F61>=C61,F61>0),10,0) -> 0 | K61: AMBIENTE | O61: =IF(UPPER(E61)="REQUERIDO", 10, 0) -> 10 | P61: =IF(UPPER(E61)="REQUERIDO", H61, "") -> 0
A62: INSTALACIONES | B62: =B1 -> Anx: | C62: =C$1 -> Requerido: | D62: m² Util: | E62: Tipo: | F62: BUENO: | G62: MALO: | H62: Calif: | I62: Observaciones: | AE62: =SUM(O63:O64) -> 0 | AF62: 0 | AG62: 0 | AH62: 0 | AI62: 0 | AJ62: 0 | AK62: 0 | AL62: 0 | AM62: 0 | AN62: 0 | AO62: 0 | AP62: 0 | AQ62: 0 | AR62: 0 | AS62: 0 | AT62: 0
A63: Estructura General | B63: DIA_EG_01 | C63: 1 | D63: - | E63: Requerido | F63: 0 | G63: 0 | H63: =IF(AND(F63>=C63,F63>0),10,0) -> 0 | K63: INSTALACIÓN
A64: Instalaciones Generales | B64: DIA_IG_01 | C64: 1 | D64: - | E64: Requerido | F64: 0 | G64: 0 | H64: =IF(AND(F64>=C64,F64>0),10,0) -> 0 | K64: INSTALACIÓN
A65: SERVICIO DE DIAGNÓSTICO | AE65: =SUM(O66:O82) -> 0 | AF65: =SUM(P66:P82) -> 0 | AG65: 0 | AH65: 0 | AI65: =SUM(S66:S82) -> 0 | AJ65: =SUM(T66:T82) -> 0 | AK65: 50 | AL65: =SUM(V66:V82) -> 0 | AM65: =SUM(W66:W82) -> 0 | AN65: 0 | AO65: =SUM(Y66:Y82) -> 0 | AP65: =SUM(Z66:Z82) -> 0 | AQ65: 0 | AR65: =SUM(AB66:AB82) -> 0 | AS65: =SUM(AC66:AC82) -> 0 | AT65: 0
A66: LABORATORIO - PUESTO DE TOMA DE MUESTRAS | AE66: =SUM(O68:O82) -> 0 | AF66: =SUM(P68:P82) -> 0 | AG66: 0 | AH66: 0 | AI66: =SUM(S68:S82) -> 0 | AJ66: =SUM(T68:T82) -> 0 | AK66: 50 | AL66: =SUM(V68:V82) -> 0 | AM66: =SUM(W68:W82) -> 0 | AN66: 0 | AO66: =SUM(Y68:Y82) -> 0 | AP66: =SUM(Z68:Z82) -> 0 | AQ66: 0 | AR66: =SUM(AB68:AB82) -> 0 | AS66: =SUM(AC68:AC82) -> 0 | AT66: 0
A67: Debe existir un convenio con un Laboratorio clínico externo, licenciado por el MSP , si existiera un puesto de toma de muestras las condiciones se harán requeridas, además debe haber normas de transporte y conservación de Muestras.
A68: ÁREA DE TOMA DE MUESTRAS | AE68: =SUM(O69:O76) -> 0 | AF68: =SUM(P69:P76) -> 0 | AG68: 0 | AH68: 0 | AI68: =SUM(S69:S76) -> 0 | AJ68: =SUM(T69:T76) -> 0 | AK68: 40 | AL68: =SUM(V69:V76) -> 0 | AM68: =SUM(W69:W76) -> 0 | AN68: 0 | AO68: =SUM(Y69:Y76) -> 0 | AP68: =SUM(Z69:Z76) -> 0 | AQ68: 0 | AR68: =SUM(AB69:AB76) -> 0 | AS68: =SUM(AC69:AC76) -> 0 | AT68: 0
A69: AMBIENTES | B69: =B1 -> Anx: | C69: =C$1 -> Requerido: | D69: m² Util: | E69: Tipo: | F69: BUENO: | G69: MALO: | H69: Calif: | I69: Observaciones: | AE69: =SUM(O70:O73) -> 0 | AF69: =SUM(P70:P73) -> 0 | AG69: 0 | AH69: 0 | AI69: =SUM(S70:S73) -> 0 | AJ69: =SUM(T70:T73) -> 0 | AK69: 40 | AL69: =SUM(V70:V73) -> 0 | AM69: =SUM(W70:W73) -> 0 | AN69: 0 | AO69: =SUM(Y70:Y73) -> 0 | AP69: =SUM(Z70:Z73) -> 0 | AQ69: 0 | AR69: =SUM(AB70:AB73) -> 0 | AS69: =SUM(AC70:AC73) -> 0 | AT69: 0
A70: Baterías sanitarias | C70: 2 | D70: - | E70: Condición | F70: 0 | G70: 0 | H70: =IF(AND(F70>=C70,F70>0),10,0) -> 0 | K70: AMBIENTE | U70: =IF(UPPER(E70)="CONDICIÓN", 10, 0) -> 10 | V70: =IF(UPPER(E70)="CONDICIÓN", H70, "") -> 0
A71: Sala de espera | C71: 1 | D71: 9m² | E71: Condición | F71: 0 | G71: 0 | H71: =IF(AND(F71>=C71,F71>0),10,0) -> 0 | K71: AMBIENTE | U71: 10 | V71: 0
A72: Sala de muestras | C72: 1 | D72: - | E72: Condición | F72: 0 | G72: 0 | H72: =IF(AND(F72>=C72,F72>0),10,0) -> 0 | K72: AMBIENTE | U72: 10 | V72: 0
A73: Usado | C73: 1 | D73: - | E73: Condición | F73: 0 | G73: 0 | H73: =IF(AND(F73>=C73,F73>0),10,0) -> 0 | K73: AMBIENTE | U73: 10 | V73: 0
A74: INSTALACIONES | B74: =B1 -> Anx: | C74: =C$1 -> Requerido: | D74: m² Util: | E74: Tipo: | F74: BUENO: | G74: MALO: | H74: Calif: | I74: Observaciones: | AE74: =SUM(O75:O76) -> 0 | AF74: =SUM(P75:P76) -> 0 | AG74: =SUM(Q75:Q76) -> 0 | AH74: 0 | AI74: 0 | AJ74: 0 | AK74: 0 | AL74: 0 | AM74: 0 | AN74: 0 | AO74: 0 | AP74: 0 | AQ74: 0 | AR74: 0 | AS74: 0 | AT74: 0
A75: Estructura General | B75: DIA_EG_01 | C75: 1 | D75: - | E75: Condición | F75: 0 | G75: 0 | H75: =IF(AND(F75>=C75,F75>0),10,0) -> 0 | K75: INSTALACIÓN
A76: Instalaciones Generales | B76: DIA_IG_01 | C76: 1 | D76: - | E76: Condición | F76: 0 | G76: 0 | H76: =IF(AND(F76>=C76,F76>0),10,0) -> 0 | K76: INSTALACIÓN
A77: ÁREA DE PROCESAMIENTO | AE77: =SUM(O78:O82) -> 0 | AF77: =SUM(P78:P82) -> 0 | AG77: 0 | AH77: 0 | AI77: =SUM(S78:S82) -> 0 | AJ77: =SUM(T78:T82) -> 0 | AK77: 10 | AL77: =SUM(V78:V82) -> 0 | AM77: =SUM(W78:W82) -> 0 | AN77: 0 | AO77: =SUM(Y78:Y82) -> 0 | AP77: =SUM(Z78:Z82) -> 0 | AQ77: 0 | AR77: =SUM(AB78:AB82) -> 0 | AS77: =SUM(AC78:AC82) -> 0 | AT77: 0
A78: AMBIENTES | B78: =B1 -> Anx: | C78: =C$1 -> Requerido: | D78: m² Util: | E78: Tipo: | F78: BUENO: | G78: MALO: | H78: Calif: | I78: Observaciones: | AE78: =SUM(O79:O79) -> 0 | AF78: =SUM(P79:P79) -> 0 | AG78: 0 | AH78: 0 | AI78: 0 | AJ78: 0 | AK78: 10 | AL78: 0 | AM78: 0 | AN78: 0 | AO78: 0 | AP78: 0 | AQ78: 0 | AR78: 0 | AS78: 0 | AT78: 0
A79: Área de determinaciones rápidas/ pre análisis | C79: 1 | D79: 6m² | E79: Condición | F79: 0 | G79: 0 | H79: =IF(AND(F79>=C79,F79>0),10,0) -> 0 | K79: AMBIENTE | U79: =IF(UPPER(E79)="CONDICIÓN", 10, 0) -> 10 | V79: =IF(UPPER(E79)="CONDICIÓN", H79, "") -> 0
A80: INSTALACIONES | B80: =B1 -> Anx: | C80: =C$1 -> Requerido: | D80: m² Util: | E80: Tipo: | F80: BUENO: | G80: MALO: | H80: Calif: | I80: Observaciones: | AE80: =SUM(O81:O82) -> 0 | AF80: =SUM(P81:P82) -> 0 | AG80: 0 | AH80: 0 | AI80: 0 | AJ80: 0 | AK80: 0 | AL80: 0 | AM80: 0 | AN80: 0 | AO80: 0 | AP80: 0 | AQ80: 0 | AR80: 0 | AS80: 0 | AT80: 0
A81: Estructura General | B81: DIA_EG_01 | C81: 1 | D81: - | E81: Condición | F81: 0 | G81: 0 | H81: =IF(AND(F81>=C81,F81>0),10,0) -> 0 | K81: INSTALACIÓN
A82: Instalaciones Generales | B82: DIA_IG_01 | C82: 1 | D82: - | E82: Condición | F82: 0 | G82: 0 | H82: =IF(AND(F82>=C82,F82>0),10,0) -> 0 | K82: INSTALACIÓN
A83: SERVICIOS DE APOYO | AE83: =SUM(O84:O131) -> 70 | AF83: =SUM(P84:P131) -> 0 | AG83: 10 | AH83: 0 | AI83: =SUM(S84:S131) -> 20 | AJ83: =SUM(T84:T131) -> 0 | AK83: =SUM(U84:U131) -> 40 | AL83: =SUM(V84:V131) -> 0 | AM83: =SUM(W84:W131) -> 0 | AN83: 0 | AO83: =SUM(Y84:Y131) -> 0 | AP83: =SUM(Z84:Z131) -> 0 | AQ83: 0 | AR83: =SUM(AB84:AB131) -> 0 | AS83: =SUM(AC84:AC131) -> 0 | AT83: 0
A84: FARMACIA | AE84: =SUM(O85:O109) -> 50 | AF84: =SUM(P85:P109) -> 0 | AG84: 0 | AH84: 0 | AI84: =SUM(S85:S109) -> 20 | AJ84: =SUM(T85:T109) -> 0 | AK84: 30 | AL84: =SUM(V85:V109) -> 0 | AM84: =SUM(W85:W109) -> 0 | AN84: 0 | AO84: =SUM(Y85:Y109) -> 0 | AP84: =SUM(Z85:Z109) -> 0 | AQ84: 0 | AR84: =SUM(AB85:AB109) -> 0 | AS84: =SUM(AC85:AC109) -> 0 | AT84: 0
A85: ÁREA ADMINISTRATIVA Y DE PERSONAL | AE85: =SUM(O86:O93) -> 10 | AF85: =SUM(P86:P93) -> 0 | AG85: 0 | AH85: 0 | AI85: =SUM(S86:S93) -> 10 | AJ85: =SUM(T86:T93) -> 0 | AK85: 20 | AL85: =SUM(V86:V93) -> 0 | AM85: =SUM(W86:W93) -> 0 | AN85: 0 | AO85: =SUM(Y86:Y93) -> 0 | AP85: =SUM(Z86:Z93) -> 0 | AQ85: 0 | AR85: =SUM(AB86:AB93) -> 0 | AS85: =SUM(AC86:AC93) -> 0 | AT85: 0
A86: AMBIENTES | B86: =B1 -> Anx: | C86: =C$1 -> Requerido: | D86: m² Util: | E86: Tipo: | F86: BUENO: | G86: MALO: | H86: Calif: | I86: Observaciones: | AE86: =SUM(O87:O90) -> 10 | AF86: =SUM(P87:P90) -> 0 | AG86: 0 | AH86: 0 | AI86: =SUM(S87:S90) -> 10 | AJ86: =SUM(T87:T90) -> 0 | AK86: 20 | AL86: =SUM(V87:V90) -> 0 | AM86: =SUM(W87:W90) -> 0 | AN86: 0 | AO86: =SUM(Y87:Y90) -> 0 | AP86: =SUM(Z87:Z90) -> 0 | AQ86: 0 | AR86: =SUM(AB87:AB90) -> 0 | AS86: =SUM(AC87:AC90) -> 0 | AT86: 0
A87: Baño de personal | C87: 2 | D87: - | E87: Deseable | F87: 0 | G87: 0 | H87: =IF(AND(F87>=C87,F87>0),10,0) -> 0 | K87: AMBIENTE | S87: =IF(UPPER(E87)="DESEABLE", 10, 0) -> 10 | T87: =IF(UPPER(E87)="DESEABLE", H87, "") -> 0
A88: Despacho Químico | C88: 1 | D88: - | E88: Requerido | F88: 0 | G88: 0 | H88: =IF(AND(F88>=C88,F88>0),10,0) -> 0 | K88: AMBIENTE | O88: =IF(UPPER(E88)="REQUERIDO", 10, "") -> 10 | P88: =IF(UPPER(E88)="REQUERIDO", H88, "") -> 0
A89: Secretaría | C89: 1 | D89: - | E89: Condición | F89: 0 | G89: 0 | H89: =IF(AND(F89>=C89,F89>0),10,0) -> 0 | K89: AMBIENTE | U89: =IF(UPPER(E89)="CONDICIÓN", 10, 0) -> 10 | V89: =IF(UPPER(E89)="CONDICIÓN", H89, "") -> 0
A90: Trabajo Administrativo | C90: 1 | D90: - | E90: Condición | F90: 0 | G90: 0 | H90: =IF(AND(F90>=C90,F90>0),10,0) -> 0 | K90: AMBIENTE | U90: 10 | V90: 0
A91: INSTALACIONES | B91: =B1 -> Anx: | C91: =C$1 -> Requerido: | D91: m² Util: | E91: Tipo: | F91: BUENO: | G91: MALO: | H91: Calif: | I91: Observaciones: | AE91: =SUM(O92:O93) -> 0 | AF91: =SUM(P92:P93) -> 0 | AG91: 0 | AH91: 0 | AI91: 0 | AJ91: 0 | AK91: 0 | AL91: 0 | AM91: 0 | AN91: 0 | AO91: 0 | AP91: 0 | AQ91: 0 | AR91: 0 | AS91: 0 | AT91: 0
A92: Estructura General | B92: DIA_EG_01 | C92: 1 | D92: - | E92: Requerido | F92: 0 | G92: 0 | H92: =IF(AND(F92>=C92,F92>0),10,0) -> 0 | K92: INSTALACIÓN
A93: Instalaciones Generales | B93: DIA_IG_01 | C93: 1 | D93: - | E93: Requerido | F93: 0 | G93: 0 | H93: =IF(AND(F93>=C93,F93>0),10,0) -> 0 | K93: INSTALACIÓN
A94: ÁREA DE RECEPCIÓN, ALMACENAMIENTO Y SUMINISTRO (CON CONTROL DE ACCESO ) | AE94: =SUM(O95:O101) -> 10 | AF94: =SUM(P95:P101) -> 0 | AG94: 0 | AH94: 0 | AI94: =SUM(S95:S101) -> 10 | AJ94: =SUM(T95:T101) -> 0 | AK94: 10 | AL94: =SUM(V95:V101) -> 0 | AM94: =SUM(W95:W101) -> 0 | AN94: 0 | AO94: =SUM(Y95:Y101) -> 0 | AP94: =SUM(Z95:Z101) -> 0 | AQ94: 0 | AR94: =SUM(AB95:AB101) -> 0 | AS94: =SUM(AC95:AC101) -> 0 | AT94: 0
A95: AMBIENTES | B95: =B1 -> Anx: | C95: =C$1 -> Requerido: | D95: m² Util: | E95: Tipo: | F95: BUENO: | G95: MALO: | H95: Calif: | I95: Observaciones: | AE95: =SUM(O96:O98) -> 10 | AF95: =SUM(P96:P98) -> 0 | AG95: 0 | AH95: 0 | AI95: 10 | AJ95: 0 | AK95: 10 | AL95: 0 | AM95: 0 | AN95: 0 | AO95: 0 | AP95: 0 | AQ95: 0 | AR95: 0 | AS95: 0 | AT95: 0
A96: Bodega General | C96: 1 | D96: - | E96: Requerido | F96: 0 | G96: 0 | H96: =IF(AND(F96>=C96,F96>0),10,0) -> 0 | K96: AMBIENTE | O96: =IF(UPPER(E96)="REQUERIDO", 10, "") -> 10 | P96: =IF(UPPER(E96)="REQUERIDO", H96, "") -> 0
A97: Recepción-Admisión | C97: 1 | D97: - | E97: Condición | F97: 0 | G97: 0 | H97: =IF(AND(F97>=C97,F97>0),10,0) -> 0 | K97: AMBIENTE | U97: =IF(UPPER(E97)="CONDICIÓN", 10, 0) -> 10 | V97: =IF(UPPER(E97)="CONDICIÓN", H97, "") -> 0
A98: Acceso exterior | C98: 1 | D98: - | E98: Deseable | F98: 0 | G98: 0 | H98: =IF(AND(F98>=C98,F98>0),10,0) -> 0 | K98: AMBIENTE | S98: =IF(UPPER(E98)="DESEABLE", 10, 0) -> 10 | T98: =IF(UPPER(E98)="DESEABLE", H98, "") -> 0
A99: INSTALACIONES | B99: =B1 -> Anx: | C99: =C$1 -> Requerido: | D99: m² Util: | E99: Tipo: | F99: BUENO: | G99: MALO: | H99: Calif: | I99: Observaciones: | AE99: =SUM(O100:O101) -> 0 | AF99: =SUM(P100:P101) -> 0 | AG99: 0 | AH99: 0 | AI99: 0 | AJ99: 0 | AK99: 0 | AL99: 0 | AM99: 0 | AN99: 0 | AO99: 0 | AP99: 0 | AQ99: 0 | AR99: 0 | AS99: 0 | AT99: 0
A100: Estructura General | B100: DIA_EG_01 | C100: 1 | D100: . | E100: Requerido | F100: 0 | G100: 0 | H100: =IF(AND(F100>=C100,F100>0),10,0) -> 0 | K100: INSTALACIÓN
A101: Instalaciones Generales | B101: DIA_IG_01 | C101: 1 | D101: - | E101: Requerido | F101: 0 | G101: 0 | H101: =IF(AND(F101>=C101,F101>0),10,0) -> 0 | K101: INSTALACIÓN
A102: ÁREA TÉCNICA | AE102: =SUM(O103:O109) -> 30 | AF102: =SUM(P103:P109) -> 0 | AG102: 0 | AH102: 0 | AI102: =SUM(S103:S109) -> 0 | AJ102: =SUM(T103:T109) -> 0 | AK102: 0 | AL102: =SUM(V103:V109) -> 0 | AM102: =SUM(W103:W109) -> 0 | AN102: 0 | AO102: =SUM(Y103:Y109) -> 0 | AP102: =SUM(Z103:Z109) -> 0 | AQ102: 0 | AR102: =SUM(AB103:AB109) -> 0 | AS102: =SUM(AC103:AC109) -> 0 | AT102: 0
A103: AMBIENTES | B103: =B1 -> Anx: | C103: =C$1 -> Requerido: | D103: m² Util: | E103: Tipo: | F103: BUENO: | G103: MALO: | H103: Calif: | I103: Observaciones: | AE103: =SUM(O104:O106) -> 30 | AF103: =SUM(P104:P106) -> 0 | AG103: 0 | AH103: 0 | AI103: =SUM(S104:S106) -> 0 | AJ103: =SUM(T104:T106) -> 0 | AK103: 0 | AL103: =SUM(V104:V106) -> 0 | AM103: =SUM(W104:W106) -> 0 | AN103: 0 | AO103: =SUM(Y104:Y106) -> 0 | AP103: =SUM(Z104:Z106) -> 0 | AQ103: 0 | AR103: =SUM(AB104:AB106) -> 0 | AS103: =SUM(AC104:AC106) -> 0 | AT103: 0
A104: Zona de Dispensación Externa | C104: 1 | D104: - | E104: Requerido | F104: 0 | G104: 0 | H104: =IF(AND(F104>=C104,F104>0),10,0) -> 0 | K104: AMBIENTE | O104: =IF(UPPER(E104)="REQUERIDO", 10, "") -> 10 | P104: =IF(UPPER(E104)="REQUERIDO", H104, "") -> 0
A105: Zona de lavado de manos | C105: 1 | D105: - | E105: Requerido | F105: 0 | G105: 0 | H105: =IF(AND(F105>=C105,F105>0),10,0) -> 0 | K105: AMBIENTE | O105: =IF(UPPER(E105)="REQUERIDO", 10, "") -> 10 | P105: =IF(UPPER(E105)="REQUERIDO", H105, "") -> 0
A106: Zona de refrigeradores y congeladores | C106: 1 | D106: - | E106: Requerido | F106: 0 | G106: 0 | H106: =IF(AND(F106>=C106,F106>0),10,0) -> 0 | K106: AMBIENTE | O106: =IF(UPPER(E106)="REQUERIDO", 10, "") -> 10 | P106: =IF(UPPER(E106)="REQUERIDO", H106, "") -> 0
A107: INSTALACIONES | B107: =B1 -> Anx: | C107: =C$1 -> Requerido: | D107: m² Util: | E107: Tipo: | F107: BUENO: | G107: MALO: | H107: Calif: | I107: Observaciones: | AE107: =SUM(O108:O109) -> 0 | AF107: 0 | AG107: 0 | AH107: 0 | AI107: 0 | AJ107: 0 | AK107: 0 | AL107: 0 | AM107: 0 | AN107: 0 | AO107: 0 | AP107: 0 | AQ107: 0 | AR107: 0 | AS107: 0 | AT107: 0
A108: Estructura General | B108: DIA_EG_01 | C108: 1 | D108: . | E108: Requerido | F108: 0 | G108: 0 | H108: =IF(AND(F108>=C108,F108>0),10,0) -> 0 | K108: INSTALACIÓN
A109: Instalaciones Generales | B109: DIA_IG_01 | C109: 1 | D109: - | E109: Requerido | F109: 0 | G109: 0 | H109: =IF(AND(F109>=C109,F109>0),10,0) -> 0 | K109: INSTALACIÓN
A110: INFORMÁTICA | AE110: =SUM(O111:O117) -> 0 | AF110: =SUM(P111:P117) -> 0 | AG110: 0 | AH110: 0 | AI110: =SUM(S111:S117) -> 0 | AJ110: =SUM(T111:T117) -> 0 | AK110: 10 | AL110: =SUM(V111:V117) -> 0 | AM110: =SUM(W111:W117) -> 0 | AN110: 0 | AO110: =SUM(Y111:Y117) -> 0 | AP110: =SUM(Z111:Z117) -> 0 | AQ110: 0 | AR110: =SUM(AB111:AB117) -> 0 | AS110: =SUM(AC111:AC117) -> 0 | AT110: 0
A111: ÁREA TÉCNICA | AE111: =SUM(O112:O117) -> 0 | AF111: =SUM(P112:P117) -> 0 | AG111: 0 | AH111: 0 | AI111: 0 | AJ111: 0 | AK111: 10 | AL111: 0 | AM111: 0 | AN111: 0 | AO111: 0 | AP111: 0 | AQ111: 0 | AR111: 0 | AS111: 0 | AT111: 0
A112: AMBIENTES | B112: =B1 -> Anx: | C112: =C$1 -> Requerido: | D112: m² Util: | E112: Tipo: | F112: BUENO: | G112: MALO: | H112: Calif: | I112: Observaciones: | AE112: =SUM(O113:O114) -> 0 | AF112: =SUM(P113:P114) -> 0 | AG112: 0 | AH112: 0 | AI112: 0 | AJ112: 0 | AK112: 10 | AL112: 0 | AM112: 0 | AN112: 0 | AO112: 0 | AP112: 0 | AQ112: 0 | AR112: 0 | AS112: 0 | AT112: 0
A113: Zona de trabajo | C113: 1 | D113: - | E113: Condición | F113: 0 | G113: 0 | H113: =IF(AND(F113>=C113,F113>0),10,0) -> 0 | K113: AMBIENTE | U113: =IF(UPPER(E113)="CONDICIÓN", 10, 0) -> 10 | V113: =IF(UPPER(E113)="CONDICIÓN", H113, "") -> 0
A114: Zona de Servidores | C114: 1 | D114: - | E114: Condición | F114: 0 | G114: 0 | H114: =IF(AND(F114>=C114,F114>0),10,0) -> 0 | K114: INSTALACIÓN
A115: INSTALACIONES | B115: =B1 -> Anx: | C115: =C$1 -> Requerido: | D115: m² Util: | E115: Tipo: | F115: BUENO: | G115: MALO: | H115: Calif: | I115: Observaciones: | AE115: =SUM(O116:O117) -> 0 | AF115: =SUM(P116:P117) -> 0 | AG115: 0 | AH115: 0 | AI115: 0 | AJ115: 0 | AK115: 0 | AL115: 0 | AM115: 0 | AN115: 0 | AO115: 0 | AP115: 0 | AQ115: 0 | AR115: 0 | AS115: 0 | AT115: 0
A116: Estructura General | B116: DIA_EG_01 | C116: 1 | D116: - | E116: Condición | F116: 0 | G116: 0 | H116: =IF(AND(F116>=C116,F116>0),10,0) -> 0 | K116: INSTALACIÓN
A117: Instalaciones Generales | B117: DIA_IG_01 | C117: 1 | D117: - | E117: Condición | F117: 0 | G117: 0 | H117: =IF(AND(F117>=C117,F117>0),10,0) -> 0 | K117: INSTALACIÓN
A118: REGISTROS Y ARCHIVOS CLÍNICOS | AE118: =SUM(O119:O131) -> 20 | AF118: =SUM(P119:P131) -> 0 | AG118: 10 | AH118: 0 | AI118: 0 | AJ118: 0 | AK118: 0 | AL118: 0 | AM118: 0 | AN118: 0 | AO118: 0 | AP118: 0 | AQ118: 0 | AR118: 0 | AS118: 0 | AT118: 0
A119: ÁREA DE ARCHIVO | AE119: =SUM(O120:O124) -> 10 | AF119: =SUM(P120:P124) -> 0 | AG119: 0 | AH119: 0 | AI119: 0 | AJ119: 0 | AK119: 0 | AL119: 0 | AM119: 0 | AN119: 0 | AO119: 0 | AP119: 0 | AQ119: 0 | AR119: 0 | AS119: 0 | AT119: 0
A120: AMBIENTES | B120: =B1 -> Anx: | C120: =C$1 -> Requerido: | D120: m² Util: | E120: Tipo: | F120: BUENO: | G120: MALO: | H120: Calif: | I120: Observaciones: | AE120: =SUM(O121:O121) -> 10 | AF120: =SUM(P121:P121) -> 0 | AG120: 0 | AH120: 0 | AI120: 0 | AJ120: 0 | AK120: 0 | AL120: 0 | AM120: 0 | AN120: 0 | AO120: 0 | AP120: 0 | AQ120: 0 | AR120: 0 | AS120: 0 | AT120: 0
A121: Archivo de historias | C121: 1 | D121: - | E121: Requerido | F121: 0 | G121: 0 | H121: =IF(AND(F121>=C121,F121>0),10,0) -> 0 | K121: AMBIENTE | O121: =IF(UPPER(E121)="REQUERIDO", 10, "") -> 10 | P121: =IF(UPPER(E121)="REQUERIDO", H121, "") -> 0
A122: INSTALACIONES | B122: =B1 -> Anx: | C122: =C$1 -> Requerido: | D122: m² Util: | E122: Tipo: | F122: =F$1 -> BUENO: | G122: MALO: | H122: Calif: | I122: Observaciones: | AE122: =SUM(O123:O124) -> 0 | AF122: 0 | AG122: 0 | AH122: 0 | AI122: 0 | AJ122: 0 | AK122: 0 | AL122: 0 | AM122: 0 | AN122: 0 | AO122: 0 | AP122: 0 | AQ122: 0 | AR122: 0 | AS122: 0 | AT122: 0
A123: Estructura General | B123: DIA_EG_01 | C123: 1 | D123: . | E123: Requerido | F123: 0 | G123: 0 | H123: =IF(AND(F123>=C123,F123>0),10,0) -> 0 | K123: INSTALACIÓN
A124: Instalaciones Generales | B124: DIA_IG_01 | C124: 1 | D124: - | E124: Requerido | F124: 0 | G124: 0 | H124: =IF(AND(F124>=C124,F124>0),10,0) -> 0 | K124: INSTALACIÓN
A125: ÁREA TÉCNICA | AE125: =SUM(O126:O131) -> 10 | AF125: =SUM(P126:P131) -> 0 | AG125: 10 | AH125: 0 | AI125: 0 | AJ125: 0 | AK125: 0 | AL125: 0 | AM125: 0 | AN125: 0 | AO125: 0 | AP125: 0 | AQ125: 0 | AR125: 0 | AS125: 0 | AT125: 0
A126: AMBIENTES | B126: =B1 -> Anx: | C126: =C$1 -> Requerido: | D126: m² Util: | E126: Tipo: | F126: BUENO: | G126: MALO: | H126: Calif: | I126: Observaciones: | AE126: =SUM(O127:O128) -> 10 | AF126: =SUM(P127:P128) -> 0 | AG126: 10 | AH126: 0 | AI126: 0 | AJ126: 0 | AK126: 0 | AL126: 0 | AM126: 0 | AN126: 0 | AO126: 0 | AP126: 0 | AQ126: 0 | AR126: 0 | AS126: 0 | AT126: 0
A127: Escaneado | C127: 1 | D127: - | E127: Opcional | F127: 0 | G127: 0 | H127: =IF(AND(F127>=C127,F127>0),10,0) -> 0 | K127: AMBIENTE | Q127: =IF(UPPER(E127)="OPCIONAL", 10, 0) -> 10 | R127: =IF(UPPER(E127)="OPCIONAL", H127, "") -> 0
A128: Zona de trabajo | C128: 1 | D128: - | E128: Requerido | F128: 0 | G128: 0 | H128: =IF(AND(F128>=C128,F128>0),10,0) -> 0 | K128: AMBIENTE | O128: =IF(UPPER(E128)="REQUERIDO", 10, "") -> 10 | P128: =IF(UPPER(E128)="REQUERIDO", H128, "") -> 0
A129: INSTALACIONES | B129: =B1 -> Anx: | C129: =C$1 -> Requerido: | D129: m² Util: | E129: Tipo: | F129: BUENO: | G129: MALO: | H129: Calif: | I129: Observaciones: | AE129: =SUM(O130:O131) -> 0 | AF129: 0 | AG129: 0 | AH129: 0 | AI129: 0 | AJ129: 0 | AK129: 0 | AL129: 0 | AM129: 0 | AN129: 0 | AO129: 0 | AP129: 0 | AQ129: 0 | AR129: 0 | AS129: 0 | AT129: 0
A130: Estructura General | B130: DIA_EG_01 | C130: 1 | D130: - | E130: Requerido | F130: 0 | G130: 0 | H130: =IF(AND(F130>=C130,F130>0),10,0) -> 0 | K130: INSTALACIÓN
A131: Instalaciones Generales | B131: DIA_IG_01 | C131: 1 | D131: - | E131: Requerido | F131: 0 | G131: 0 | H131: =IF(AND(F131>=C131,F131>0),10,0) -> 0 | K131: INSTALACIÓN
A132: SERVICIO DE ADMINISTRACIÓN | AE132: =SUM(O133:O162) -> 40 | AF132: =SUM(P133:P162) -> 0 | AG132: 0 | AH132: 0 | AI132: =SUM(S133:S162) -> 0 | AJ132: =SUM(T133:T162) -> 0 | AK132: 50 | AL132: =SUM(V133:V162) -> 0 | AM132: =SUM(W133:W162) -> 0 | AN132: 0 | AO132: =SUM(Y133:Y162) -> 0 | AP132: =SUM(Z133:Z162) -> 0 | AQ132: 0 | AR132: =SUM(AB133:AB162) -> 0 | AS132: =SUM(AC133:AC162) -> 0 | AT132: 0
A133: DIRECCIÓN Y GESTIÓN ADMINISTRATIVA | AE133: =SUM(O134:O162) -> 40 | AF133: =SUM(P134:P162) -> 0 | AG133: 0 | AH133: 0 | AI133: =SUM(S134:S162) -> 0 | AJ133: =SUM(T134:T162) -> 0 | AK133: 50 | AL133: =SUM(V134:V162) -> 0 | AM133: =SUM(W134:W162) -> 0 | AN133: 0 | AO133: =SUM(Y134:Y162) -> 0 | AP133: =SUM(Z134:Z162) -> 0 | AQ133: 0 | AR133: =SUM(AB134:AB162) -> 0 | AS133: =SUM(AC134:AC162) -> 0 | AT133: 0
A134: DIRECCIÓN | AE134: =SUM(O135:O142) -> 30 | AF134: =SUM(P135:P142) -> 0 | AG134: 0 | AH134: 0 | AI134: =SUM(S135:S142) -> 0 | AJ134: =SUM(T135:T142) -> 0 | AK134: 10 | AL134: =SUM(V135:V142) -> 0 | AM134: =SUM(W135:W142) -> 0 | AN134: 0 | AO134: =SUM(Y135:Y142) -> 0 | AP134: =SUM(Z135:Z142) -> 0 | AQ134: 0 | AR134: =SUM(AB135:AB142) -> 0 | AS134: =SUM(AC135:AC142) -> 0 | AT134: 0
A135: AMBIENTES | B135: =B1 -> Anx: | C135: =C$1 -> Requerido: | D135: m² Util: | E135: Tipo: | F135: BUENO: | G135: MALO: | H135: Calif: | I135: Observaciones: | AE135: =SUM(O136:O139) -> 30 | AF135: =SUM(P136:P139) -> 0 | AG135: =SUM(Q136:Q139) -> 0 | AH135: 0 | AI135: 0 | AJ135: =SUM(T136:T139) -> 0 | AK135: 10 | AL135: 0 | AM135: =SUM(W136:W139) -> 0 | AN135: 0 | AO135: 0 | AP135: =SUM(Z136:Z139) -> 0 | AQ135: 0 | AR135: 0 | AS135: =SUM(AC136:AC139) -> 0 | AT135: 0
A136: Despacho de Director | C136: 1 | D136: - | E136: Requerido | F136: 0 | G136: 0 | H136: =IF(AND(F136>=C136,F136>0),10,0) -> 0 | K136: AMBIENTE | O136: =IF(UPPER(E136)="REQUERIDO", 10, "") -> 10 | P136: =IF(UPPER(E136)="REQUERIDO", H136, "") -> 0
A137: Sala de espera | C137: 1 | D137: - | E137: Condición | F137: 0 | G137: 0 | H137: =IF(AND(F137>=C137,F137>0),10,0) -> 0 | K137: AMBIENTE | U137: =IF(UPPER(E137)="CONDICIÓN", 10, 0) -> 10 | V137: =IF(UPPER(E137)="CONDICIÓN", H137, "") -> 0
A138: Secretaría | C138: 1 | D138: - | E138: Requerido | F138: 0 | G138: 0 | H138: =IF(AND(F138>=C138,F138>0),10,0) -> 0 | K138: AMBIENTE | O138: =IF(UPPER(E138)="REQUERIDO", 10, "") -> 10 | P138: =IF(UPPER(E138)="REQUERIDO", H138, "") -> 0
A139: Despacho de Jefe de Enfermeras | C139: 1 | D139: - | E139: Requerido | F139: 0 | G139: 0 | H139: =IF(AND(F139>=C139,F139>0),10,0) -> 0 | K139: AMBIENTE | O139: =IF(UPPER(E139)="REQUERIDO", 10, "") -> 10 | P139: =IF(UPPER(E139)="REQUERIDO", H139, "") -> 0
A140: INSTALACIONES | B140: =B1 -> Anx: | C140: =C$1 -> Requerido: | D140: m² Util: | E140: Tipo: | F140: BUENO: | G140: MALO: | H140: Calif: | I140: Observaciones: | AE140: =SUM(O141:O142) -> 0 | AF140: 0 | AG140: 0 | AH140: 0 | AI140: 0 | AJ140: 0 | AK140: 0 | AL140: 0 | AM140: 0 | AN140: 0 | AO140: 0 | AP140: 0 | AQ140: 0 | AR140: 0 | AS140: 0 | AT140: 0
A141: Estructura General | B141: DIA_EG_01 | C141: 1 | D141: - | E141: Requerido | F141: 0 | G141: 0 | H141: =IF(AND(F141>=C141,F141>0),10,0) -> 0 | K141: INSTALACIÓN
A142: Instalaciones Generales | B142: DIA_IG_01 | C142: 1 | D142: - | E142: Requerido | F142: 0 | G142: 0 | H142: =IF(AND(F142>=C142,F142>0),10,0) -> 0 | K142: INSTALACIÓN
A143: DIRECCIÓN DE TALENTO HUMANO | AE143: =SUM(O144:O148) -> 0 | AF143: =SUM(P144:P148) -> 0 | AG143: 0 | AH143: 0 | AI143: =SUM(S144:S148) -> 0 | AJ143: =SUM(T144:T148) -> 0 | AK143: 10 | AL143: =SUM(V144:V148) -> 0 | AM143: =SUM(W144:W148) -> 0 | AN143: 0 | AO143: =SUM(Y144:Y148) -> 0 | AP143: =SUM(Z144:Z148) -> 0 | AQ143: 0 | AR143: =SUM(AB144:AB148) -> 0 | AS143: =SUM(AC144:AC148) -> 0 | AT143: 0
A144: AMBIENTES | B144: =B1 -> Anx: | C144: =C$1 -> Requerido: | D144: m² Util: | E144: Tipo: | F144: BUENO: | G144: MALO: | H144: Calif: | I144: Observaciones: | AE144: =SUM(O145:O145) -> 0 | AF144: =SUM(P145:P145) -> 0 | AG144: 0 | AH144: 0 | AI144: =SUM(S145:S145) -> 0 | AJ144: =SUM(T145:T145) -> 0 | AK144: 10 | AL144: =SUM(V145:V145) -> 0 | AM144: =SUM(W145:W145) -> 0 | AN144: 0 | AO144: =SUM(Y145:Y145) -> 0 | AP144: =SUM(Z145:Z145) -> 0 | AQ144: 0 | AR144: =SUM(AB145:AB145) -> 0 | AS144: =SUM(AC145:AC145) -> 0 | AT144: 0
A145: Despacho de Responsable | C145: 1 | D145: - | E145: Condición | F145: 0 | G145: 0 | H145: =IF(AND(F145>=C145,F145>0),10,0) -> 0 | K145: AMBIENTE | U145: =IF(UPPER(E145)="CONDICIÓN", 10, 0) -> 10 | V145: =IF(UPPER(E145)="CONDICIÓN", H145, "") -> 0
A146: INSTALACIONES | B146: =B1 -> Anx: | C146: =C$1 -> Requerido: | D146: m² Util: | E146: Tipo: | F146: BUENO: | G146: MALO: | H146: Calif: | I146: Observaciones: | AE146: =SUM(O147:O148) -> 0 | AF146: 0 | AG146: 0 | AH146: 0 | AI146: 0 | AJ146: 0 | AK146: 0 | AL146: 0 | AM146: 0 | AN146: 0 | AO146: 0 | AP146: 0 | AQ146: 0 | AR146: 0 | AS146: 0 | AT146: 0
A147: Estructura General | B147: DIA_EG_01 | C147: 1 | D147: . | E147: Condición | F147: 0 | G147: 0 | H147: =IF(AND(F147>=C147,F147>0),10,0) -> 0 | K147: INSTALACIÓN
A148: Instalaciones Generales | B148: DIA_IG_01 | C148: 1 | D148: - | E148: Condición | F148: 0 | G148: 0 | H148: =IF(AND(F148>=C148,F148>0),10,0) -> 0 | K148: INSTALACIÓN
A149: DIRECCIÓN ADMINISTRATIVO-FINANCIERA | AE149: =SUM(O150:O154) -> 0 | AF149: =SUM(P150:P154) -> 0 | AG149: 0 | AH149: 0 | AI149: =SUM(S150:S154) -> 0 | AJ149: =SUM(T150:T154) -> 0 | AK149: 10 | AL149: =SUM(V150:V154) -> 0 | AM149: =SUM(W150:W154) -> 0 | AN149: 0 | AO149: =SUM(Y150:Y154) -> 0 | AP149: =SUM(Z150:Z154) -> 0 | AQ149: 0 | AR149: =SUM(AB150:AB154) -> 0 | AS149: =SUM(AC150:AC154) -> 0 | AT149: 0
A150: AMBIENTES | B150: =B1 -> Anx: | C150: =C$1 -> Requerido: | D150: m² Util: | E150: Tipo: | F150: BUENO: | G150: MALO: | H150: Calif: | I150: Observaciones: | AE150: =SUM(O151:O151) -> 0 | AF150: =SUM(P151:P151) -> 0 | AG150: 0 | AH150: 0 | AI150: 0 | AJ150: 0 | AK150: 10 | AL150: 0 | AM150: 0 | AN150: 0 | AO150: 0 | AP150: 0 | AQ150: 0 | AR150: 0 | AS150: 0 | AT150: 0
A151: Zona de trabajo de Técnico financiero | C151: 1 | D151: - | E151: Condición | F151: 0 | G151: 0 | H151: =IF(AND(F151>=C151,F151>0),10,0) -> 0 | K151: AMBIENTE | U151: =IF(UPPER(E151)="CONDICIÓN", 10, 0) -> 10 | V151: =IF(UPPER(E151)="CONDICIÓN", H151, "") -> 0
A152: INSTALACIONES | B152: =B1 -> Anx: | C152: =C$1 -> Requerido: | D152: m² Util: | E152: Tipo: | F152: BUENO: | G152: MALO: | H152: Calif: | I152: Observaciones: | AE152: =SUM(O153:O154) -> 0 | AF152: 0 | AG152: 0 | AH152: 0 | AI152: 0 | AJ152: 0 | AK152: 0 | AL152: 0 | AM152: 0 | AN152: 0 | AO152: 0 | AP152: 0 | AQ152: 0 | AR152: 0 | AS152: 0 | AT152: 0
A153: Estructura General | B153: DIA_EG_01 | C153: 1 | D153: . | E153: Condición | F153: 0 | G153: 0 | H153: =IF(AND(F153>=C153,F153>0),10,0) -> 0 | K153: INSTALACIÓN
A154: Instalaciones Generales | B154: DIA_IG_01 | C154: 1 | D154: - | E154: Condición | F154: 0 | G154: 0 | H154: =IF(AND(F154>=C154,F154>0),10,0) -> 0 | K154: INSTALACIÓN
A155: ZONA DE APOYO DE LA DIRECCIÓN | AE155: =SUM(O156:O162) -> 10 | AF155: =SUM(P156:P162) -> 0 | AG155: 0 | AH155: 0 | AI155: =SUM(S156:S162) -> 0 | AJ155: =SUM(T156:T162) -> 0 | AK155: 20 | AL155: =SUM(V156:V162) -> 0 | AM155: =SUM(W156:W162) -> 0 | AN155: 0 | AO155: =SUM(Y156:Y162) -> 0 | AP155: =SUM(Z156:Z162) -> 0 | AQ155: 0 | AR155: =SUM(AB156:AB162) -> 0 | AS155: =SUM(AC156:AC162) -> 0 | AT155: 0
A156: AMBIENTES | B156: =B1 -> Anx: | C156: =C$1 -> Requerido: | D156: m² Util: | E156: Tipo: | F156: BUENO: | G156: MALO: | H156: Calif: | I156: Observaciones: | AE156: =SUM(O157:O159) -> 10 | AF156: =SUM(P157:P159) -> 0 | AG156: 0 | AH156: 0 | AI156: =SUM(S157:S159) -> 0 | AJ156: =SUM(T157:T159) -> 0 | AK156: 20 | AL156: =SUM(V157:V159) -> 0 | AM156: =SUM(W157:W159) -> 0 | AN156: 0 | AO156: =SUM(Y157:Y159) -> 0 | AP156: =SUM(Z157:Z159) -> 0 | AQ156: 0 | AR156: =SUM(AB157:AB159) -> 0 | AS156: =SUM(AC157:AC159) -> 0 | AT156: 0
A157: Baño de personal | C157: 2 | D157: - | E157: Requerido | F157: 0 | G157: 0 | H157: =IF(AND(F157>=C157,F157>0),10,0) -> 0 | K157: AMBIENTE | O157: =IF(UPPER(E157)="REQUERIDO", 10, "") -> 10 | P157: =IF(UPPER(E157)="REQUERIDO", H157, "") -> 0
A158: Cafetería | C158: 1 | D158: - | E158: Condición | F158: 0 | G158: 0 | H158: =IF(AND(F158>=C158,F158>0),10,0) -> 0 | K158: AMBIENTE | U158: =IF(UPPER(E158)="CONDICIÓN", 10, 0) -> 10 | V158: =IF(UPPER(E158)="CONDICIÓN", H158, "") -> 0
A159: Sala de reuniones | C159: 1 | D159: - | E159: Condición | F159: 0 | G159: 0 | H159: =IF(AND(F159>=C159,F159>0),10,0) -> 0 | K159: AMBIENTE | U159: 10 | V159: 0
A160: INSTALACIONES | B160: =B1 -> Anx: | C160: =C$1 -> Requerido: | D160: m² Util: | E160: Tipo: | F160: BUENO: | G160: MALO: | H160: Calif: | I160: Observaciones: | AE160: =SUM(O161:O162) -> 0 | AF160: 0 | AG160: 0 | AH160: 0 | AI160: 0 | AJ160: 0 | AK160: 0 | AL160: 0 | AM160: 0 | AN160: 0 | AO160: 0 | AP160: 0 | AQ160: 0 | AR160: 0 | AS160: 0 | AT160: 0
A161: Estructura General | B161: DIA_EG_01 | C161: 1 | D161: - | E161: Requerido | F161: 0 | G161: 0 | H161: =IF(AND(F161>=C161,F161>0),10,0) -> 0 | K161: INSTALACIÓN
A162: Instalaciones Generales | B162: DIA_IG_01 | C162: 1 | D162: - | E162: Requerido | F162: 0 | G162: 0 | H162: =IF(AND(F162>=C162,F162>0),10,0) -> 0 | K162: INSTALACIÓN
A163: SERVICIOS GENERALES | AE163: =SUM(O164:O209) -> 70 | AF163: =SUM(P164:P209) -> 0 | AG163: =SUM(Q164:Q209) -> 10 | AH163: 0 | AI163: =SUM(S164:S209) -> 0 | AJ163: =SUM(T164:T209) -> 0 | AK163: 10 | AL163: =SUM(V164:V209) -> 0 | AM163: =SUM(W164:W209) -> 0 | AN163: 0 | AO163: =SUM(Y164:Y209) -> 0 | AP163: =SUM(Z164:Z209) -> 0 | AQ163: 0 | AR163: =SUM(AB164:AB209) -> 0 | AS163: =SUM(AC164:AC209) -> 20 | AT163: =SUM(AD164:AD209) -> 0
A164: BODEGA | AE164: =SUM(O165:O177) -> 10 | AF164: =SUM(P165:P177) -> 0 | AG164: =SUM(Q165:Q177) -> 10 | AH164: =SUM(R165:R177) -> 0 | AI164: 0 | AJ164: 0 | AK164: 0 | AL164: 0 | AM164: 0 | AN164: 0 | AO164: 0 | AP164: 0 | AQ164: 0 | AR164: 0 | AS164: 0 | AT164: 0
A165: ÁREA DE ACCESO DE RECEPCION | AE165: =SUM(O166:O171) -> 0 | AF165: =SUM(P166:P171) -> 0 | AG165: 10 | AH165: 0 | AI165: =SUM(S166:S171) -> 0 | AJ165: =SUM(T166:T171) -> 0 | AK165: 0 | AL165: =SUM(V166:V171) -> 0 | AM165: =SUM(W166:W171) -> 0 | AN165: 0 | AO165: =SUM(Y166:Y171) -> 0 | AP165: =SUM(Z166:Z171) -> 0 | AQ165: 0 | AR165: =SUM(AB166:AB171) -> 0 | AS165: =SUM(AC166:AC171) -> 0 | AT165: 0
A166: AMBIENTES | B166: =B1 -> Anx: | C166: =C$1 -> Requerido: | D166: m² Util: | E166: Tipo: | F166: BUENO: | G166: MALO: | H166: Calif: | I166: Observaciones: | AE166: =SUM(O167:O168) -> 0 | AF166: =SUM(P167:P168) -> 0 | AG166: 10 | AH166: 0 | AI166: =SUM(S167:S168) -> 0 | AJ166: =SUM(T167:T168) -> 0 | AK166: 0 | AL166: =SUM(V167:V168) -> 0 | AM166: =SUM(W167:W168) -> 0 | AN166: 0 | AO166: =SUM(Y167:Y168) -> 0 | AP166: =SUM(Z167:Z168) -> 0 | AQ166: 0 | AR166: =SUM(AB167:AB168) -> 0 | AS166: =SUM(AC167:AC168) -> 0 | AT166: 0
A167: Muelle de descarga | C167: 1 | D167: - | E167: Opcional | F167: 0 | G167: 0 | H167: =IF(AND(F167>=C167,F167>0),10,0) -> 0 | K167: INSTALACIÓN
A168: Recepción-Admisión | C168: 1 | D168: 6m² | E168: Opcional | F168: 0 | G168: 0 | H168: =IF(AND(F168>=C168,F168>0),10,0) -> 0 | K168: AMBIENTE | Q168: =IF(UPPER(E168)="OPCIONAL", 10, 0) -> 10 | R168: =IF(UPPER(E168)="OPCIONAL", H168, "") -> 0
A169: INSTALACIONES | B169: =B1 -> Anx: | C169: =C$1 -> Requerido: | D169: m² Util: | E169: Tipo: | F169: BUENO: | G169: MALO: | H169: Calif: | I169: Observaciones: | AE169: =SUM(O170:O171) -> 0 | AF169: 0 | AG169: 0 | AH169: 0 | AI169: 0 | AJ169: 0 | AK169: 0 | AL169: 0 | AM169: 0 | AN169: 0 | AO169: 0 | AP169: 0 | AQ169: 0 | AR169: 0 | AS169: 0 | AT169: 0
A170: Estructura General | B170: DIA_EG_01 | C170: 1 | D170: - | E170: Opcional | F170: 0 | G170: 0 | H170: =IF(AND(F170>=C170,F170>0),10,0) -> 0 | K170: INSTALACIÓN
A171: Instalaciones Generales | B171: DIA_IG_01 | C171: 1 | D171: - | E171: Opcional | F171: 0 | G171: 0 | H171: =IF(AND(F171>=C171,F171>0),10,0) -> 0 | K171: INSTALACIÓN
A172: ÁREA DE ALMACENES | AE172: =SUM(O173:O177) -> 10 | AF172: =SUM(P173:P177) -> 0 | AG172: 0 | AH172: 0 | AI172: =SUM(S173:S177) -> 0 | AJ172: =SUM(T173:T177) -> 0 | AK172: 0 | AL172: =SUM(V173:V177) -> 0 | AM172: =SUM(W173:W177) -> 0 | AN172: 0 | AO172: =SUM(Y173:Y177) -> 0 | AP172: =SUM(Z173:Z177) -> 0 | AQ172: 0 | AR172: =SUM(AB173:AB177) -> 0 | AS172: =SUM(AC173:AC177) -> 0 | AT172: 0
A173: AMBIENTES | B173: =B1 -> Anx: | C173: =C$1 -> Requerido: | D173: m² Util: | E173: Tipo: | F173: BUENO: | G173: MALO: | H173: Calif: | I173: Observaciones: | AE173: =SUM(O174:O174) -> 10 | AF173: =SUM(P174:P174) -> 0 | AG173: 0 | AH173: 0 | AI173: =SUM(S174:S174) -> 0 | AJ173: =SUM(T174:T174) -> 0 | AK173: 0 | AL173: =SUM(V174:V174) -> 0 | AM173: =SUM(W174:W174) -> 0 | AN173: 0 | AO173: =SUM(Y174:Y174) -> 0 | AP173: =SUM(Z174:Z174) -> 0 | AQ173: 0 | AR173: =SUM(AB174:AB174) -> 0 | AS173: =SUM(AC174:AC174) -> 0 | AT173: 0
A174: Bodega General | C174: 1 | D174: - | E174: Requerido | F174: 0 | G174: 0 | H174: =IF(AND(F174>=C174,F174>0),10,0) -> 0 | K174: AMBIENTE | O174: =IF(UPPER(E174)="REQUERIDO", 10, "") -> 10 | P174: =IF(UPPER(E174)="REQUERIDO", H174, "") -> 0
A175: INSTALACIONES | B175: =B1 -> Anx: | C175: =C$1 -> Requerido: | D175: m² Util: | E175: Tipo: | F175: BUENO: | G175: MALO: | H175: Calif: | I175: Observaciones: | AE175: =SUM(O176:O177) -> 0 | AF175: 0 | AG175: 0 | AH175: 0 | AI175: 0 | AJ175: 0 | AK175: 0 | AL175: 0 | AM175: 0 | AN175: 0 | AO175: 0 | AP175: 0 | AQ175: 0 | AR175: 0 | AS175: 0 | AT175: 0
A176: Estructura General | B176: DIA_EG_01 | C176: 1 | D176: - | E176: Requerido | F176: 0 | G176: 0 | H176: =IF(AND(F176>=C176,F176>0),10,0) -> 0 | K176: INSTALACIÓN
A177: Instalaciones Generales | B177: DIA_IG_01 | C177: 1 | D177: - | E177: Requerido | F177: 0 | G177: 0 | H177: =IF(AND(F177>=C177,F177>0),10,0) -> 0 | K177: INSTALACIÓN
A178: LIMPIEZA | AE178: =SUM(O179:O184) -> 10 | AF178: =SUM(P179:P184) -> 0 | AG178: 0 | AH178: 0 | AI178: =SUM(S179:S184) -> 0 | AJ178: =SUM(T179:T184) -> 0 | AK178: 0 | AL178: =SUM(V179:V184) -> 0 | AM178: =SUM(W179:W184) -> 0 | AN178: 0 | AO178: =SUM(Y179:Y184) -> 0 | AP178: =SUM(Z179:Z184) -> 0 | AQ178: 0 | AR178: =SUM(AB179:AB184) -> 0 | AS178: =SUM(AC179:AC184) -> 0 | AT178: 0
A179: ÁREA DE ALMACENES DE PRODUCTOS Y EQUIPOS DE LIMPIEZA | AE179: =SUM(O180:O184) -> 10 | AF179: =SUM(P180:P184) -> 0 | AG179: 0 | AH179: 0 | AI179: =SUM(S180:S184) -> 0 | AJ179: =SUM(T180:T184) -> 0 | AK179: 0 | AL179: =SUM(V180:V184) -> 0 | AM179: =SUM(W180:W184) -> 0 | AN179: 0 | AO179: =SUM(Y180:Y184) -> 0 | AP179: =SUM(Z180:Z184) -> 0 | AQ179: 0 | AR179: =SUM(AB180:AB184) -> 0 | AS179: =SUM(AC180:AC184) -> 0 | AT179: 0
A180: AMBIENTES | B180: =B1 -> Anx: | C180: =C$1 -> Requerido: | D180: m² Util: | E180: Tipo: | F180: BUENO: | G180: MALO: | H180: Calif: | I180: Observaciones: | AE180: =SUM(O181:O181) -> 10 | AF180: =SUM(P181:P181) -> 0 | AG180: 0 | AH180: 0 | AI180: =SUM(S181:S181) -> 0 | AJ180: =SUM(T181:T181) -> 0 | AK180: 0 | AL180: =SUM(V181:V181) -> 0 | AM180: =SUM(W181:W181) -> 0 | AN180: 0 | AO180: =SUM(Y181:Y181) -> 0 | AP180: =SUM(Z181:Z181) -> 0 | AQ180: 0 | AR180: =SUM(AB181:AB181) -> 0 | AS180: =SUM(AC181:AC181) -> 0 | AT180: 0
A181: Bodega | C181: 1 | D181: - | E181: Requerido | F181: 0 | G181: 0 | H181: =IF(AND(F181>=C181,F181>0),10,0) -> 0 | K181: AMBIENTE | O181: =IF(UPPER(E181)="REQUERIDO", 10, "") -> 10 | P181: =IF(UPPER(E181)="REQUERIDO", H181, "") -> 0
A182: INSTALACIONES | B182: =B1 -> Anx: | C182: =C$1 -> Requerido: | D182: m² Util: | E182: Tipo: | F182: BUENO: | G182: MALO: | H182: Calif: | I182: Observaciones: | AE182: =SUM(O183:O184) -> 0 | AF182: 0 | AG182: 0 | AH182: 0 | AI182: 0 | AJ182: 0 | AK182: 0 | AL182: 0 | AM182: 0 | AN182: 0 | AO182: 0 | AP182: 0 | AQ182: 0 | AR182: 0 | AS182: 0 | AT182: 0
A183: Estructura General | B183: DIA_EG_01 | C183: 1 | D183: - | E183: Requerido | F183: 0 | G183: 0 | H183: =IF(AND(F183>=C183,F183>0),10,0) -> 0 | K183: INSTALACIÓN
A184: Instalaciones Generales | B184: DIA_IG_01 | C184: 1 | D184: - | E184: Requerido | F184: 0 | G184: 0 | H184: =IF(AND(F184>=C184,F184>0),10,0) -> 0 | K184: INSTALACIÓN
A185: VESTUARIOS GENERAL | AE185: =SUM(O186:O193) -> 20 | AF185: =SUM(P186:P193) -> 0 | AG185: 0 | AH185: 0 | AI185: =SUM(S186:S193) -> 0 | AJ185: =SUM(T186:T193) -> 0 | AK185: 0 | AL185: =SUM(V186:V193) -> 0 | AM185: =SUM(W186:W193) -> 0 | AN185: 0 | AO185: =SUM(Y186:Y193) -> 0 | AP185: =SUM(Z186:Z193) -> 0 | AQ185: 0 | AR185: =SUM(AB186:AB193) -> 0 | AS185: =SUM(AC186:AC193) -> 0 | AT185: 0
A186: ÁREA DE PERSONAL | AE186: =SUM(O187:O193) -> 20 | AF186: =SUM(P187:P193) -> 0 | AG186: 0 | AH186: 0 | AI186: =SUM(S187:S193) -> 0 | AJ186: =SUM(T187:T193) -> 0 | AK186: 0 | AL186: =SUM(V187:V193) -> 0 | AM186: =SUM(W187:W193) -> 0 | AN186: 0 | AO186: =SUM(Y187:Y193) -> 0 | AP186: =SUM(Z187:Z193) -> 0 | AQ186: 0 | AR186: =SUM(AB187:AB193) -> 0 | AS186: =SUM(AC187:AC193) -> 0 | AT186: 0
A187: AMBIENTES | B187: =B1 -> Anx: | C187: =C$1 -> Requerido: | D187: m² Util: | E187: Tipo: | F187: BUENO: | G187: MALO: | H187: Calif: | I187: Observaciones: | AE187: =SUM(O188:O190) -> 20 | AF187: =SUM(P188:P190) -> 0 | AG187: 0 | AH187: 0 | AI187: =SUM(S188:S190) -> 0 | AJ187: =SUM(T188:T190) -> 0 | AK187: 0 | AL187: =SUM(V188:V190) -> 0 | AM187: =SUM(W188:W190) -> 0 | AN187: 0 | AO187: =SUM(Y188:Y190) -> 0 | AP187: =SUM(Z188:Z190) -> 0 | AQ187: 0 | AR187: =SUM(AB188:AB190) -> 0 | AS187: =SUM(AC188:AC190) -> 0 | AT187: 0
A188: Acceso | C188: 1 | D188: - | E188: Opcional | F188: 0 | G188: 0 | H188: =IF(AND(F188>=C188,F188>0),10,0) -> 0 | K188: INSTALACIÓN
A189: Vestidor general femenino con baño | C189: 1 | D189: - | E189: Requerido | F189: 0 | G189: 0 | H189: =IF(AND(F189>=C189,F189>0),10,0) -> 0 | K189: AMBIENTE | O189: =IF(UPPER(E189)="REQUERIDO", 10, "") -> 10 | P189: =IF(UPPER(E189)="REQUERIDO", H189, "") -> 0
A190: Vestidor general masculino con baño | C190: 1 | D190: - | E190: Requerido | F190: 0 | G190: 0 | H190: =IF(AND(F190>=C190,F190>0),10,0) -> 0 | K190: AMBIENTE | O190: =IF(UPPER(E190)="REQUERIDO", 10, "") -> 10 | P190: =IF(UPPER(E190)="REQUERIDO", H190, "") -> 0
A191: INSTALACIONES | B191: =B1 -> Anx: | C191: =C$1 -> Requerido: | D191: m² Util: | E191: Tipo: | F191: BUENO: | G191: MALO: | H191: Calif: | I191: Observaciones: | AE191: =SUM(O192:O193) -> 0 | AF191: 0 | AG191: 0 | AH191: 0 | AI191: 0 | AJ191: 0 | AK191: 0 | AL191: 0 | AM191: 0 | AN191: 0 | AO191: 0 | AP191: 0 | AQ191: 0 | AR191: 0 | AS191: 0 | AT191: 0
A192: Estructura General | B192: DIA_EG_01 | C192: 1 | D192: - | E192: Requerido | F192: 0 | G192: 0 | H192: =IF(AND(F192>=C192,F192>0),10,0) -> 0 | K192: INSTALACIÓN
A193: Instalaciones Generales | B193: DIA_IG_01 | C193: 1 | D193: - | E193: Requerido | F193: 0 | G193: 0 | H193: =IF(AND(F193>=C193,F193>0),10,0) -> 0 | K193: INSTALACIÓN
A194: MANTENIMIENTO | AE194: =SUM(O195:O200) -> 0 | AF194: =SUM(P195:P200) -> 0 | AG194: =SUM(Q195:Q200) -> 0 | AH194: 0 | AI194: 0 | AJ194: =SUM(T195:T200) -> 0 | AK194: 10 | AL194: 0 | AM194: =SUM(W195:W200) -> 0 | AN194: 0 | AO194: 0 | AP194: =SUM(Z195:Z200) -> 0 | AQ194: 0 | AR194: 0 | AS194: =SUM(AC195:AC200) -> 20 | AT194: 0
A195: ÁREA TÉCNICA | AE195: =SUM(O196:O200) -> 0 | AF195: =SUM(P196:P200) -> 0 | AG195: =SUM(Q196:Q200) -> 0 | AH195: =SUM(R196:R200) -> 0 | AI195: 0 | AJ195: 0 | AK195: 10 | AL195: 0 | AM195: 0 | AN195: 0 | AO195: 0 | AP195: 0 | AQ195: 0 | AR195: 0 | AS195: 20 | AT195: 0
A196: AMBIENTES | B196: =B1 -> Anx: | C196: =C$1 -> Requerido: | D196: m² Util: | E196: Tipo: | F196: BUENO: | G196: MALO: | H196: Calif: | I196: Observaciones: | AE196: =SUM(U197:U197) -> 10 | AF196: =SUM(V197:V197) -> 0 | AG196: =SUM(Q197:Q197) -> 0 | AH196: =SUM(X197:X197) -> 0 | AI196: 0 | AJ196: =SUM(T197:T197) -> 0 | AK196: =SUM(AA197:AA197) -> 0 | AL196: 0 | AM196: =SUM(W197:W197) -> 0 | AN196: =SUM(AD197:AD197) -> 0 | AO196: 0 | AP196: =SUM(Z197:Z197) -> 0 | AQ196: =SUM(AG197:AG197) -> 0 | AR196: 0 | AS196: =SUM(AC197:AC197) -> 0 | AT196: =SUM(AJ197:AJ197) -> 0
A197: Taller | C197: 1 | D197: - | E197: Condición | F197: 0 | G197: 0 | H197: =IF(AND(F197>=C197,F197>0),10,0) -> 0 | K197: AMBIENTE | U197: =IF(UPPER(E197)="CONDICIÓN", 10, "") -> 10 | V197: =IF(UPPER(E197)="CONDICIÓN", H197, "") -> 0
A198: INSTALACIONES | B198: =B1 -> Anx: | C198: =C$1 -> Requerido: | D198: m² Util: | E198: Tipo: | F198: BUENO: | G198: MALO: | H198: Calif: | I198: Observaciones: | AE198: =SUM(O199:O200) -> 0 | AF198: =SUM(P199:P200) -> 0 | AG198: =SUM(Q199:Q200) -> 0 | AH198: 0 | AI198: 0 | AJ198: 0 | AK198: 0 | AL198: 0 | AM198: 0 | AN198: 0 | AO198: 0 | AP198: 0 | AQ198: 0 | AR198: 0 | AS198: =SUM(AC199:AC200) -> 20 | AT198: =SUM(AD199:AD200) -> 0
A199: Estructura General | B199: DIA_EG_01 | C199: 1 | D199: - | E199: Condición | F199: 0 | G199: 0 | H199: =IF(AND(F199>=C199,F199>0),10,0) -> 0 | K199: INSTALACIÓN | AC199: =IF(UPPER(E199)="CONDICIÓN", 10, "") -> 10 | AD199: =IF(UPPER(E199)="CONDICIÓN", H199, "") -> 0
A200: Instalaciones Generales | B200: DIA_IG_01 | C200: 1 | D200: - | E200: Condición | F200: 0 | G200: 0 | H200: =IF(AND(F200>=C200,F200>0),10,0) -> 0 | K200: INSTALACIÓN | AC200: =IF(UPPER(E200)="CONDICIÓN", 10, "") -> 10 | AD200: =IF(UPPER(E200)="CONDICIÓN", H200, "") -> 0
... 89 more rows

Sheet Equipamiento
A1: FILTROS: | B1: Anx: | C1: Cant x Espacio: | D1: Requerido: | E1: Tipo: | F1: Funcional: | G1: No Funcional: | H1: Calif: | I1: Observaciones:
A2: =Menu!$B$3 -> CENTRO ESPECIALIZADO EN DIÁLISIS PERITONEAL
A3: EQUIPAMIENTO | O3: MOBILIARIO GENERAL | W3: MOBILIARIO MEDICO | AE3: EQUIPAMIENTO GENERAL | AM3: EQUIPAMIENTO MEDICO | AU3: TOTAL MOBILIARIO GENERAL | BC3: TOTAL MOBILIARIO MEDICO | BK3: TOTAL EQUIPAMIENTO GENERAL | BS3: TOTAL EQUIPAMIENTO MEDICO
A4: SERVICIO DE ADMISIÓN Y CONSULTA EXTERNA | AU4: =SUM(O5:O98) -> 430 | AV4: =SUM(P5:P98) -> 0 | AW4: =SUM(Q5:Q98) -> 10 | AX4: 0 | AY4: 0 | AZ4: 0 | BA4: =SUM(U5:U98) -> 0 | BB4: 0 | BC4: =SUM(W5:W98) -> 10 | BD4: 0 | BE4: 0 | BF4: 0 | BG4: 0 | BH4: 0 | BI4: 0 | BJ4: 0 | BK4: 60 | BL4: 0 | BM4: 0 | BN4: 0 | BO4: 0 | BP4: 0 | BQ4: 0 | BR4: 0 | BS4: 100 | BT4: 0 | BU4: 0 | BV4: 0 | BW4: 0 | BX4: 0 | BY4: 0 | BZ4: 0
A5: CONSULTA EXTERNA | AU5: =SUM(O6:O98) -> 430 | AV5: =SUM(P6:P98) -> 0 | AW5: =SUM(Q6:Q98) -> 10 | AX5: 0 | AY5: 0 | AZ5: 0 | BA5: 0 | BB5: 0 | BC5: 10 | BD5: 0 | BE5: 0 | BF5: 0 | BG5: 0 | BH5: 0 | BI5: 0 | BJ5: 0 | BK5: 60 | BL5: 0 | BM5: 0 | BN5: 0 | BO5: 0 | BP5: 0 | BQ5: 0 | BR5: 0 | BS5: 100 | BT5: 0 | BU5: 0 | BV5: 0 | BW5: 0 | BX5: 0 | BY5: 0 | BZ5: 0
A6: ADMISIÓN Y CONTROL | AU6: =SUM(O7:O29) -> 160 | AV6: =SUM(P7:P29) -> 0 | AW6: 0 | AX6: 0 | AY6: 0 | AZ6: 0 | BA6: 0 | BB6: 0 | BC6: =SUM(W7:W29) -> 0 | BD6: 0 | BE6: 0 | BF6: 0 | BG6: 0 | BH6: =SUM(AB7:AB29) -> 0 | BI6: =SUM(AC7:AC29) -> 0 | BJ6: =SUM(AD7:AD29) -> 0 | BK6: =SUM(AE7:AE29) -> 30 | BL6: =SUM(AF7:AF29) -> 0 | BM6: =SUM(AG7:AG29) -> 0 | BN6: =SUM(AH7:AH29) -> 0 | BO6: 0 | BP6: =SUM(AJ7:AJ29) -> 0 | BQ6: =SUM(AK7:AK29) -> 0 | BR6: =SUM(AL7:AL29) -> 0 | BS6: 0 | BT6: =SUM(AN7:AN29) -> 0 | BU6: =SUM(AO7:AO29) -> 0 | BV6: =SUM(AP7:AP29) -> 0 | BW6: =SUM(AQ7:AQ29) -> 0 | BX6: =SUM(AR7:AR29) -> 0 | BY6: =SUM(AS7:AS29) -> 0 | BZ6: =SUM(AT7:AT29) -> 0
A7: AMBIENTES | AU7: =SUM(O8:O29) -> 160 | AV7: =SUM(P8:P29) -> 0 | AW7: 0 | AX7: 0 | AY7: 0 | AZ7: 0 | BA7: =SUM(U8:U29) -> 0 | BB7: =SUM(V8:V29) -> 0 | BC7: =SUM(W8:W29) -> 0 | BD7: =SUM(X8:X29) -> 0 | BE7: 0 | BF7: =SUM(Z8:Z29) -> 0 | BG7: =SUM(AA8:AA29) -> 0 | BH7: =SUM(AB8:AB29) -> 0 | BI7: =SUM(AC8:AC29) -> 0 | BJ7: 0 | BK7: =SUM(AE8:AE29) -> 30 | BL7: =SUM(AF8:AF29) -> 0 | BM7: =SUM(AG8:AG29) -> 0 | BN7: =SUM(AH8:AH29) -> 0 | BO7: 0 | BP7: =SUM(AJ8:AJ29) -> 0 | BQ7: =SUM(AK8:AK29) -> 0 | BR7: =SUM(AL8:AL29) -> 0 | BS7: =SUM(AM8:AM29) -> 0 | BT7: 0 | BU7: =SUM(AO8:AO29) -> 0 | BV7: =SUM(AP8:AP29) -> 0 | BW7: =SUM(AQ8:AQ29) -> 0 | BX7: =SUM(AR8:AR29) -> 0 | BY7: 0 | BZ7: =SUM(AT8:AT29) -> 0
A8: Baterías Sanitarias | B8: =B1 -> Anx: | C8: =C$1 -> Cant x Espacio: | D8: Requerido: | E8: Tipo: | F8: Funcional: | G8: No Funcional: | H8: Calif: | I8: Observaciones: | J8: =Infraestructura!$F$8 -> 0
A9: Dosificador de jabón | C9: 1 | D9: =J8*C9 -> 0 | E9: Requerido | F9: 0 | G9: 0 | H9: =IF(AND(F9>=D9,F9>0,D9>0),10,0) -> 0 | K9: MG | O9: =IF(UPPER(E9)="REQUERIDO", 10, "") -> 10 | P9: =IF(UPPER(E9)="REQUERIDO", H9, "") -> 0
A10: Dispensador de papel toalla | C10: 1 | D10: =J8*C10 -> 0 | E10: Requerido | F10: 0 | G10: 0 | H10: 0 | K10: MG | O10: =IF(UPPER(E10)="REQUERIDO", 10, "") -> 10 | P10: =IF(UPPER(E10)="REQUERIDO", H10, "") -> 0
A11: Dispensador de papel higiénico | C11: 1 | D11: =J8*C11 -> 0 | E11: Requerido | F11: 0 | G11: 0 | H11: 0 | K11: MG | O11: 10 | P11: 0
A12: Espejo empotrado | C12: 1 | D12: =J8*C12 -> 0 | E12: Requerido | F12: 0 | G12: 0 | H12: 0 | K12: MG | O12: 10 | P12: 0
A13: Gancho doble | C13: 1 | D13: =J8*C13 -> 0 | E13: Requerido | F13: 0 | G13: 0 | H13: 0 | K13: MG | O13: 10 | P13: 0
A14: Juego de ayudas técnicas | C14: 1 | D14: =J8*C14 -> 0 | E14: Requerido | F14: 0 | G14: 0 | H14: 0 | K14: MG | O14: 10 | P14: 0
A15: Lavabo | C15: 1 | D15: =J8*C15 -> 0 | E15: Requerido | F15: 0 | G15: 0 | H15: 0 | K15: MG | O15: 10 | P15: 0
A16: Basurero con tapa y/o pedal | C16: 1 | D16: =J8*C16 -> 0 | E16: Requerido | F16: 0 | G16: 0 | H16: 0 | K16: MG | O16: 10 | P16: 0
A17: Recepción Admisión | B17: =B1 -> Anx: | C17: =C$1 -> Cant x Espacio: | D17: Requerido: | E17: Tipo: | F17: Funcional: | G17: No Funcional: | H17: Calif: | I17: Observaciones: | J17: =Infraestructura!$F$9 -> 0
A18: Mostrador | B18: DIA_EQ_01 | C18: 1 | D18: =J17*C18 -> 0 | E18: Requerido | F18: 0 | G18: 0 | H18: =IF(AND(F18>=D18,F18>0,D18>0),10,0) -> 0 | K18: MG | O18: =IF(UPPER(E18)="REQUERIDO", 10, "") -> 10 | P18: =IF(UPPER(E18)="REQUERIDO", H18, "") -> 0
A19: Archivador | C19: 1 | D19: =J17*C19 -> 0 | E19: Requerido | F19: 0 | G19: 0 | H19: 0 | K19: MG | O19: 10 | P19: 0
A20: Computador completo PC /Computador Portátil | B20: DIA_EQ_02 | C20: 1 | D20: =J17*C20 -> 0 | E20: Requerido | F20: 0 | G20: 0 | H20: 0 | K20: EG | AE20: =IF(UPPER(E20)="REQUERIDO", 10, "") -> 10 | AF20: =IF(UPPER(E20)="REQUERIDO", H20, "") -> 0
A21: Basurero con tapa y/o pedal | C21: 1 | D21: =J17*C21 -> 0 | E21: Requerido | F21: 0 | G21: 0 | H21: 0 | K21: MG | O21: =IF(UPPER(E21)="REQUERIDO", 10, "") -> 10 | P21: =IF(UPPER(E21)="REQUERIDO", H21, "") -> 0
A22: Silla | C22: 1 | D22: =J17*C22 -> 0 | E22: Requerido | F22: 0 | G22: 0 | H22: 0 | K22: MG | O22: 10 | P22: 0
A23: Tablero de avisos | C23: 1 | D23: =J17*C23 -> 0 | E23: Requerido | F23: 0 | G23: 0 | H23: 0 | K23: MG | O23: 10 | P23: 0
A24: Teléfono | C24: 1 | D24: =J17*C24 -> 0 | E24: Requerido | F24: 0 | G24: 0 | H24: 0 | K24: EG | AE24: =IF(UPPER(E24)="REQUERIDO", 10, "") -> 10 | AF24: =IF(UPPER(E24)="REQUERIDO", H24, "") -> 0
A25: Sala de Espera | B25: =B1 -> Anx: | C25: =C$1 -> Cant x Espacio: | D25: Requerido: | E25: Tipo: | F25: Funcional: | G25: No Funcional: | H25: Calif: | I25: Observaciones: | J25: =Infraestructura!$F$10 -> 0
A26: Bancas / individuales/3 puestos/ 4 puestos | C26: 3 | D26: =J25*C26 -> 0 | E26: Requerido | F26: 0 | G26: 0 | H26: =IF(AND(F26>=D26,F26>0,D26>0),10,0) -> 0 | K26: MG | O26: =IF(UPPER(E26)="REQUERIDO", 10, "") -> 10 | P26: =IF(UPPER(E26)="REQUERIDO", H26, "") -> 0
A27: Basurero con tapa y/o pedal | C27: 1 | D27: =J25*C27 -> 0 | E27: Requerido | F27: 0 | G27: 0 | H27: =IF(AND(F27>=D27,F27>0,D27>0),10,0) -> 0 | K27: MG | O27: 10 | P27: 0
A28: Reloj de pared | C28: 1 | D28: =J25*C28 -> 0 | E28: Requerido | F28: 0 | G28: 0 | H28: =IF(AND(F28>=D28,F28>0,D28>0),10,0) -> 0 | K28: MG | O28: 10 | P28: 0
A29: Sistema Audiovisual de Información | B29: DIA_EQ_03 | C29: 1 | D29: =J25*C29 -> 0 | E29: Requerido | F29: 0 | G29: 0 | H29: =IF(AND(F29>=D29,F29>0,D29>0),10,0) -> 0 | K29: EG | AE29: =IF(UPPER(E29)="REQUERIDO", 10, "") -> 10 | AF29: =IF(UPPER(E29)="REQUERIDO", H29, "") -> 0
A30: AREA DE PACIENTE | AU30: =SUM(O30:O98) -> 270 | AV30: =SUM(P30:P98) -> 0 | AW30: =SUM(Q30:Q98) -> 10 | AX30: =SUM(R30:R98) -> 0 | AY30: 0 | AZ30: 0 | BA30: 0 | BB30: 0 | BC30: 10 | BD30: 0 | BE30: 0 | BF30: 0 | BG30: 0 | BH30: 0 | BI30: 0 | BJ30: 0 | BK30: 30 | BL30: 0 | BM30: 0 | BN30: 0 | BO30: 0 | BP30: 0 | BQ30: 0 | BR30: 0 | BS30: 100 | BT30: 0 | BU30: 0 | BV30: 0 | BW30: 0 | BX30: 0 | BY30: 0 | BZ30: 0
A31: AMBIENTES | AU31: =SUM(O32:O98) -> 270 | AV31: =SUM(P32:P98) -> 0 | AW31: =SUM(Q32:Q98) -> 10 | AX31: 0 | AY31: 0 | AZ31: 0 | BA31: 0 | BB31: 0 | BC31: 10 | BD31: 0 | BE31: 0 | BF31: 0 | BG31: 0 | BH31: 0 | BI31: 0 | BJ31: 0 | BK31: 30 | BL31: 0 | BM31: 0 | BN31: 0 | BO31: 0 | BP31: 0 | BQ31: 0 | BR31: 0 | BS31: 100 | BT31: 0 | BU31: 0 | BV31: 0 | BW31: 0 | BX31: 0 | BY31: 0 | BZ31: 0
A32: Consultorio de Enfermería con Lavabo. (Se convertirá en REQUERIDO cuando exista 5 Consultorios Médicos) | B32: =B1 -> Anx: | C32: =C$1 -> Cant x Espacio: | D32: Requerido: | E32: Tipo: | F32: Funcional: | G32: No Funcional: | H32: Calif: | I32: Observaciones: | J32: =Infraestructura!F16 -> 0
A33: Mesa de despacho con ala para ordenador | B33: DIA_EQ_01 | C33: 1 | D33: =$J$32*C33 -> 0 | E33: =IF(D33>0, "Requerido", "Sin Infraestructura") -> Sin Infraestructura | F33: 0 | G33: 0 | H33: =IF(AND(F33>=D33,F33>0,D33>0),10,0) -> 0 | K33: MG | O33: =IF(UPPER(E33)="REQUERIDO", 10, "") ->  | P33: =IF(UPPER(E33)="REQUERIDO", H33, "") -> 
A34: Computador completo PC /Computador Portátil | B34: DIA_EQ_02 | C34: 1 | D34: =$J$32*C34 -> 0 | E34: =IF(D34>0, "Requerido", "Sin Infraestructura") -> Sin Infraestructura | F34: 0 | G34: 0 | H34: 0 | K34: EG | AE34: =IF(UPPER(E34)="REQUERIDO", 10, "") ->  | AF34: =IF(UPPER(E34)="REQUERIDO", H34, "") -> 
A35: Armario vitrina | C35: 1 | D35: =$J$32*C35 -> 0 | E35: =IF(D35>0, "Requerido", "Sin Infraestructura") -> Sin Infraestructura | F35: 0 | G35: 0 | H35: =IF(AND(F35>=D35,F35>0,D35>0),10,0) -> 0 | K35: MG | O35: =IF(UPPER(E35)="REQUERIDO", 10, "") ->  | P35: =IF(UPPER(E35)="REQUERIDO", H35, "") -> 
A36: Báscula + tallimetro | C36: 1 | D36: 0 | E36: Sin Infraestructura | F36: 0 | G36: 0 | H36: 0 | K36: EM | AM36: =IF(UPPER(E36)="REQUERIDO", 10, "") ->  | AN36: =IF(UPPER(E36)="REQUERIDO", H36, "") -> 
A37: Basurero con tapa y/o pedal | C37: 1 | D37: 0 | E37: Sin Infraestructura | F37: 0 | G37: 0 | H37: 0 | K37: MG | O37: =IF(UPPER(E37)="REQUERIDO", 10, "") ->  | P37: =IF(UPPER(E37)="REQUERIDO", H37, "") -> 
A38: Camilla de exploración | C38: 1 | D38: 0 | E38: Sin Infraestructura | F38: 0 | G38: 0 | H38: 0 | K38: MM | W38: =IF(UPPER(E38)="REQUERIDO", 10, "") ->  | X38: =IF(UPPER(E38)="REQUERIDO", H38, "") -> 
A39: Coche de curaciones | B39: DIA_EQ_04 | C39: 1 | D39: 0 | E39: Sin Infraestructura | F39: 0 | G39: 0 | H39: 0 | K39: MM | W39: =IF(UPPER(E39)="REQUERIDO", 10, "") -> 
A40: Paquete de Lencería Básica | B40: DIA_EQ_09 | C40: 1 | D40: 0 | E40: Sin Infraestructura | F40: 0 | G40: 0 | H40: 0 | K40: EM | AM40: =IF(UPPER(E40)="REQUERIDO", 10, "") ->  | AN40: =IF(UPPER(E40)="REQUERIDO", H40, "") -> 
A41: Coche multi propósito | C41: 1 | D41: 0 | E41: Sin Infraestructura | F41: 0 | G41: 0 | H41: 0 | K41: MM | W41: =IF(UPPER(E41)="REQUERIDO", 10, "") ->  | X41: =IF(UPPER(E41)="REQUERIDO", H41, "") -> 
A42: Dispensador de papel toalla | C42: 1 | D42: 0 | E42: Sin Infraestructura | F42: 0 | G42: 0 | H42: 0 | K42: MG | O42: =IF(UPPER(E42)="REQUERIDO", 10, "") ->  | P42: =IF(UPPER(E42)="REQUERIDO", H42, "") -> 
A43: Dosificador de jabón | C43: 1 | D43: 0 | E43: Sin Infraestructura | F43: 0 | G43: 0 | H43: 0 | K43: MG
A44: Lavabo | C44: 1 | D44: 0 | E44: Sin Infraestructura | F44: 0 | G44: 0 | H44: 0 | K44: MG
A45: Escabel | C45: 1 | D45: 0 | E45: Sin Infraestructura | F45: 0 | G45: 0 | H45: 0 | K45: MG
A46: Estetoscopio | C46: 1 | D46: 0 | E46: Sin Infraestructura | F46: 0 | G46: 0 | H46: 0 | K46: EM | AM46: =IF(UPPER(E46)="REQUERIDO", 10, "") ->  | AN46: =IF(UPPER(E46)="REQUERIDO", H46, "") -> 
A47: Tensiómetro | C47: 1 | D47: 0 | E47: Sin Infraestructura | F47: 0 | G47: 0 | H47: 0 | K47: EM
A48: Lámpara de cuello de ganso | C48: 1 | D48: 0 | E48: Sin Infraestructura | F48: 0 | G48: 0 | H48: 0 | K48: MM | W48: =IF(UPPER(E48)="REQUERIDO", 10, "") ->  | X48: =IF(UPPER(E48)="REQUERIDO", H48, "") -> 
A49: Mueble con puertas bajas y estanterías | C49: 1 | D49: 0 | E49: Sin Infraestructura | F49: 0 | G49: 0 | H49: 0 | K49: MG | O49: =IF(UPPER(E49)="REQUERIDO", 10, "") ->  | P49: =IF(UPPER(E49)="REQUERIDO", H49, "") -> 
A50: Set de desechos | B50: DIA_EQ_06 | C50: 1 | D50: 0 | E50: Sin Infraestructura | F50: 0 | G50: 0 | H50: 0 | K50: MG
A51: Silla confidente | C51: 2 | D51: 0 | E51: Sin Infraestructura | F51: 0 | G51: 0 | H51: 0 | K51: MG
A52: Silla | C52: 1 | D52: 0 | E52: Sin Infraestructura | F52: 0 | G52: 0 | H52: 0 | K52: MG
A53: Consultorio Medico con Lavabo | B53: =B1 -> Anx: | C53: =C$1 -> Cant x Espacio: | D53: Requerido: | E53: Tipo: | F53: Funcional: | G53: No Funcional: | H53: Calif: | I53: Observaciones: | J53: =Infraestructura!$F$17 -> 0
A54: Mesa de despacho con ala para ordenador | B54: DIA_EQ_01 | C54: 1 | D54: =$J$53*C54 -> 0 | E54: Requerido | F54: 0 | G54: 0 | H54: =IF(AND(F54>=D54,F54>0,D54>0),10,0) -> 0 | K54: MG | O54: =IF(UPPER(E54)="REQUERIDO", 10, "") -> 10 | P54: =IF(UPPER(E54)="REQUERIDO", H54, "") -> 0
A55: Computador completo PC /Computador Portátil | B55: DIA_EQ_02 | C55: 1 | D55: =$J$53*C55 -> 0 | E55: Requerido | F55: 0 | G55: 0 | H55: 0 | K55: EG | AE55: =IF(UPPER(E55)="REQUERIDO", 10, "") -> 10 | AF55: =IF(UPPER(E55)="REQUERIDO", H55, "") -> 0
A56: Armario vitrina | C56: 1 | D56: =$J$53*C56 -> 0 | E56: Requerido | F56: 0 | G56: 0 | H56: =IF(AND(F56>=D56,F56>0,D56>0),10,0) -> 0 | K56: MG | O56: =IF(UPPER(E56)="REQUERIDO", 10, "") -> 10 | P56: =IF(UPPER(E56)="REQUERIDO", H56, "") -> 0
A57: Báscula + tallimetro | C57: 1 | D57: 0 | E57: Requerido | F57: 0 | G57: 0 | H57: 0 | K57: EM | AM57: =IF(UPPER(E57)="REQUERIDO", 10, "") -> 10 | AN57: =IF(UPPER(E57)="REQUERIDO", H57, "") -> 0
A58: Camilla de exploración | C58: 1 | D58: 0 | E58: Requerido | F58: 0 | G58: 0 | H58: 0 | K58: MG | O58: =IF(UPPER(E58)="REQUERIDO", 10, "") -> 10 | P58: =IF(UPPER(E58)="REQUERIDO", H58, "") -> 0
A59: Equipo ó Centro de diagnostico mural o portable | B59: DIA_EQ_05 | C59: 1 | D59: 0 | E59: Requerido | F59: 0 | G59: 0 | H59: 0 | K59: EM | AM59: =IF(UPPER(E59)="REQUERIDO", 10, "") -> 10 | AN59: =IF(UPPER(E59)="REQUERIDO", H59, "") -> 0
A60: Coche de curaciones | B60: DIA_EQ_04 | C60: 1 | D60: 0 | E60: Opcional | F60: 0 | G60: 0 | H60: 0 | K60: MG | Q60: =IF(UPPER(E60)="OPCIONAL", 10, "") -> 10 | R60: =IF(UPPER(E60)="OPCIONAL", H60, "") -> 0
A61: Dispensador de papel toalla | C61: 1 | D61: 0 | E61: Requerido | F61: 0 | G61: 0 | H61: 0 | K61: MG | O61: =IF(UPPER(E61)="REQUERIDO", 10, "") -> 10 | P61: =IF(UPPER(E61)="REQUERIDO", H61, "") -> 0
A62: Dosificador de jabón | C62: 1 | D62: 0 | E62: Requerido | F62: 0 | G62: 0 | H62: 0 | K62: MG | O62: 10 | P62: 0
A63: Lavabo | C63: 1 | D63: 0 | E63: Requerido | F63: 0 | G63: 0 | H63: 0 | K63: EG | AE63: =IF(UPPER(E63)="REQUERIDO", 10, "") -> 10 | AF63: =IF(UPPER(E63)="REQUERIDO", H63, "") -> 0
A64: Escabel | C64: 1 | D64: 0 | E64: Requerido | F64: 0 | G64: 0 | H64: 0 | K64: MG | O64: =IF(UPPER(E64)="REQUERIDO", 10, "") -> 10 | P64: =IF(UPPER(E64)="REQUERIDO", H64, "") -> 0
A65: Tensiómetro | C65: 1 | D65: 0 | E65: Requerido | F65: 0 | G65: 0 | H65: 0 | K65: EM | AM65: =IF(UPPER(E65)="REQUERIDO", 10, "") -> 10 | AN65: =IF(UPPER(E65)="REQUERIDO", H65, "") -> 0
A66: Estetoscopio | C66: 1 | D66: 0 | E66: Requerido | F66: 0 | G66: 0 | H66: 0 | K66: EM | AM66: 10 | AN66: 0
A67: Negatoscopio | C67: 1 | D67: 0 | E67: Requerido | F67: 0 | G67: 0 | H67: 0 | K67: EM | AM67: 10 | AN67: 0
A68: Lámpara de cuello de ganso | C68: 1 | D68: 0 | E68: Requerido | F68: 0 | G68: 0 | H68: 0 | K68: MM | W68: =IF(UPPER(E68)="REQUERIDO", 10, "") -> 10 | X68: =IF(UPPER(E68)="REQUERIDO", H68, "") -> 0
A69: Saturador de Oxígeno | C69: 1 | D69: 0 | E69: Requerido | F69: 0 | G69: 0 | H69: 0 | K69: EM | AM69: =IF(UPPER(E69)="REQUERIDO", 10, "") -> 10 | AN69: =IF(UPPER(E69)="REQUERIDO", H69, "") -> 0
A70: Set de desechos | B70: DIA_EQ_06 | C70: 1 | D70: 0 | E70: Requerido | F70: 0 | G70: 0 | H70: 0 | K70: MG | O70: =IF(UPPER(E70)="REQUERIDO", 10, "") -> 10 | P70: =IF(UPPER(E70)="REQUERIDO", H70, "") -> 0
A71: Silla confidente | C71: 2 | D71: 0 | E71: Requerido | F71: 0 | G71: 0 | H71: 0 | K71: MG | O71: 10 | P71: 0
A72: Silla | C72: 1 | D72: 0 | E72: Requerido | F72: 0 | G72: 0 | H72: 0 | K72: MG | O72: 10 | P72: 0
A73: Consultorio Psicología | B73: =B1 -> Anx: | C73: =C$1 -> Cant x Espacio: | D73: Requerido: | E73: Tipo: | F73: Funcional: | G73: No Funcional: | H73: Calif: | I73: Observaciones: | J73: =Infraestructura!$F$18 -> 0
A74: Mesa de despacho con ala para ordenador | B74: DIA_EQ_01 | C74: 1 | D74: =$J$73*C74 -> 0 | E74: Requerido | F74: 0 | G74: 0 | H74: =IF(AND(F74>=D74,F74>0,D74>0),10,0) -> 0 | K74: MG | O74: =IF(UPPER(E74)="REQUERIDO", 10, "") -> 10 | P74: =IF(UPPER(E74)="REQUERIDO", H74, "") -> 0
A75: Computador completo PC /Computador Portátil | B75: DIA_EQ_02 | C75: 1 | D75: =$J$73*C75 -> 0 | E75: Requerido | F75: 0 | G75: 0 | H75: 0 | K75: EM | AM75: =IF(UPPER(E75)="REQUERIDO", 10, "") -> 10 | AN75: =IF(UPPER(E75)="REQUERIDO", H75, "") -> 0
A76: Armario vitrina/Archivador | C76: 1 | D76: =$J$73*C76 -> 0 | E76: Requerido | F76: 0 | G76: 0 | H76: =IF(AND(F76>=D76,F76>0,D76>0),10,0) -> 0 | K76: MG | O76: =IF(UPPER(E76)="REQUERIDO", 10, "") -> 10 | P76: =IF(UPPER(E76)="REQUERIDO", H76, "") -> 0
A77: Set de desechos | B77: DIA_EQ_06 | C77: 1 | D77: 0 | E77: Requerido | F77: 0 | G77: 0 | H77: 0 | K77: MG | O77: 10 | P77: 0
A78: Dispensador de Gel Antiséptico | C78: 1 | D78: 0 | E78: Requerido | F78: 0 | G78: 0 | H78: 0 | K78: MG | O78: 10 | P78: 0
A79: Silla confidente | C79: 2 | D79: 0 | E79: Requerido | F79: 0 | G79: 0 | H79: 0 | K79: MG | O79: 10 | P79: 0
A80: Silla | C80: 1 | D80: 0 | E80: Requerido | F80: 0 | G80: 0 | H80: 0 | K80: MG | O80: 10 | P80: 0
A81: Consultorio Trabajo Social | B81: =B1 -> Anx: | C81: =C$1 -> Cant x Espacio: | D81: Requerido: | E81: Tipo: | F81: Funcional: | G81: No Funcional: | H81: Calif: | I81: Observaciones: | J81: =Infraestructura!$F$19 -> 0
A82: Mesa de despacho con ala para ordenador | B82: DIA_EQ_01 | C82: 1 | D82: =$J$81*C82 -> 0 | E82: Requerido | F82: 0 | G82: 0 | H82: =IF(AND(F82>=D82,F82>0,D82>0),10,0) -> 0 | K82: MG | O82: =IF(UPPER(E82)="REQUERIDO", 10, "") -> 10 | P82: =IF(UPPER(E82)="REQUERIDO", H82, "") -> 0
A83: Computador completo PC /Computador Portátil | B83: DIA_EQ_02 | C83: 1 | D83: 0 | E83: Requerido | F83: 0 | G83: 0 | H83: 0 | K83: EM | AM83: =IF(UPPER(E83)="REQUERIDO", 10, "") -> 10 | AN83: =IF(UPPER(E83)="REQUERIDO", H83, "") -> 0
A84: Armario vitrina/Archivador | C84: 1 | D84: 0 | E84: Requerido | F84: 0 | G84: 0 | H84: =IF(AND(F84>=D84,F84>0,D84>0),10,0) -> 0 | K84: MG | O84: =IF(UPPER(E84)="REQUERIDO", 10, "") -> 10 | P84: =IF(UPPER(E84)="REQUERIDO", H84, "") -> 0
A85: Basurero con tapa y/o pedal | C85: 1 | D85: 0 | E85: Requerido | F85: 0 | G85: 0 | H85: 0 | K85: MG | O85: 10 | P85: 0
A86: Dispensador de Gel Antiséptico | C86: 1 | D86: 0 | E86: Requerido | F86: 0 | G86: 0 | H86: 0 | K86: MG | O86: 10 | P86: 0
A87: Silla confidente | C87: 2 | D87: 0 | E87: Requerido | F87: 0 | G87: 0 | H87: 0 | K87: MG | O87: 10 | P87: 0
A88: Silla | C88: 1 | D88: 0 | E88: Requerido | F88: 0 | G88: 0 | H88: =IF(AND(F88>=D88,F88>0,D88>0),10,0) -> 0 | K88: MG | O88: =IF(UPPER(E88)="REQUERIDO", 10, "") -> 10 | P88: =IF(UPPER(E88)="REQUERIDO", H88, "") -> 0
A89: Consultorio Nutrición | B89: =B1 -> Anx: | C89: =C$1 -> Cant x Espacio: | D89: Requerido: | E89: Tipo: | F89: Funcional: | G89: No Funcional: | H89: Calif: | I89: Observaciones: | J89: =Infraestructura!$F$20 -> 0
A90: Mesa de despacho con ala para ordenador | B90: DIA_EQ_01 | C90: 1 | D90: =$J$89*C90 -> 0 | E90: Requerido | F90: 0 | G90: 0 | H90: =IF(AND(F90>=D90,F90>0,D90>0),10,0) -> 0 | K90: MG | O90: =IF(UPPER(E90)="REQUERIDO", 10, "") -> 10 | P90: =IF(UPPER(E90)="REQUERIDO", H90, "") -> 0
A91: Computador completo PC /Computador Portátil | B91: DIA_EQ_02 | C91: 1 | D91: =$J$89*C91 -> 0 | E91: Requerido | F91: 0 | G91: 0 | H91: =IF(AND(F91>=D91,F91>0,D91>0),10,0) -> 0 | K91: EG | AE91: =IF(UPPER(E91)="REQUERIDO", 10, "") -> 10 | AF91: =IF(UPPER(E91)="REQUERIDO", H91, "") -> 0
A92: Armario vitrina/Archivador | C92: 1 | D92: =$J$89*C92 -> 0 | E92: Requerido | F92: 0 | G92: 0 | H92: =IF(AND(F92>=D92,F92>0,D92>0),10,0) -> 0 | K92: MG | O92: =IF(UPPER(E92)="REQUERIDO", 10, "") -> 10 | P92: =IF(UPPER(E92)="REQUERIDO", H92, "") -> 0
A93: Plicometro | C93: 1 | D93: =$J$89*C93 -> 0 | E93: Requerido | F93: 0 | G93: 0 | H93: =IF(AND(F93>=D93,F93>0,D93>0),10,0) -> 0 | K93: EM | AM93: =IF(UPPER(E93)="REQUERIDO", 10, "") -> 10 | AN93: =IF(UPPER(E93)="REQUERIDO", H93, "") -> 0
A94: Báscula + tallimetro | C94: 1 | D94: =$J$89*C94 -> 0 | E94: Requerido | F94: 0 | G94: 0 | H94: =IF(AND(F94>=D94,F94>0,D94>0),10,0) -> 0 | K94: EM | AM94: 10 | AN94: 0
A95: Silla confidente | C95: 2 | D95: =$J$89*C95 -> 0 | E95: Requerido | F95: 0 | G95: 0 | H95: =IF(AND(F95>=D95,F95>0,D95>0),10,0) -> 0 | K95: MG | O95: =IF(UPPER(E95)="REQUERIDO", 10, "") -> 10 | P95: =IF(UPPER(E95)="REQUERIDO", H95, "") -> 0
A96: Silla | C96: 1 | D96: =$J$89*C96 -> 0 | E96: Requerido | F96: 0 | G96: 0 | H96: =IF(AND(F96>=D96,F96>0,D96>0),10,0) -> 0 | K96: MG | O96: 10 | P96: 0
A97: Set de desechos | B97: DIA_EQ_06 | C97: 1 | D97: =$J$89*C97 -> 0 | E97: Requerido | F97: 0 | G97: 0 | H97: =IF(AND(F97>=D97,F97>0,D97>0),10,0) -> 0 | K97: MG | O97: 10 | P97: 0
A98: Dispensador de Gel Antiséptico | C98: 1 | D98: =$J$89*C98 -> 0 | E98: Requerido | F98: 0 | G98: 0 | H98: 0 | K98: MG | O98: 10 | P98: 0
A99: SERVICIO DE DIÁLISIS PERITONEAL | AU99: =SUM(O100:O159) -> 140 | AV99: =SUM(P100:P159) -> 0 | AW99: =SUM(Q100:Q159) -> 10 | AX99: =SUM(R100:R159) -> 0 | AY99: 10 | AZ99: 0 | BA99: 0 | BB99: 0 | BC99: 0 | BD99: 0 | BE99: 0 | BF99: 0 | BG99: 0 | BH99: 0 | BI99: 0 | BJ99: 0 | BK99: 10 | BL99: 0 | BM99: 10 | BN99: 0 | BO99: 0 | BP99: 0 | BQ99: 0 | BR99: 0 | BS99: 0 | BT99: 0 | BU99: 0 | BV99: 0 | BW99: 0 | BX99: 0 | BY99: 0 | BZ99: 0
A100: ÁREA DE PROCEDIMIENTO DE DIÁLISIS PERITONEAL | AU100: =SUM(O100:O131) -> 0 | AV100: =SUM(P100:P131) -> 0 | AW100: =SUM(Q100:Q131) -> 0 | AX100: 0 | AY100: 10 | AZ100: =SUM(T100:T131) -> 0 | BA100: 0 | BB100: 0 | BC100: =SUM(W100:W131) -> 0 | BD100: 0 | BE100: 0 | BF100: =SUM(Z100:Z131) -> 0 | BG100: 0 | BH100: 0 | BI100: =SUM(AC100:AC131) -> 0 | BJ100: 0 | BK100: 0 | BL100: =SUM(AF100:AF131) -> 0 | BM100: 0 | BN100: 0 | BO100: =SUM(AI100:AI131) -> 0 | BP100: 0 | BQ100: 0 | BR100: =SUM(AL100:AL131) -> 0 | BS100: 0 | BT100: 0 | BU100: =SUM(AO100:AO131) -> 0 | BV100: 0 | BW100: 0 | BX100: =SUM(AR100:AR131) -> 0 | BY100: 0 | BZ100: 0
A101: ÁREA DE TRATAMIENTO | AU101: =SUM(O101:O131) -> 0 | AV101: =SUM(P101:P131) -> 0 | AW101: =SUM(Q101:Q131) -> 0 | AX101: 0 | AY101: 10 | AZ101: =SUM(T101:T131) -> 0 | BA101: 0 | BB101: 0 | BC101: =SUM(W101:W131) -> 0 | BD101: 0 | BE101: 0 | BF101: =SUM(Z101:Z131) -> 0 | BG101: 0 | BH101: 0 | BI101: =SUM(AC101:AC131) -> 0 | BJ101: 0 | BK101: 0 | BL101: =SUM(AF101:AF131) -> 0 | BM101: 0 | BN101: 0 | BO101: =SUM(AI101:AI131) -> 0 | BP101: 0 | BQ101: 0 | BR101: =SUM(AL101:AL131) -> 0 | BS101: 0 | BT101: 0 | BU101: =SUM(AO101:AO131) -> 0 | BV101: 0 | BW101: 0 | BX101: =SUM(AR101:AR131) -> 0 | BY101: 0 | BZ101: 0
A102: AMBIENTES | AU102: =SUM(O103:O126) -> 0 | AV102: =SUM(P103:P126) -> 0 | AW102: =SUM(Q103:Q126) -> 0 | AX102: 0 | AY102: 10 | AZ102: =SUM(T103:T126) -> 0 | BA102: 0 | BB102: 0 | BC102: =SUM(W103:W126) -> 0 | BD102: 0 | BE102: 0 | BF102: =SUM(Z103:Z126) -> 0 | BG102: 0 | BH102: 0 | BI102: =SUM(AC103:AC126) -> 0 | BJ102: 0 | BK102: 0 | BL102: =SUM(AF103:AF126) -> 0 | BM102: 0 | BN102: 0 | BO102: =SUM(AI103:AI126) -> 0 | BP102: 0 | BQ102: 0 | BR102: =SUM(AL103:AL126) -> 0 | BS102: 0 | BT102: 0 | BU102: =SUM(AO103:AO126) -> 0 | BV102: 0 | BW102: 0 | BX102: =SUM(AR103:AR126) -> 0 | BY102: 0 | BZ102: 0
A103: Sala de procedimientos - Debe existir acuerdo con una unidad quirúrgica para realización, reparación de Fístulas y colocación de Catéteres en caso de no haber convenio se hará requerido | B103: =B1 -> Anx: | C103: =C$1 -> Cant x Espacio: | D103: Requerido: | E103: Tipo: | F103: Funcional: | G103: No Funcional: | H103: Calif: | I103: Observaciones: | J103: =Infraestructura!F28 -> 0
A104: Camilla de exploración, 2 cuerpos | C104: 1 | D104: =$J$103*C104 -> 0 | E104: =IF(D104>0, "Requerido", "Sin Infraestructura") -> Sin Infraestructura | F104: 0 | G104: 0 | H104: =IF(AND(F104>=D104,F104>0,D104>0),10,0) -> 0 | K104: MM | W104: =IF(UPPER(E104)="REQUERIDO", 10, "") ->  | X104: =IF(UPPER(E104)="REQUERIDO", H104, "") -> 
A105: Porta sueros | C105: 1 | D105: =$J$103*C105 -> 0 | E105: Sin Infraestructura | F105: 0 | G105: 0 | H105: 0 | K105: EM | AM105: =IF(UPPER(E105)="REQUERIDO", 10, "") ->  | AN105: =IF(UPPER(E105)="REQUERIDO", H105, "") -> 
A106: Tensiómetro | C106: 1 | D106: 0 | E106: Sin Infraestructura | F106: 0 | G106: 0 | H106: 0 | K106: EM
A107: Estetoscopio | C107: 1 | D107: 0 | E107: Sin Infraestructura | F107: 0 | G107: 0 | H107: 0 | K107: EM
A108: Coche de paro completo | B108: DIA_EQ_08 | C108: 1 | D108: 0 | E108: Sin Infraestructura | F108: 0 | G108: 0 | H108: 0 | K108: EM
A109: Desfibrilador | C109: 1 | D109: 0 | E109: Sin Infraestructura | F109: 0 | G109: 0 | H109: 0 | K109: EM
A110: Electrocardiógrafo | C110: 1 | D110: 0 | E110: Sin Infraestructura | F110: 0 | G110: 0 | H110: 0 | K110: EM
A111: Lámpara de cuello de ganso | C111: 1 | D111: 0 | E111: Sin Infraestructura | F111: 0 | G111: 0 | H111: 0 | K111: MM | W111: =IF(UPPER(E111)="REQUERIDO", 10, "") ->  | X111: =IF(UPPER(E111)="REQUERIDO", H111, "") -> 
A112: Monitor Signos Vitales NIBP,SPO2 | C112: 1 | D112: 0 | E112: Sin Infraestructura | F112: 0 | G112: 0 | H112: 0 | K112: EM | AM112: =IF(UPPER(E112)="REQUERIDO", 10, "") ->  | AN112: =IF(UPPER(E112)="REQUERIDO", H112, "") -> 
A113: Set de desechos | C113: 1 | D113: 0 | E113: Sin Infraestructura | F113: 0 | G113: 0 | H113: 0 | K113: MG | O113: =IF(UPPER(E113)="REQUERIDO", 10, "") ->  | P113: =IF(UPPER(E113)="REQUERIDO", H113, "") -> 
A114: Silla | C114: 1 | D114: 0 | E114: Sin Infraestructura | F114: 0 | G114: 0 | H114: 0 | K114: MG
A115: Lavabo | C115: 1 | D115: 0 | E115: Sin Infraestructura | F115: 0 | G115: 0 | H115: 0 | K115: MG
A116: Dosificador de jabón | C116: 1 | D116: 0 | E116: Sin Infraestructura | F116: 0 | G116: 0 | H116: 0 | K116: MG
A117: Dispensador de papel toalla | C117: 1 | D117: 0 | E117: Sin Infraestructura | F117: 0 | G117: 0 | H117: 0 | K117: MG
A118: Lámpara quirúrgica básica portátil cielítica | C118: 1 | D118: 0 | E118: Sin Infraestructura | F118: 0 | G118: 0 | H118: 0 | K118: MM | W118: =IF(UPPER(E118)="REQUERIDO", 10, "") ->  | X118: =IF(UPPER(E118)="REQUERIDO", H118, "") -> 
A119: Mesa de mayo , acero inoxidable. | C119: 1 | D119: 0 | E119: Sin Infraestructura | F119: 0 | G119: 0 | H119: 0 | K119: MM
A120: Mesa instrumental auxiliar | C120: 1 | D120: 0 | E120: Sin Infraestructura | F120: 0 | G120: 0 | H120: 0 | K120: MM
A121: Tomas de gases medicinales y vacío | C121: 1 | D121: 0 | E121: Sin Infraestructura | F121: 0 | G121: 0 | H121: 0 | K121: MM
A122: Soporte bajo rodado, una cubeta acero inoxidable | C122: 1 | D122: 0 | E122: Deseable | F122: 0 | G122: 0 | H122: 0 | K122: MG | O122: =IF(UPPER(E122)="REQUERIDO", 10, "") ->  | P122: =IF(UPPER(E122)="REQUERIDO", H122, "") ->  | S122: =IF(UPPER(E122)="DESEABLE", 10, 0) -> 10 | T122: =IF(UPPER(E122)="DESEABLE", H122, "") -> 0
A123: Set de desechos | B123: DIA_EQ_06 | C123: 1 | D123: 0 | E123: =IF(D123>0, "Requerido", "Sin Infraestructura") -> Sin Infraestructura | F123: 0 | G123: 0 | H123: 0 | K123: MG
A124: Taburete bajo con respaldo, con ruedas | C124: 1 | D124: 0 | E124: =IF(D124>0, "Requerido", "Sin Infraestructura") -> Sin Infraestructura | F124: 0 | G124: 0 | H124: 0 | K124: MG
A125: Flujómetro para O2 | C125: 1 | D125: 0 | E125: =IF(D125>0, "Requerido", "Sin Infraestructura") -> Sin Infraestructura | F125: 0 | G125: 0 | H125: 0 | K125: MG
A126: Vacuómetro | C126: 1 | D126: 0 | E126: =IF(D126>0, "Requerido", "Sin Infraestructura") -> Sin Infraestructura | F126: 0 | G126: 0 | H126: 0 | K126: EM | AM126: =IF(UPPER(E126)="REQUERIDO", 10, "") ->  | AN126: =IF(UPPER(E126)="REQUERIDO", H126, "") -> 
A127: Zona de esterilización - Se convierte en Requerido si existe la Sala de Procedimientos. Puede seguir como condición en el caso de tener externalizado el servicio de esterilización | B127: =B1 -> Anx: | C127: =C$1 -> Cant x Espacio: | D127: Requerido: | E127: Tipo: | F127: Funcional: | G127: No Funcional: | H127: Calif: | I127: Observaciones: | J127: =Infraestructura!F29 -> 0
A128: Autoclave /Esterilizador | C128: 1 | D128: =J127*C128 -> 0 | E128: =IF(D128>0, "Requerido", "Sin Infraestructura") -> Sin Infraestructura | F128: 0 | G128: 0 | H128: =IF(AND(F128>=D128,F128>0,D128>0),10,0) -> 0 | K128: EM | AM128: =IF(UPPER(E128)="REQUERIDO", 10, "") ->  | AN128: =IF(UPPER(E128)="REQUERIDO", H128, "") -> 
A129: Dispensador de papel toalla | C129: 1 | D129: =J127*C129 -> 0 | E129: =IF(D129>0, "Requerido", "Sin Infraestructura") -> Sin Infraestructura | F129: 0 | G129: 0 | H129: =IF(AND(F129>=D129,F129>0,D129>0),10,0) -> 0 | K129: MG | O129: =IF(UPPER(E129)="REQUERIDO", 10, "") ->  | P129: =IF(UPPER(E129)="REQUERIDO", H129, "") -> 
A130: Dosificador de jabón | C130: 1 | D130: =J127*C130 -> 0 | E130: =IF(D130>0, "Requerido", "Sin Infraestructura") -> Sin Infraestructura | F130: 0 | G130: 0 | H130: =IF(AND(F130>=D130,F130>0,D130>0),10,0) -> 0 | K130: MG
A131: Mueble bajo con mesón, lavabo y puertas bajas | C131: 1 | D131: =J127*C131 -> 0 | E131: =IF(D131>0, "Requerido", "Sin Infraestructura") -> Sin Infraestructura | F131: 0 | G131: 0 | H131: =IF(AND(F131>=D131,F131>0,D131>0),10,0) -> 0 | K131: MG
A132: ÁREA DE APOYO Y APROVISONAMIENTO | AU132: =SUM(O133:O159) -> 140 | AV132: =SUM(P133:P159) -> 0 | AW132: =SUM(Q133:Q159) -> 10 | AX132: 0 | AY132: 0 | AZ132: 0 | BA132: 0 | BB132: 0 | BC132: 0 | BD132: 0 | BE132: 0 | BF132: 0 | BG132: 0 | BH132: 0 | BI132: 0 | BJ132: 0 | BK132: 10 | BL132: 0 | BM132: 10 | BN132: 0 | BO132: 0 | BP132: 0 | BQ132: 0 | BR132: 0 | BS132: 0 | BT132: 0 | BU132: 0 | BV132: 0 | BW132: 0 | BX132: 0 | BY132: 0 | BZ132: 0
A133: Esta área funcional debe estar centralizada y no debe estar en contacto con las áreas de tratamiento | AU133: =SUM(O133:O144) -> 50 | AV133: =SUM(P133:P144) -> 0 | AW133: =SUM(Q133:Q144) -> 0 | AX133: 0 | AY133: 0 | AZ133: 0 | BA133: 0 | BB133: 0 | BC133: 0 | BD133: 0 | BE133: 0 | BF133: 0 | BG133: 0 | BH133: 0 | BI133: 0 | BJ133: 0 | BK133: 10 | BL133: 0 | BM133: 0 | BN133: 0 | BO133: 0 | BP133: 0 | BQ133: 0 | BR133: 0 | BS133: 0 | BT133: 0 | BU133: 0 | BV133: 0 | BW133: 0 | BX133: 0 | BY133: 0 | BZ133: 0
A134: AMBIENTES | AU134: =SUM(O135:O144) -> 50 | AV134: =SUM(P135:P144) -> 0 | AW134: =SUM(Q135:Q144) -> 0 | AX134: =SUM(R135:R144) -> 0 | AY134: 0 | AZ134: 0 | BA134: 0 | BB134: 0 | BC134: 0 | BD134: 0 | BE134: 0 | BF134: 0 | BG134: 0 | BH134: 0 | BI134: 0 | BJ134: 0 | BK134: 10 | BL134: 0 | BM134: 0 | BN134: 0 | BO134: 0 | BP134: 0 | BQ134: 0 | BR134: 0 | BS134: 0 | BT134: 0 | BU134: 0 | BV134: 0 | BW134: 0 | BX134: 0 | BY134: 0 | BZ134: 0
A135: Cuarto de limpieza con vertedero | B135: =B1 -> Anx: | C135: =C$1 -> Cant x Espacio: | D135: Requerido: | E135: Tipo: | F135: Funcional: | G135: No Funcional: | H135: Calif: | I135: Observaciones: | J135: =Infraestructura!F36 -> 0
A136: Coche de limpieza | B136: DIA_EQ_07 | C136: 1 | D136: =J135*C136 -> 0 | E136: Requerido | F136: 0 | G136: 0 | H136: =IF(AND(F136>=D136,F136>0,D136>0),10,0) -> 0 | K136: MG | O136: =IF(UPPER(E136)="REQUERIDO", 10, "") -> 10 | P136: =IF(UPPER(E136)="REQUERIDO", H136, "") -> 0
A137: Stock de Insumos de Limpieza | B137: DIA_EQ_10 | C137: 1 | D137: =J135*C137 -> 0 | E137: Requerido | F137: 0 | G137: 0 | H137: =IF(AND(F137>=D137,F137>0,D137>0),10,0) -> 0 | K137: EG | AE137: =IF(UPPER(E137)="REQUERIDO", 10, "") -> 10 | AF137: =IF(UPPER(E137)="REQUERIDO", H137, "") -> 0
A138: Estantería básica | C138: 1 | D138: =J135*C138 -> 0 | E138: Requerido | F138: 0 | G138: 0 | H138: =IF(AND(F138>=D138,F138>0,D138>0),10,0) -> 0 | K138: MG | O138: =IF(UPPER(E138)="REQUERIDO", 10, "") -> 10 | P138: =IF(UPPER(E138)="REQUERIDO", H138, "") -> 0
A139: Lavadero con poza profunda para el preparado y enjuague de los útiles de limpieza (vertedero/Tineta) | C139: 1 | D139: =J135*C139 -> 0 | E139: Requerido | F139: 0 | G139: 0 | H139: =IF(AND(F139>=D139,F139>0,D139>0),10,0) -> 0 | K139: MG | O139: 10 | P139: 0
A140: Almacenamiento intermedio de desechos (Se hará requerido en el caso de contar con más de 50 puestos de tratamiento) | B140: =B1 -> Anx: | C140: =C$1 -> Cant x Espacio: | D140: Requerido: | E140: Tipo: | F140: Funcional: | G140: No Funcional: | H140: Calif: | I140: Observaciones: | J140: =Infraestructura!F37 -> 0
A141: Set de desechos | B141: DIA_EQ_06 | C141: 1 | D141: =J140*C141 -> 0 | E141: =IF(D141>0, "Requerido", "Sin Infraestructura") -> Sin Infraestructura | F141: 0 | G141: 0 | H141: =IF(AND(F141>=D141,F141>0,D141>0),10,0) -> 0 | K141: MG | O141: =IF(UPPER(E141)="REQUERIDO", 10, "") ->  | P141: =IF(UPPER(E141)="REQUERIDO", H141, "") -> 
A142: Lencería | B142: =B1 -> Anx: | C142: =C$1 -> Cant x Espacio: | D142: Requerido: | E142: Tipo: | F142: Funcional: | G142: No Funcional: | H142: Calif: | I142: Observaciones: | J142: =Infraestructura!F38 -> 0
A143: Estantería básica | C143: 1 | D143: =J142*C143 -> 0 | E143: Requerido | F143: 0 | G143: 0 | H143: =IF(AND(F143>=D143,F143>0,D143>0),10,0) -> 0 | K143: MG | O143: =IF(UPPER(E143)="REQUERIDO", 10, "") -> 10 | P143: =IF(UPPER(E143)="REQUERIDO", H143, "") -> 0
A144: Coche de ropa limpia | C144: 1 | D144: =J142*C144 -> 0 | E144: Requerido | F144: 0 | G144: 0 | H144: =IF(AND(F144>=D144,F144>0,D144>0),10,0) -> 0 | K144: MG | O144: 10 | P144: 0
A145: ÁREA PACIENTE | AU145: =SUM(O146:O159) -> 90 | AV145: =SUM(P146:P159) -> 0 | AW145: =SUM(Q146:Q159) -> 10 | AX145: =SUM(R146:R159) -> 0 | AY145: 0 | AZ145: 0 | BA145: 0 | BB145: 0 | BC145: 0 | BD145: 0 | BE145: 0 | BF145: 0 | BG145: 0 | BH145: 0 | BI145: 0 | BJ145: 0 | BK145: 0 | BL145: 0 | BM145: 10 | BN145: 0 | BO145: 0 | BP145: 0 | BQ145: 0 | BR145: 0 | BS145: 0 | BT145: 0 | BU145: 0 | BV145: 0 | BW145: 0 | BX145: 0 | BY145: 0 | BZ145: 0
A146: AMBIENTES | AU146: =SUM(O147:O159) -> 90 | AV146: =SUM(P147:P159) -> 0 | AW146: =SUM(Q147:Q159) -> 10 | AX146: =SUM(R147:R159) -> 0 | AY146: 0 | AZ146: 0 | BA146: 0 | BB146: 0 | BC146: 0 | BD146: 0 | BE146: 0 | BF146: 0 | BG146: 0 | BH146: 0 | BI146: 0 | BJ146: 0 | BK146: 0 | BL146: 0 | BM146: 10 | BN146: 0 | BO146: 0 | BP146: 0 | BQ146: 0 | BR146: 0 | BS146: 0 | BT146: 0 | BU146: 0 | BV146: 0 | BW146: 0 | BX146: 0 | BY146: 0 | BZ146: 0
A147: Repostería | B147: =B1 -> Anx: | C147: =C$1 -> Cant x Espacio: | D147: Requerido: | E147: Tipo: | F147: Funcional: | G147: No Funcional: | H147: Calif: | I147: Observaciones: | J147: =Infraestructura!$F$44 -> 0
A148: Mueble bajo con mesón, lavabo y puertas bajas | C148: 1 | D148: =J147*C148 -> 0 | E148: Opcional | F148: 0 | G148: 0 | H148: =IF(AND(F148>=D148,F148>0,D148>0),10,0) -> 0 | K148: MG | Q148: =IF(UPPER(E148)="OPCIONAL", 10, "") -> 10 | R148: =IF(UPPER(E148)="OPCIONAL", H148, "") -> 0
A149: Basurero con tapa y/o pedal | C149: 1 | D149: =J147*C149 -> 0 | E149: Requerido | F149: 0 | G149: 0 | H149: 0 | K149: MG | O149: =IF(UPPER(E149)="REQUERIDO", 10, "") -> 10 | P149: =IF(UPPER(E149)="REQUERIDO", H149, "") -> 0
A150: Dispensador de papel toalla | C150: 1 | D150: =J147*C150 -> 0 | E150: Requerido | F150: 0 | G150: 0 | H150: 0 | K150: MG | O150: 10 | P150: 0
A151: Dosificador de jabón | C151: 1 | D151: =J147*C151 -> 0 | E151: Requerido | F151: 0 | G151: 0 | H151: 0 | K151: MG | O151: 10 | P151: 0
A152: Mesa | C152: 1 | D152: =J147*C152 -> 0 | E152: Requerido | F152: 0 | G152: 0 | H152: 0 | K152: MG | O152: 10 | P152: 0
A153: Refrigerador | C153: 1 | D153: =J147*C153 -> 0 | E153: Opcional | F153: 0 | G153: 0 | H153: 0 | K153: EG | AG153: =IF(UPPER(E153)="OPCIONAL", 10, "") -> 10 | AH153: =IF(UPPER(E153)="OPCIONAL", H153, "") -> 0
A154: Silla | C154: 4 | D154: =J147*C154 -> 0 | E154: Requerido | F154: 0 | G154: 0 | H154: 0 | K154: MG | O154: =IF(UPPER(E154)="REQUERIDO", 10, "") -> 10 | P154: =IF(UPPER(E154)="REQUERIDO", H154, "") -> 0
A155: Vestidor de pacientes | B155: =B1 -> Anx: | C155: =C$1 -> Cant x Espacio: | D155: Requerido: | E155: Tipo: | F155: Funcional: | G155: No Funcional: | H155: Calif: | I155: Observaciones: | J155: =Infraestructura!$F$45 -> 0
A156: Lockers | C156: 5 | D156: =J155*C156 -> 0 | E156: Requerido | F156: 0 | G156: 0 | H156: =IF(AND(F156>=D156,F156>0,D156>0),10,0) -> 0 | K156: MG | O156: =IF(UPPER(E156)="REQUERIDO", 10, "") -> 10 | P156: =IF(UPPER(E156)="REQUERIDO", H156, "") -> 0
A157: Banco de vestuario | C157: 1 | D157: =J155*C157 -> 0 | E157: Requerido | F157: 0 | G157: 0 | H157: =IF(AND(F157>=D157,F157>0,D157>0),10,0) -> 0 | K157: MG | O157: 10 | P157: 0
A158: Gancho doble | C158: 1 | D158: =J155*C158 -> 0 | E158: Requerido | F158: 0 | G158: 0 | H158: =IF(AND(F158>=D158,F158>0,D158>0),10,0) -> 0 | K158: MG | O158: 10 | P158: 0
A159: Basurero con tapa y/o pedal | C159: 1 | D159: =J155*C159 -> 0 | E159: Requerido | F159: 0 | G159: 0 | H159: =IF(AND(F159>=D159,F159>0,D159>0),10,0) -> 0 | K159: MG | O159: 10 | P159: 0
A160: SERVICIO DE DIÁLISIS PERITONEAL | AU160: =SUM(O161:O191) -> 80 | AV160: =SUM(P161:P191) -> 0 | AW160: =SUM(Q161:Q191) -> 0 | AX160: 0 | AY160: 0 | AZ160: =SUM(T161:T191) -> 0 | BA160: 0 | BB160: 0 | BC160: =SUM(W161:W191) -> 20 | BD160: 0 | BE160: 20 | BF160: =SUM(Z161:Z191) -> 0 | BG160: 0 | BH160: 0 | BI160: =SUM(AC161:AC191) -> 0 | BJ160: 0 | BK160: 10 | BL160: =SUM(AF161:AF191) -> 0 | BM160: 0 | BN160: 0 | BO160: =SUM(AI161:AI191) -> 0 | BP160: 0 | BQ160: 0 | BR160: =SUM(AL161:AL191) -> 0 | BS160: 10 | BT160: 0 | BU160: =SUM(AO161:AO191) -> 0 | BV160: 0 | BW160: 0 | BX160: =SUM(AR161:AR191) -> 0 | BY160: 0 | BZ160: 0
A161: ÁREA DE TRATAMIENTO DE DIÁLISIS PERITONEAL | AU161: =SUM(O162:O191) -> 80 | AV161: =SUM(P162:P191) -> 0 | AW161: =SUM(Q162:Q191) -> 0 | AX161: 0 | AY161: 0 | AZ161: 0 | BA161: 0 | BB161: 0 | BC161: 20 | BD161: 0 | BE161: 20 | BF161: 0 | BG161: 0 | BH161: 0 | BI161: 0 | BJ161: 0 | BK161: 10 | BL161: 0 | BM161: 0 | BN161: 0 | BO161: 0 | BP161: 0 | BQ161: 0 | BR161: 0 | BS161: 10 | BT161: 0 | BU161: 0 | BV161: 0 | BW161: 0 | BX161: 0 | BY161: 0 | BZ161: 0
A162: ÁREA DE TRATAMIENTO | AU162: =SUM(O163:O178) -> 80 | AV162: =SUM(P163:P178) -> 0 | AW162: =SUM(Q163:Q178) -> 0 | AX162: 0 | AY162: 0 | AZ162: 0 | BA162: 0 | BB162: 0 | BC162: 20 | BD162: 0 | BE162: 10 | BF162: 0 | BG162: 0 | BH162: 0 | BI162: 0 | BJ162: 0 | BK162: 10 | BL162: 0 | BM162: 0 | BN162: 0 | BO162: 0 | BP162: 0 | BQ162: 0 | BR162: 0 | BS162: 10 | BT162: 0 | BU162: 0 | BV162: 0 | BW162: 0 | BX162: 0 | BY162: 0 | BZ162: 0
A163: AMBIENTES | AU163: =SUM(O164:O178) -> 80 | AV163: =SUM(P164:P178) -> 0 | AW163: =SUM(Q164:Q178) -> 0 | AX163: =SUM(R164:R178) -> 0 | AY163: 0 | AZ163: 0 | BA163: 0 | BB163: 0 | BC163: 20 | BD163: 0 | BE163: 10 | BF163: 0 | BG163: 0 | BH163: 0 | BI163: 0 | BJ163: 0 | BK163: 10 | BL163: 0 | BM163: 0 | BN163: 0 | BO163: 0 | BP163: 0 | BQ163: 0 | BR163: 0 | BS163: 10 | BT163: 0 | BU163: 0 | BV163: 0 | BW163: 0 | BX163: 0 | BY163: 0 | BZ163: 0
A164: Sala de entrenamiento | B164: =B1 -> Anx: | C164: =C$1 -> Cant x Espacio: | D164: Requerido: | E164: Tipo: | F164: Funcional: | G164: No Funcional: | H164: Calif: | I164: Observaciones: | J164: =Infraestructura!$F$53 -> 0
A165: Silla | C165: 2 | D165: =J164*C165 -> 0 | E165: Requerido | F165: 0 | G165: 0 | H165: =IF(AND(F165>=D165,F165>0,D165>0),10,0) -> 0 | K165: MG | O165: =IF(UPPER(E165)="REQUERIDO", 10, "") -> 10 | P165: =IF(UPPER(E165)="REQUERIDO", H165, "") -> 0
A166: Coche de curaciones | B166: DIA_EQ_04 | C166: 1 | D166: =J164*C166 -> 0 | E166: Requerido | F166: 0 | G166: 0 | H166: 0 | K166: MM | W166: =IF(UPPER(E166)="REQUERIDO", 10, "") -> 10 | X166: =IF(UPPER(E166)="REQUERIDO", H166, "") -> 0
A167: Mesilla | C167: 1 | D167: =J164*C167 -> 0 | E167: Requerido | F167: 0 | G167: 0 | H167: 0 | K167: MG | O167: =IF(UPPER(E167)="REQUERIDO", 10, "") -> 10 | P167: =IF(UPPER(E167)="REQUERIDO", H167, "") -> 0
A168: Camilla / Sillón reclinable | C168: 1 | D168: =J164*C168 -> 0 | E168: Opcional | F168: 0 | G168: 0 | H168: 0 | K168: MM | Y168: =IF(UPPER(E168)="OPCIONAL", 10, 0) -> 10 | Z168: =IF(UPPER(E168)="OPCIONAL", H168, "") -> 0
A169: Mesón con doble Lavabo en Espejo | C169: 1 | D169: =J164*C169 -> 0 | E169: Requerido | F169: 0 | G169: 0 | H169: 0 | K169: MG | O169: =IF(UPPER(E169)="REQUERIDO", 10, "") -> 10 | P169: =IF(UPPER(E169)="REQUERIDO", H169, "") -> 0
A170: Máquina Cicladora | C170: 2 | D170: =J164*C170 -> 0 | E170: Requerido | F170: 0 | G170: 0 | H170: 0 | K170: EM | AM170: =IF(UPPER(E170)="REQUERIDO", 10, "") -> 10 | AN170: =IF(UPPER(E170)="REQUERIDO", H170, "") -> 0
A171: Set de desechos | B171: DIA_EQ_06 | C171: 1 | D171: =J164*C171 -> 0 | E171: Requerido | F171: 0 | G171: 0 | H171: 0 | K171: MG | O171: =IF(UPPER(E171)="REQUERIDO", 10, "") -> 10 | P171: =IF(UPPER(E171)="REQUERIDO", H171, "") -> 0
A172: Sistema Audiovisual de Información | B172: DIA_EQ_03 | C172: 1 | D172: =J164*C172 -> 0 | E172: Requerido | F172: 0 | G172: 0 | H172: 0 | K172: EG | AE172: =IF(UPPER(E172)="REQUERIDO", 10, "") -> 10 | AF172: =IF(UPPER(E172)="REQUERIDO", H172, "") -> 0
A173: Área de recambios | B173: =B1 -> Anx: | C173: =C$1 -> Cant x Espacio: | D173: Requerido: | E173: Tipo: | F173: Funcional: | G173: No Funcional: | H173: Calif: | I173: Observaciones: | J173: =Infraestructura!$F$54 -> 0
A174: Sillón Reclinable | C174: 1 | D174: =J173*C174 -> 0 | E174: Requerido | F174: 0 | G174: 0 | H174: =IF(AND(F174>=D174,F174>0,D174>0),10,0) -> 0 | K174: MG | O174: =IF(UPPER(E174)="REQUERIDO", 10, "") -> 10 | P174: =IF(UPPER(E174)="REQUERIDO", H174, "") -> 0
A175: Porta sueros | C175: 1 | D175: =J173*C175 -> 0 | E175: Requerido | F175: 0 | G175: 0 | H175: =IF(AND(F175>=D175,F175>0,D175>0),10,0) -> 0 | K175: MM | W175: =IF(UPPER(E175)="REQUERIDO", 10, "") -> 10 | X175: =IF(UPPER(E175)="REQUERIDO", H175, "") -> 0
A176: Silla | C176: 1 | D176: =J173*C176 -> 0 | E176: Requerido | F176: 0 | G176: 0 | H176: =IF(AND(F176>=D176,F176>0,D176>0),10,0) -> 0 | K176: MG | O176: =IF(UPPER(E176)="REQUERIDO", 10, "") -> 10 | P176: =IF(UPPER(E176)="REQUERIDO", H176, "") -> 0
A177: Set de desechos | B177: DIA_EQ_06 | C177: 1 | D177: =J173*C177 -> 0 | E177: Requerido | F177: 0 | G177: 0 | H177: =IF(AND(F177>=D177,F177>0,D177>0),10,0) -> 0 | K177: MG | O177: 10 | P177: 0
A178: Mesa | C178: 1 | D178: =J173*C178 -> 0 | E178: Requerido | F178: 0 | G178: 0 | H178: =IF(AND(F178>=D178,F178>0,D178>0),10,0) -> 0 | K178: MG | O178: 10 | P178: 0
A179: ÁREA TÉCNICA | AU179: =SUM(O180:O191) -> 0 | AV179: =SUM(P180:P191) -> 0 | AW179: =SUM(Q180:Q191) -> 0 | AX179: 0 | AY179: 0 | AZ179: 0 | BA179: 0 | BB179: 0 | BC179: 0 | BD179: 0 | BE179: 10 | BF179: 0 | BG179: 0 | BH179: 0 | BI179: 0 | BJ179: 0 | BK179: 0 | BL179: 0 | BM179: 0 | BN179: 0 | BO179: 0 | BP179: 0 | BQ179: 0 | BR179: 0 | BS179: 0 | BT179: 0 | BU179: 0 | BV179: 0 | BW179: 0 | BX179: 0 | BY179: 0 | BZ179: 0
A180: AMBIENTES | AU180: =SUM(O181:O191) -> 0 | AV180: =SUM(P181:P191) -> 0 | AW180: =SUM(Q181:Q191) -> 0 | AX180: 0 | AY180: 0 | AZ180: 0 | BA180: 0 | BB180: 0 | BC180: 0 | BD180: 0 | BE180: 10 | BF180: 0 | BG180: 0 | BH180: 0 | BI180: 0 | BJ180: 0 | BK180: 0 | BL180: 0 | BM180: 0 | BN180: 0 | BO180: 0 | BP180: 0 | BQ180: 0 | BR180: 0 | BS180: 0 | BT180: 0 | BU180: 0 | BV180: 0 | BW180: 0 | BX180: 0 | BY180: 0 | BZ180: 0
A181: Limpio | B181: =B1 -> Anx: | C181: =C$1 -> Cant x Espacio: | D181: Requerido: | E181: Tipo: | F181: Funcional: | G181: No Funcional: | H181: Calif: | I181: Observaciones: | J181: =Infraestructura!$F$60 -> 0
A182: Mueble bajo con mesón, lavabo y puertas bajas | C182: 1 | D182: =J181*C182 -> 0 | E182: =IF(D182>0, "Requerido", "Sin Infraestructura") -> Sin Infraestructura | F182: 0 | G182: 0 | H182: =IF(AND(F182>=D182,F182>0,D182>0),10,0) -> 0 | K182: MG | O182: =IF(UPPER(E182)="REQUERIDO", 10, "") ->  | P182: =IF(UPPER(E182)="REQUERIDO", H182, "") -> 
A183: Armario vitrina | C183: 1 | D183: =J181*C183 -> 0 | E183: Sin Infraestructura | F183: 0 | G183: 0 | H183: 0 | K183: MG
A184: Basurero con tapa y/o pedal | C184: 1 | D184: =J181*C184 -> 0 | E184: Sin Infraestructura | F184: 0 | G184: 0 | H184: 0 | K184: MG
A185: Coche de curaciones | B185: DIA_EQ_04 | C185: 1 | D185: =J181*C185 -> 0 | E185: Opcional | F185: 0 | G185: 0 | H185: 0 | K185: MM | Y185: =IF(UPPER(E185)="OPCIONAL", 10, 0) -> 10 | Z185: =IF(UPPER(E185)="OPCIONAL", H185, "") -> 0
A186: Dispensador de papel toalla | C186: 1 | D186: =J181*C186 -> 0 | E186: Sin Infraestructura | F186: 0 | G186: 0 | H186: 0 | K186: MG | O186: =IF(UPPER(E186)="REQUERIDO", 10, "") ->  | P186: =IF(UPPER(E186)="REQUERIDO", H186, "") -> 
A187: Dosificador de jabón | C187: 1 | D187: =J181*C187 -> 0 | E187: Sin Infraestructura | F187: 0 | G187: 0 | H187: 0 | K187: MG
A188: Usado | B188: =B1 -> Anx: | C188: =C$1 -> Cant x Espacio: | D188: Requerido: | E188: Tipo: | F188: Funcional: | G188: No Funcional: | H188: Calif: | I188: Observaciones: | J188: =Infraestructura!$F$61 -> 0
A189: Estantería básica | C189: 1 | D189: =J188*C189 -> 0 | E189: Sin Infraestructura | F189: 0 | G189: 0 | H189: =IF(AND(F189>=D189,F189>0,D189>0),10,0) -> 0 | K189: MG | O189: =IF(UPPER(E189)="REQUERIDO", 10, "") ->  | P189: =IF(UPPER(E189)="REQUERIDO", H189, "") -> 
A190: Basurero con tapa y/o pedal | C190: 2 | D190: =J188*C190 -> 0 | E190: Sin Infraestructura | F190: 0 | G190: 0 | H190: =IF(AND(F190>=D190,F190>0,D190>0),10,0) -> 0 | K190: MG
A191: Mesón con fregadero de acero inoxidable | C191: 1 | D191: =J188*C191 -> 0 | E191: Sin Infraestructura | F191: 0 | G191: 0 | H191: =IF(AND(F191>=D191,F191>0,D191>0),10,0) -> 0 | K191: MG
A192: SERVICIO DE DIAGNÓSTICO | W192: =IF(UPPER(E192)="REQUERIDO", 10, "") ->  | X192: =IF(UPPER(E192)="REQUERIDO", H192, "") ->  | AU192: =SUM(O193:O231) -> 0 | AV192: =SUM(P193:P231) -> 0 | AW192: =SUM(Q193:Q231) -> 0 | AX192: =SUM(R193:R231) -> 0 | AY192: 0 | AZ192: 0 | BA192: 0 | BB192: 0 | BC192: 0 | BD192: 0 | BE192: 0 | BF192: 0 | BG192: 0 | BH192: 0 | BI192: 0 | BJ192: 0 | BK192: 0 | BL192: 0 | BM192: 10 | BN192: 0 | BO192: 0 | BP192: 0 | BQ192: 0 | BR192: 0 | BS192: 0 | BT192: 0 | BU192: 0 | BV192: 0 | BW192: 0 | BX192: 0 | BY192: 10 | BZ192: 0
A193: LABORATORIO - PUESTO DE TOMA DE MUESTRAS | AE193: =IF(UPPER(E193)="REQUERIDO", 10, "") ->  | AF193: =IF(UPPER(E193)="REQUERIDO", H193, "") ->  | AU193: =SUM(O193:O231) -> 0 | AV193: =SUM(P194:P231) -> 0 | AW193: =SUM(Q193:Q231) -> 0 | AX193: =SUM(R194:R231) -> 0 | AY193: =SUM(S193:S231) -> 0 | AZ193: =SUM(T194:T231) -> 0 | BA193: =SUM(U193:U231) -> 0 | BB193: =SUM(V194:V231) -> 0 | BC193: =SUM(W193:W231) -> 0 | BD193: =SUM(X194:X231) -> 0 | BE193: =SUM(Y193:Y231) -> 0 | BF193: =SUM(Z194:Z231) -> 0 | BG193: =SUM(AA193:AA231) -> 0 | BH193: =SUM(AB194:AB231) -> 0 | BI193: =SUM(AC193:AC231) -> 0 | BJ193: =SUM(AD194:AD231) -> 0 | BK193: =SUM(AE193:AE231) -> 0 | BL193: =SUM(AF194:AF231) -> 0 | BM193: =SUM(AG193:AG231) -> 10 | BN193: =SUM(AH194:AH231) -> 0 | BO193: =SUM(AI193:AI231) -> 0 | BP193: =SUM(AJ194:AJ231) -> 0 | BQ193: =SUM(AK193:AK231) -> 0 | BR193: =SUM(AL194:AL231) -> 0 | BS193: =SUM(AM193:AM231) -> 0 | BT193: =SUM(AN194:AN231) -> 0 | BU193: =SUM(AO193:AO231) -> 0 | BV193: =SUM(AP194:AP231) -> 0 | BW193: =SUM(AQ193:AQ231) -> 0 | BX193: =SUM(AR194:AR231) -> 0 | BY193: =SUM(AS193:AS231) -> 10 | BZ193: =SUM(AT194:AT231) -> 0
A194: ÁREA DE TOMA DE MUESTRAS | AE194: =IF(UPPER(E194)="REQUERIDO", 10, "") ->  | AF194: =IF(UPPER(E194)="REQUERIDO", H194, "") ->  | AU194: =SUM(O195:O224) -> 0 | AV194: =SUM(P195:P224) -> 0 | AW194: =SUM(Q195:Q224) -> 0 | AX194: 0 | AY194: 0 | AZ194: 0 | BA194: 0 | BB194: 0 | BC194: 0 | BD194: 0 | BE194: 0 | BF194: 0 | BG194: 0 | BH194: 0 | BI194: 0 | BJ194: 0 | BK194: 0 | BL194: 0 | BM194: 10 | BN194: 0 | BO194: 0 | BP194: 0 | BQ194: 0 | BR194: 0 | BS194: 0 | BT194: 0 | BU194: 0 | BV194: 0 | BW194: 0 | BX194: 0 | BY194: 0 | BZ194: 0
A195: AMBIENTES | AU195: =SUM(O196:O224) -> 0 | AV195: =SUM(P196:P224) -> 0 | AW195: =SUM(Q196:Q224) -> 0 | AX195: 0 | AY195: 0 | AZ195: 0 | BA195: 0 | BB195: 0 | BC195: 0 | BD195: 0 | BE195: 0 | BF195: 0 | BG195: 0 | BH195: 0 | BI195: 0 | BJ195: 0 | BK195: 0 | BL195: 0 | BM195: 10 | BN195: 0 | BO195: 0 | BP195: 0 | BQ195: 0 | BR195: 0 | BS195: 0 | BT195: 0 | BU195: 0 | BV195: 0 | BW195: 0 | BX195: 0 | BY195: 0 | BZ195: 0
A196: Baterías sanitarias | B196: =B1 -> Anx: | C196: =C$1 -> Cant x Espacio: | D196: Requerido: | E196: Tipo: | F196: Funcional: | G196: No Funcional: | H196: Calif: | I196: Observaciones: | J196: =Infraestructura!F70 -> 0
A197: Dosificador de jabón | C197: 1 | D197: =J196*C197 -> 0 | E197: =IF(D197>0, "Requerido", "Sin Infraestructura") -> Sin Infraestructura | F197: 0 | G197: 0 | H197: =IF(AND(F197>=D197,F197>0,D197>0),10,0) -> 0 | K197: MG | O197: =IF(UPPER(E197)="REQUERIDO", 10, "") ->  | P197: =IF(UPPER(E197)="REQUERIDO", H197, "") -> 
A198: Dispensador de papel toalla | C198: 1 | D198: =J196*C198 -> 0 | E198: Sin Infraestructura | F198: 0 | G198: 0 | H198: =IF(AND(F198>=D198,F198>0,D198>0),10,0) -> 0 | K198: MG
A199: Dispensador de papel higiénico | C199: 1 | D199: =J196*C199 -> 0 | E199: Sin Infraestructura | F199: 0 | G199: 0 | H199: 0 | AE199: =IF(UPPER(E199)="REQUERIDO", 10, "") ->  | AF199: =IF(UPPER(E199)="REQUERIDO", H199, "") -> 
A200: Espejo empotrado | C200: 1 | D200: =J196*C200 -> 0 | E200: Sin Infraestructura | F200: 0 | G200: 0 | H200: 0 | K200: MG | O200: =IF(UPPER(E200)="REQUERIDO", 10, "") ->  | P200: =IF(UPPER(E200)="REQUERIDO", H200, "") -> 
... 392 more rows

Sheet Norma
A1: FILTROS: | B1: Anx: | C1: Requerido: | D1: Servicios / Consultorios: | E1: Tipo: | F1: Posee: | G1: No Posee: | H1: Calif: | I1: Observaciones:
A2: =Menu!$B$3 -> CENTRO ESPECIALIZADO EN DIÁLISIS PERITONEAL
A3: NORMATIVA | O3: NORMAS | W3: TOTAL NORMAS
A4: NORMA TÉCNICA | W4: =SUM(O5:O87) -> 490 | X4: 0 | Y4: 0 | Z4: 0 | AA4: 0 | AB4: 0 | AC4: 150 | AD4: 0
A5: SERVICIO DE ADMISIÓN Y CONSULTA EXTERNA | W5: =SUM(O6:O32) -> 160 | X5: =SUM(P6:P32) -> 0 | Y5: 0 | Z5: 0 | AA5: 0 | AB5: 0 | AC5: 60 | AD5: 0
A6: ADMISIÓN Y ESTADISTICA | W6: =SUM(O7:O12) -> 50 | X6: =SUM(P7:P12) -> 0 | Y6: 0 | Z6: 0 | AA6: 0 | AB6: 0 | AC6: 0 | AD6: 0
A7: MANUAL DE NORMAS DE ADMISION Y ESTADISTICA | B7: =B1 -> Anx: | C7: =C$1 -> Requerido: | D7: Servicios / Consultorios: | E7: Tipo: | F7: Posee: | G7: No Posee: | H7: Calif: | I7: Observaciones: | W7: =SUM(O8:O12) -> 50 | X7: 0 | Y7: 0 | Z7: 0 | AA7: 0 | AB7: 0 | AC7: 0 | AD7: 0
A8: Manual del Sistema Común de Información | C8: 1 | E8: Requerido | F8: 0 | G8: 0 | H8: =IF(AND(F8>=C8,C8>0,F8>=1),10,0) -> 0 | O8: =IF(UPPER(E8)="REQUERIDO", 10, "") -> 10 | P8: =IF(UPPER(E8)="REQUERIDO", H8, "") -> 0
A9: Normas de archivo de historias clínicas | C9: 1 | E9: Requerido | F9: 0 | G9: 0 | H9: =IF(AND(F9>=C9,C9>0,F9>=1),10,0) -> 0 | O9: =IF(UPPER(E9)="REQUERIDO", 10, "") -> 10 | P9: =IF(UPPER(E9)="REQUERIDO", H9, "") -> 0
A10: Reglamento Interno | C10: 1 | E10: Requerido | F10: 0 | G10: 0 | H10: =IF(AND(F10>=C10,C10>0,F10>=1),10,0) -> 0 | O10: =IF(UPPER(E10)="REQUERIDO", 10, "") -> 10 | P10: =IF(UPPER(E10)="REQUERIDO", H10, "") -> 0
A11: Reglamento de Señalización de Seguridad para Establecimientos de Salud | C11: 1 | E11: Requerido | F11: 0 | G11: 0 | H11: =IF(AND(F11>=C11,C11>0,F11>=1),10,0) -> 0 | O11: =IF(UPPER(E11)="REQUERIDO", 10, "") -> 10 | P11: =IF(UPPER(E11)="REQUERIDO", H11, "") -> 0
A12: Registro de Sistema de Información y Análisis Estadístico que Incluya: Consultas, Interconsultas, Procedimientos, Índice de Infecciones, Morbimortalidad, Manejo de Accesos Vasculares, Anemia, Hipertensión Arterial, Enfermedad Ósea, Nutrición, Atención Psicológica, Trabajo Socia y Complicaciones de la hemodiálisis. | C12: 1 | E12: Requerido | F12: 0 | G12: 0 | H12: =IF(AND(F12>=C12,C12>0,F12>=1),10,0) -> 0 | O12: =IF(UPPER(E12)="REQUERIDO", 10, "") -> 10 | P12: =IF(UPPER(E12)="REQUERIDO", H12, "") -> 0
A13: CONSULTA EXTERNA | W13: =SUM(O14:O32) -> 110 | X13: =SUM(P14:P32) -> 0 | Y13: 0 | Z13: 0 | AA13: 0 | AB13: 0 | AC13: 60 | AD13: 0
A14: MANUAL DE NORMAS CONSULTA EXTERNA | B14: =B1 -> Anx: | C14: =C$1 -> Requerido: | D14: Servicios / Consultorios: | E14: Tipo: | F14: Posee: | G14: No Posee: | H14: Calif: | I14: Observaciones: | W14: =SUM(O15:O25) -> 110 | X14: =SUM(P15:P25) -> 0 | Y14: 0 | Z14: 0 | AA14: 0 | AB14: 0 | AC14: 0 | AD14: 0
A15: Manual de procedimientos de diálisis peritoneal | C15: =ROUNDUP(D15/1,0) -> 1 | D15: 1 | E15: Requerido | F15: 0 | G15: 0 | H15: =IF(AND(F15>=C15,C15>0,F15>=1),10,0) -> 0 | O15: =IF(UPPER(E15)="REQUERIDO", 10, "") -> 10 | P15: =IF(UPPER(E15)="REQUERIDO", H15, "") -> 0
A16: Protocolos de atención | C16: 1 | D16: 1 | E16: Requerido | F16: 0 | G16: 0 | H16: 0 | O16: 10 | P16: 0
A17: Normas de Bioseguridad específicas | C17: 1 | D17: 1 | E17: Requerido | F17: 0 | G17: 0 | H17: 0 | O17: 10 | P17: 0
A18: Reglamento de Señalización de Seguridad para Establecimientos de Salud | C18: 1 | D18: 1 | E18: Requerido | F18: 0 | G18: 0 | H18: 0 | O18: 10 | P18: 0
A19: Reglamento Interno | C19: 1 | D19: 1 | E19: Requerido | F19: 0 | G19: 0 | H19: 0 | O19: 10 | P19: 0
A20: Registro de Memorias Técnicas de Equipos para mantenimiento preventivo | C20: 1 | D20: 1 | E20: Requerido | F20: 0 | G20: 0 | H20: 0 | O20: 10 | P20: 0
A21: Manual de Referencia y Contrarreferencia | C21: 1 | D21: 1 | E21: Requerido | F21: 0 | G21: 0 | H21: 0 | O21: 10 | P21: 0
A22: Registro de Evolución de la Atención Médica y Procedimiento Efectuado | C22: 1 | D22: 1 | E22: Requerido | F22: 0 | G22: 0 | H22: 0 | O22: 10 | P22: 0
A23: Registro de Indicadores para la Satisfacción del Usuario | C23: 1 | D23: 1 | E23: Requerido | F23: 0 | G23: 0 | H23: 0 | O23: 10 | P23: 0
A24: Sistema de Evaluación del Personal en el que consten la Periodicidad y la Finalidad | C24: 1 | D24: 1 | E24: Requerido | F24: 0 | G24: 0 | H24: 0 | O24: 10 | P24: 0
A25: Registro del Programa de Capacitación Continua para Actualización del Personal | C25: 1 | D25: 1 | E25: Requerido | F25: 0 | G25: 0 | H25: 0 | O25: 10 | P25: 0
A26: MANUAL DE NORMAS DE ENFERMERIA | B26: =B1 -> Anx: | C26: =C$1 -> Requerido: | D26: Servicios / Consultorios: | E26: Tipo: | F26: Posee: | G26: No Posee: | H26: Calif: | I26: Observaciones: | W26: =SUM(O27:O32) -> 0 | X26: =SUM(P27:P32) -> 0 | Y26: 0 | Z26: 0 | AA26: 0 | AB26: 0 | AC26: 60 | AD26: 0
A27: Manual de procedimientos de Enfermería | C27: =ROUNDUP(D27/1,0) -> 1 | D27: 1 | E27: Condición | F27: 0 | G27: 0 | H27: =IF(AND(F27>=C27,C27>0,F27>=1),10,0) -> 0 | U27: =IF(UPPER(E27)="CONDICIÓN", 10, 0) -> 10 | V27: =IF(UPPER(E27)="CONDICIÓN", H27, "") -> 0
A28: Normas de bioseguridad específica | C28: 1 | D28: 1 | E28: Condición | F28: 0 | G28: 0 | H28: 0 | U28: 10 | V28: 0
A29: Memoria técnica de instalación, reemplazo y funcionamiento de equipos y mobiliario | C29: 1 | D29: 1 | E29: Condición | F29: 0 | G29: 0 | H29: 0 | U29: 10 | V29: 0
A30: Reglamento Interno | C30: 1 | D30: 1 | E30: Condición | F30: 0 | G30: 0 | H30: 0 | U30: 10 | V30: 0
A31: Reglamento de eliminación de desechos peligrosos | C31: 1 | D31: 1 | E31: Condición | F31: 0 | G31: 0 | H31: 0 | U31: 10 | V31: 0
A32: Reglamento de Señalización de Seguridad para Establecimientos de Salud | C32: 1 | D32: 1 | E32: Condición | F32: 0 | G32: 0 | H32: 0 | U32: 10 | V32: 0
A33: SERVICIO DE DIÁLISIS PERITONEAL | W33: =SUM(O34:O54) -> 170 | X33: 0 | Y33: 0 | Z33: 0 | AA33: 0 | AB33: 0 | AC33: 0 | AD33: 0
A34: DIÁLISIS PERITONEAL | W34: =SUM(O35:O46) -> 110 | X34: =SUM(P35:P46) -> 0 | Y34: 0 | Z34: 0 | AA34: 0 | AB34: 0 | AC34: 0 | AD34: 0
A35: MANUAL DE NORMAS DEL ÁREA DE TRATAMIENTO | B35: =B1 -> Anx: | C35: =C$1 -> Requerido: | D35: Servicios / Consultorios: | E35: Tipo: | F35: Posee: | G35: No Posee: | H35: Calif: | I35: Observaciones: | W35: =SUM(O36:O46) -> 110 | X35: =SUM(P36:P46) -> 0 | Y35: 0 | Z35: 0 | AA35: 0 | AB35: 0 | AC35: 0 | AD35: 0
A36: Manual de procedimientos de Diálisis Peritoneal | C36: =ROUNDUP(D36/1,0) -> 1 | D36: 1 | E36: Requerido | F36: 0 | G36: 0 | H36: =IF(AND(F36>=C36,C36>0,F36>=1),10,0) -> 0 | O36: =IF(UPPER(E36)="REQUERIDO", 10, "") -> 10 | P36: =IF(UPPER(E36)="REQUERIDO", H36, "") -> 0
A37: Protocolos de atención | C37: 1 | D37: 1 | E37: Requerido | F37: 0 | G37: 0 | H37: 0 | O37: 10 | P37: 0
A38: Normas de Bioseguridad específicas | C38: 1 | D38: 1 | E38: Requerido | F38: 0 | G38: 0 | H38: 0 | O38: 10 | P38: 0
A39: Reglamento de Señalización de Seguridad para Establecimientos de Salud | C39: 1 | D39: 1 | E39: Requerido | F39: 0 | G39: 0 | H39: 0 | O39: 10 | P39: 0
A40: Reglamento Interno | C40: 1 | D40: 1 | E40: Requerido | F40: 0 | G40: 0 | H40: 0 | O40: 10 | P40: 0
A41: Registro de Memorias Técnicas de Equipos para mantenimiento Preventivo de Máquinas de Hemodiálisis | C41: 1 | D41: 1 | E41: Requerido | F41: 0 | G41: 0 | H41: 0 | O41: 10 | P41: 0
A42: Manual de Referencia y Contrarreferencia | C42: 1 | D42: 1 | E42: Requerido | F42: 0 | G42: 0 | H42: 0 | O42: 10 | P42: 0
A43: Registro de Evolución de la Atención Médica y Procedimiento Efectuado | C43: 1 | D43: 1 | E43: Requerido | F43: 0 | G43: 0 | H43: 0 | O43: 10 | P43: 0
A44: Registro de Indicadores para la Satisfacción del Usuario | C44: 1 | D44: 1 | E44: Requerido | F44: 0 | G44: 0 | H44: 0 | O44: 10 | P44: 0
A45: Sistema de Evaluación del Personal en el que consten la Periodicidad y la Finalidad | C45: 1 | D45: 1 | E45: Requerido | F45: 0 | G45: 0 | H45: 0 | O45: 10 | P45: 0
A46: Registro del Programa de Capacitación Continua para Actualización del Personal | C46: 1 | D46: 1 | E46: Requerido | F46: 0 | G46: 0 | H46: 0 | O46: 10 | P46: 0
A47: ENFERMERÍA | W47: =SUM(O48:O54) -> 60 | X47: =SUM(P48:P54) -> 0 | Y47: 0 | Z47: 0 | AA47: 0 | AB47: 0 | AC47: 0 | AD47: 0
A48: MANUAL DE NORMAS DE ENFERMERIA | B48: =B1 -> Anx: | C48: =C$1 -> Requerido: | D48: Servicios / Consultorios: | E48: Tipo: | F48: Posee: | G48: No Posee: | H48: Calif: | I48: Observaciones: | W48: =SUM(O49:O54) -> 60 | X48: =SUM(P49:P54) -> 0 | Y48: 0 | Z48: 0 | AA48: 0 | AB48: 0 | AC48: 0 | AD48: 0
A49: Manual de procedimientos de Enfermería | C49: =ROUNDUP(D49/1,0) -> 1 | D49: 1 | E49: Requerido | F49: 0 | G49: 0 | H49: =IF(AND(F49>=C49,C49>0,F49>=1),10,0) -> 0 | O49: =IF(UPPER(E49)="REQUERIDO", 10, "") -> 10 | P49: =IF(UPPER(E49)="REQUERIDO", H49, "") -> 0
A50: Normas de bioseguridad específica | C50: 1 | D50: 1 | E50: Requerido | F50: 0 | G50: 0 | H50: 0 | O50: 10 | P50: 0
A51: Memoria técnica de instalación, reemplazo y funcionamiento de equipos y mobiliario | C51: 1 | D51: 1 | E51: Requerido | F51: 0 | G51: 0 | H51: 0 | O51: 10 | P51: 0
A52: Reglamento Interno | C52: 1 | D52: 1 | E52: Requerido | F52: 0 | G52: 0 | H52: 0 | O52: 10 | P52: 0
A53: Reglamento de eliminación de desechos peligrosos | C53: 1 | D53: 1 | E53: Requerido | F53: 0 | G53: 0 | H53: 0 | O53: 10 | P53: 0
A54: Reglamento de Señalización de Seguridad para Establecimientos de Salud | C54: 1 | D54: 1 | E54: Requerido | F54: 0 | G54: 0 | H54: 0 | O54: 10 | P54: 0
A55: SERVICIO DE APOYO | W55: =SUM(O56:O63) -> 60 | X55: =SUM(P56:P63) -> 0 | Y55: 0 | Z55: 0 | AA55: 0 | AB55: 0 | AC55: 0 | AD55: 0
A56: FARMACIA | W56: =SUM(O57:O63) -> 60 | X56: =SUM(P57:P63) -> 0 | Y56: 0 | Z56: 0 | AA56: 0 | AB56: 0 | AC56: 0 | AD56: 0
A57: MANUAL DE NORMAS DE FARMACIA | B57: =B1 -> Anx: | C57: =C$1 -> Requerido: | D57: Servicios / Consultorios: | E57: Tipo: | F57: Posee: | G57: No Posee: | H57: Calif: | I57: Observaciones: | W57: =SUM(O58:O63) -> 60 | X57: =SUM(P58:P63) -> 0 | Y57: 0 | Z57: 0 | AA57: 0 | AB57: 0 | AC57: 0 | AD57: 0
A58: Cuadro Nacional Básico de Medicamentos | C58: 1 | E58: Requerido | F58: 0 | G58: 0 | H58: =IF(AND(F58>=C58,C58>0,F58>=1),10,0) -> 0 | O58: =IF(UPPER(E58)="REQUERIDO", 10, "") -> 10 | P58: =IF(UPPER(E58)="REQUERIDO", H58, "") -> 0
A59: Ley de Medicamentos Genéricos | C59: 1 | E59: Requerido | F59: 0 | G59: 0 | H59: 0 | O59: 10 | P59: 0
A60: Reglamento Interno | C60: 1 | E60: Requerido | F60: 0 | G60: 0 | H60: 0 | O60: 10 | P60: 0
A61: Manual de procedimientos de dispensación y suministro | C61: 1 | E61: Requerido | F61: 0 | G61: 0 | H61: 0 | O61: 10 | P61: 0
A62: Lista actualizada de medicamentos del SUGMI * | C62: 1 | E62: Requerido | F62: 0 | G62: 0 | H62: =IF(AND(F62>=C62,C62>0,F62>=1),10,0) -> 0 | O62: 10 | P62: 0
A63: Reglamento de Señalización de Seguridad para Establecimientos de Salud | C63: 1 | E63: Requerido | F63: 0 | G63: 0 | H63: 0 | O63: 10 | P63: 0
A64: SERVICIO DE ADMINISTRACIÓN | W64: =SUM(O65:O76) -> 100 | X64: =SUM(P65:P76) -> 0 | Y64: 0 | Z64: 0 | AA64: 0 | AB64: 0 | AC64: 0 | AD64: 0
A65: DIRECCIÓN Y GESTIÓN ADMINISTRATIVA | W65: =SUM(O66:O76) -> 100 | X65: =SUM(P66:P76) -> 0 | Y65: 0 | Z65: 0 | AA65: 0 | AB65: 0 | AC65: 0 | AD65: 0
A66: MANUAL DE NORMAS DE DIRECCION Y ANEXOS | B66: =B1 -> Anx: | C66: =C$1 -> Requerido: | D66: Servicios / Consultorios: | E66: Tipo: | F66: Posee: | G66: No Posee: | H66: Calif: | I66: Observaciones: | W66: =SUM(O67:O76) -> 100 | X66: =SUM(P67:P76) -> 0 | Y66: 0 | Z66: 0 | AA66: 0 | AB66: 0 | AC66: 0 | AD66: 0
A67: Estructura organizacional | C67: 1 | E67: Requerido | F67: 0 | G67: 0 | H67: =IF(AND(F67>=C67,C67>0,F67>=1),10,0) -> 0 | O67: =IF(UPPER(E67)="REQUERIDO", 10, "") -> 10 | P67: =IF(UPPER(E67)="REQUERIDO", H67, "") -> 0
A68: Estatutos y requerimientos legales de funcionamiento | C68: 1 | E68: Requerido | F68: 0 | G68: 0 | H68: 0 | O68: 10 | P68: 0
A69: Reglamento Interno | C69: 1 | E69: Requerido | F69: 0 | G69: 0 | H69: 0 | O69: 10 | P69: 0
A70: Plan de emergencia y desastres | C70: 1 | E70: Requerido | F70: 0 | G70: 0 | H70: 0 | O70: 10 | P70: 0
A71: Reglamento de los comités técnicos (según complejidad de la unidad) | C71: 1 | E71: Requerido | F71: 0 | G71: 0 | H71: 0 | O71: 10 | P71: 0
A72: Plan estratégico y operativo* | C72: 1 | E72: Requerido | F72: 0 | G72: 0 | H72: 0 | O72: 10 | P72: 0
A73: Manual de normas epidemiológicas, administrativas, financieras y de recursos humanos** | C73: 1 | E73: Requerido | F73: 0 | G73: 0 | H73: 0 | O73: 10 | P73: 0
A74: Reglamento de Señalización de Seguridad para Establecimientos de Salud | C74: 1 | E74: Requerido | F74: 0 | G74: 0 | H74: 0 | O74: 10 | P74: 0
A75: Reglamento Interno de Funciones del Personal del Centro inscrito en el Ministerio de Relaciones Laborales | C75: 1 | E75: Requerido | F75: 0 | G75: 0 | H75: 0 | O75: 10 | P75: 0
A76: Reglamento Interno de seguridad y Salud Ocupacional | C76: 1 | E76: Requerido | F76: 0 | G76: 0 | H76: 0 | O76: 10 | P76: 0
A77: MANTENIMIENTO | W77: =SUM(O78:O87) -> 0 | X77: =SUM(P78:P87) -> 0 | Y77: 0 | Z77: 0 | AA77: 0 | AB77: 0 | AC77: =SUM(U78:U87) -> 90 | AD77: =SUM(V78:V87) -> 0
A78: MANUAL DE NORMAS DE MANTENIMIENTO | B78: =B1 -> Anx: | C78: =C$1 -> Requerido: | D78: Servicios / Consultorios: | E78: Tipo: | F78: Posee: | G78: No Posee: | H78: Calif: | I78: Observaciones: | W78: =SUM(O79:O87) -> 0 | X78: =SUM(P79:P87) -> 0 | Y78: =SUM(Q79:Q87) -> 0 | Z78: =SUM(R79:R87) -> 0 | AA78: =SUM(S79:S87) -> 0 | AB78: =SUM(T79:T87) -> 0 | AC78: =SUM(U79:U87) -> 90 | AD78: =SUM(V79:V87) -> 0
A79: Reglamento Interno | C79: 1 | E79: Condición | F79: 0 | G79: 0 | H79: =IF(AND(F79>=C79,C79>0,F79>=1),10,0) -> 0 | U79: =IF(UPPER(E79)="CONDICIÓN", 10, "") -> 10 | V79: =IF(UPPER(E79)="CONDICIÓN", H79, "") -> 0
A80: Memoria técnica de mantenimiento de estructura, instalaciones, equipos y mobiliario | C80: 1 | E80: Condición | F80: 0 | G80: 0 | H80: 0 | U80: =IF(UPPER(E80)="CONDICIÓN", 10, "") -> 10 | V80: =IF(UPPER(E80)="CONDICIÓN", H80, "") -> 0
A81: Reglamento de Señalización de Seguridad para Establecimientos de Salud | C81: 1 | E81: Condición | F81: 0 | G81: 0 | H81: 0 | U81: =IF(UPPER(E81)="CONDICIÓN", 10, "") -> 10 | V81: =IF(UPPER(E81)="CONDICIÓN", H81, "") -> 0
A82: Memoria Técnica de Mantenimiento Preventivo y Correctivo de Planta de Tratamiento de Agua | C82: 1 | E82: Condición | F82: 0 | G82: 0 | H82: 0 | U82: 10 | V82: 0
A83: Registro de Evaluación Microbiológica y composición Química del Agua | C83: 1 | E83: Condición | F83: 0 | G83: 0 | H83: 0 | U83: 10 | V83: 0
A84: Registro de Control y Limpieza periódica de los Filtros del Aire Acondicionado | C84: 1 | E84: Condición | F84: 0 | G84: 0 | H84: 0 | U84: 10 | V84: 0
A85: Registro de mantenimientos y recargas de Extintores | C85: 1 | E85: Condición | F85: 0 | G85: 0 | H85: 0 | U85: 10 | V85: 0
A86: Certificado de Inspección y Aprobación por bomberos, autoridad competente, de los sensores de Humo | C86: 1 | E86: Condición | F86: 0 | G86: 0 | H86: 0 | U86: 10 | V86: 0
A87: Registro de Desinfección de Máquinas | C87: 1 | E87: Condición | F87: 0 | G87: 0 | H87: 0 | U87: 10 | V87: 0
A88: TOTALES PARCIALES: | O88: TOTAL GENERAL: | W88: =(+Norma!$W$4) -> 490 | X88: =(+Norma!$X$4) -> 0 | Y88: =(+Norma!$Y$4) -> 0 | Z88: =(+Norma!$Z$4) -> 0 | AA88: =(+Norma!$AA$4) -> 0 | AB88: =(+Norma!$AB$4) -> 0 | AC88: =(+Norma!$AC$4) -> 150 | AD88: =(+Norma!$AD$4) -> 0
A89: NORMAS: | C89: % Obtenido: | D89: % Obtenido: | E89: % Obtenido: | F89: % A Cumplir: | G89: % Final: | O89: NORMA TÉCNICA | W89: =W4*100/W88 -> 100 | X89: =X4*100/W88 -> 0 | Y89: =Y4*100/Y88 ->  | Z89: =Z4*100/Y88 ->  | AA89: =AA4*100/AA88 ->  | AB89: =AB4*100/AA88 ->  | AC89: =AC4*100/AC88 -> 100 | AD89: =AD4*100/AC88 -> 0
A90: =Norma!$O$89 -> NORMA TÉCNICA | C90: =Norma!$X$89*100/100/100 -> 0 | F90: =Norma!$W$89*100/100/100 -> 1 | G90: =IF(Norma!$C$90=Norma!$F$90, "CUMPLE", "NO CUMPLE") -> NO CUMPLE | O90: SERVICIO DE ADMISIÓN Y CONSULTA EXTERNA | W90: =W5*100/W88 -> 32.65306122 | X90: =X5*100/W88 -> 0 | Y90: =Y5*100/Y88 ->  | Z90: =Z5*100/Y88 ->  | AA90: =AA5*100/AA88 ->  | AB90: =AB5*100/AA88 ->  | AC90: =AC5*100/AC88 -> 40 | AD90: =AD5*100/AC88 -> 0
A91: =Norma!$O$90 -> SERVICIO DE ADMISIÓN Y CONSULTA EXTERNA | D91: =Norma!$X$90*100/100/100 -> 0 | F91: =Norma!$W$90*100/100/100 -> 0.3265306122 | G91: =IF(Norma!$D$91=Norma!$F$91, "CUMPLE", "NO CUMPLE") -> NO CUMPLE | O91: ADMISIÓN Y ESTADISTICA | W91: =W6*100/W88 -> 10.20408163 | X91: =X6*100/W88 -> 0 | Y91: =Y6*100/Y88 ->  | Z91: =Z6*100/Y88 ->  | AA91: =AA6*100/AA88 ->  | AB91: =AB6*100/AA88 ->  | AC91: =AC6*100/AC88 -> 0 | AD91: =AD6*100/AC88 -> 0
A92: =Norma!$O$91 -> ADMISIÓN Y ESTADISTICA | E92: =Norma!$X$91*100/100/100 -> 0 | F92: =Norma!$W$91*100/100/100 -> 0.1020408163 | G92: =IF(Norma!$E$92=Norma!$F$92, "CUMPLE", "NO CUMPLE") -> NO CUMPLE | O92: CONSULTA EXTERNA | W92: =W13*100/W88 -> 22.44897959 | X92: =X13*100/W88 -> 0 | Y92: =Y13*100/Y88 ->  | Z92: =Z13*100/Y88 ->  | AA92: =AA13*100/AA88 ->  | AB92: =AB13*100/AA88 ->  | AC92: =AC13*100/AC88 -> 40 | AD92: =AD13*100/AC88 -> 0
A93: =Norma!$O$92 -> CONSULTA EXTERNA | E93: =Norma!$X$92*100/100/100 -> 0 | F93: =Norma!$W$92*100/100/100 -> 0.2244897959 | G93: =IF(Norma!$E$93=Norma!$F$93, "CUMPLE", "NO CUMPLE") -> NO CUMPLE | O93: SERVICIO DE DIÁLISIS PERITONEAL | W93: =W33*100/W88 -> 34.69387755 | X93: =X33*100/W88 -> 0 | Y93: =Y33*100/Y88 ->  | Z93: =Z33*100/Y88 ->  | AA93: =AA33*100/AA88 ->  | AB93: =AB33*100/AA88 ->  | AC93: =AC33*100/AC88 -> 0 | AD93: =AD33*100/AC88 -> 0
A94: =Norma!$O$93 -> SERVICIO DE DIÁLISIS PERITONEAL | D94: =Norma!$X$93*100/100/100 -> 0 | F94: =Norma!$W$93*100/100/100 -> 0.3469387755 | G94: =IF(Norma!$D$94=Norma!$F$94, "CUMPLE", "NO CUMPLE") -> NO CUMPLE | O94: DIÁLISIS PERITONEAL | W94: =W34*100/W88 -> 22.44897959 | X94: =X34*100/W88 -> 0 | Y94: =Y34*100/Y88 ->  | Z94: =Z34*100/Y88 ->  | AA94: =AA34*100/AA88 ->  | AB94: =AB34*100/AA88 ->  | AC94: =AC34*100/AC88 -> 0 | AD94: =AD34*100/AC88 -> 0
A95: =Norma!$O$94 -> DIÁLISIS PERITONEAL | E95: =Norma!$X$94*100/100/100 -> 0 | F95: =Norma!$W$94*100/100/100 -> 0.2244897959 | G95: =IF(Norma!$E$95=Norma!$F$95, "CUMPLE", "NO CUMPLE") -> NO CUMPLE | O95: ENFERMERÍA | W95: =W47*100/W88 -> 12.24489796 | X95: =X47*100/W88 -> 0 | Y95: =Y47*100/Y88 ->  | Z95: =Z47*100/Y88 ->  | AA95: =AA47*100/AA88 ->  | AB95: =AB47*100/AA88 ->  | AC95: =AC47*100/AC88 -> 0 | AD95: =AD47*100/AC88 -> 0
A96: =Norma!$O$95 -> ENFERMERÍA | E96: =Norma!$X$95*100/100/100 -> 0 | F96: =Norma!$W$95*100/100/100 -> 0.1224489796 | G96: =IF(Norma!$E$96=Norma!$F$96, "CUMPLE", "NO CUMPLE") -> NO CUMPLE | O96: SERVICIO DE APOYO | W96: =W55*100/W88 -> 12.24489796 | X96: =X55*100/W88 -> 0 | Y96: =Y55*100/Y88 ->  | Z96: =Z55*100/Y88 ->  | AA96: =AA55*100/AA88 ->  | AB96: =AB55*100/AA88 ->  | AC96: =AC55*100/AC88 -> 0 | AD96: =AD55*100/AC88 -> 0
A97: =Norma!$O$96 -> SERVICIO DE APOYO | D97: =Norma!$X$96*100/100/100 -> 0 | F97: =Norma!$W$96*100/100/100 -> 0.1224489796 | G97: =IF(Norma!$D$97=Norma!$F$97, "CUMPLE", "NO CUMPLE") -> NO CUMPLE | O97: FARMACIA | W97: =W56*100/W88 -> 12.24489796 | X97: =X56*100/W88 -> 0 | Y97: =Y56*100/Y88 ->  | Z97: =Z56*100/Y88 ->  | AA97: =AA56*100/AA88 ->  | AB97: =AB56*100/AA88 ->  | AC97: =AC56*100/AC88 -> 0 | AD97: =AD56*100/AC88 -> 0
A98: =Norma!$O$97 -> FARMACIA | E98: =Norma!$X$97*100/100/100 -> 0 | F98: =Norma!$W$97*100/100/100 -> 0.1224489796 | G98: =IF(Norma!$E$98=Norma!$F$98, "CUMPLE", "NO CUMPLE") -> NO CUMPLE | O98: SERVICIO DE ADMINISTRACIÓN | W98: =W64*100/W88 -> 20.40816327 | X98: =X64*100/W88 -> 0 | Y98: =Y64*100/Y88 ->  | Z98: =Z64*100/Y88 ->  | AA98: =AA64*100/AA88 ->  | AB98: =AB64*100/AA88 ->  | AC98: =AC64*100/AC88 -> 0 | AD98: =AD64*100/AC88 -> 0
A99: =Norma!$O$98 -> SERVICIO DE ADMINISTRACIÓN | D99: =Norma!$X$98*100/100/100 -> 0 | F99: =Norma!$W$98*100/100/100 -> 0.2040816327 | G99: =IF(Norma!$D$99=Norma!$F$99, "CUMPLE", "NO CUMPLE") -> NO CUMPLE | O99: MANTENIMIENTO | W99: =W77*100/W88 -> 0 | X99: =X77*100/W88 -> 0 | Y99: =Y77*100/Y88 ->  | Z99: =Z77*100/Y88 ->  | AA99: =AA77*100/AA88 ->  | AB99: =AB77*100/AA88 ->  | AC99: =AC77*100/AC88 -> 60 | AD99: =AD77*100/AC88 -> 0
A100: =Norma!$O$99 -> MANTENIMIENTO | E100: =Norma!$X$99*100/100/100 -> 0 | F100: =Norma!$W$99*100/100/100 -> 0 | G100: =IF(Norma!$E$100=Norma!$F$100, "CUMPLE", "NO CUMPLE") -> CUMPLE
A101: TOTAL REQUERIDO: | F101: 1 | G101: =SUM(Norma!$C$90 : Norma!$C$100) -> 0
A102: TOTAL OPCIONAL: | F102: 1 | G102: =100/100 -> 1
A103: TOTAL DESEABLE: | F103: 1 | G103: =100/100 -> 1
A104: TOTAL CONDICIÓN: | F104: 1 | G104: =Norma!$AD$88*100/Norma!$AC$88/100 -> 0
A105: TOTALES COMPONENTE:
A106: TOTAL % REQUERIDO: | F106: 0.05000000075 | G106: =(+Norma!$G$101)*5/100 -> 0
A107: TOTAL % OPCIONAL: | F107: 0.05000000075 | G107: =(+Norma!$G$102)*5/100 -> 0.05
A108: TOTAL % DESEABLE: | F108: 0.05000000075 | G108: =(+Norma!$G$103)*5/100 -> 0.05
A109: TOTAL % CONDICIÓN: | F109: 0.05000000075 | G109: =(+Norma!$G$104)*5/100 -> 0

Sheet TalentoHumano
A1: FILTROS: | B1: Anx: | C1: Requerido: | D1: Puestos; Pacientes o Servicios: | E1: Tipo: | F1: Cumple: | G1: No Cumple: | H1: Calif: | I1: Observaciones:
A2: =Menu!$B$3 -> CENTRO ESPECIALIZADO EN DIÁLISIS PERITONEAL
A3: TALENTO HUMANO | O3: ADMINISTRATIVOS | W3: ASISTENCIALES | AE3: TOTAL ADMINISTRATIVOS | AM3: TOTAL ASISTENCIALES
A4: SERVICIO DE DIÁLISIS PERITONEAL | AE4: =SUM(O5:O28) -> 60 | AF4: 0 | AG4: 0 | AH4: 0 | AI4: 0 | AJ4: 0 | AK4: 10 | AL4: 0 | AM4: 60 | AN4: 0 | AO4: 0 | AP4: 0 | AQ4: 0 | AR4: 0 | AS4: 0 | AT4: 0
A5: CONSULTA EXTERNA Y ÁREA DE TRATAMIENTO DE DIÁLISIS PERITONEAL | AE5: =SUM(O6:O11) -> 0 | AF5: 0 | AG5: 0 | AH5: 0 | AI5: 0 | AJ5: 0 | AK5: 0 | AL5: 0 | AM5: 50 | AN5: 0 | AO5: 0 | AP5: 0 | AQ5: 0 | AR5: 0 | AS5: 0 | AT5: 0
A6: DIÁLISIS PERITONEAL | B6: =B1 -> Anx: | C6: =C$1 -> Requerido: | D6: Puestos; Pacientes o Servicios: | E6: Tipo: | F6: Cumple: | G6: No Cumple: | H6: Calif: | I6: Observaciones: | AE6: =SUM(O7:O11) -> 0 | AF6: 0 | AG6: 0 | AH6: 0 | AI6: 0 | AJ6: 0 | AK6: 0 | AL6: 0 | AM6: 50 | AN6: 0 | AO6: 0 | AP6: 0 | AQ6: 0 | AR6: 0 | AS6: 0 | AT6: 0
A7: Médico Tratante especialista en Nefrología o Medicina Interna o Terapia Intensiva con experiencia en formación y manejo a los pacientes en Hemodiálisis( cursos y certificados con el aval de la Sociedad de Nefrología, Diálisis Y Trasplantes y/o Universidades acreditadas, notarizados)(1/50 Pacientes) | C7: =ROUNDUP(D7/12,0) -> 0 | D7: 0 | E7: Requerido | F7: 0 | H7: =IF(AND(F7>=C7,C7>0,F7>=1),10,0) -> 0 | K7: ASISTENCIAL | W7: =IF(UPPER(E7)="REQUERIDO", 10, "") -> 10 | X7: =IF(UPPER(E7)="REQUERIDO", H7, "") -> 0
A8: Enfermera 1/30 Pacientes | C8: =ROUNDUP(D8/6,0) -> 0 | D8: 0 | E8: Requerido | F8: 0 | G8: 0 | H8: =IF(AND(F8>=C8,C8>0,F8>=1),10,0) -> 0 | K8: ASISTENCIAL | W8: 10 | X8: 0
A9: Psicólogo Clínico | C9: 1 | E9: Requerido | F9: 0 | G9: 0 | H9: =IF(AND(F9>=C9,C9>0,F9>=1),10,0) -> 0 | K9: ASISTENCIAL | W9: 10 | X9: 0
A10: Nutricionista | C10: 1 | E10: Requerido | F10: 0 | G10: 0 | H10: 0 | K10: ASISTENCIAL | W10: 10 | X10: 0
A11: Trabajador Social | C11: 1 | E11: Requerido | F11: 0 | G11: 0 | H11: 0 | K11: ASISTENCIAL | W11: 10 | X11: 0
A12: SERVICIOS DE APOYO | AE12: =SUM(O13:O17) -> 20 | AF12: 0 | AG12: 0 | AH12: 0 | AI12: 0 | AJ12: 0 | AK12: 0 | AL12: 0 | AM12: 10 | AN12: 0 | AO12: 0 | AP12: 0 | AQ12: 0 | AR12: 0 | AS12: 0 | AT12: 0
A13: ADMISIÓN Y ESTADISTICA | B13: =B1 -> Anx: | C13: =C$1 -> Requerido: | D13: Puestos; Pacientes o Servicios: | E13: Tipo: | F13: Cumple: | G13: No Cumple: | H13: Calif: | I13: Observaciones: | AE13: =SUM(O14:O14) -> 10 | AF13: 0 | AG13: 0 | AH13: 0 | AI13: 0 | AJ13: 0 | AK13: 0 | AL13: 0 | AM13: 0 | AN13: 0 | AO13: 0 | AP13: 0 | AQ13: 0 | AR13: 0 | AS13: 0 | AT13: 0
A14: Asistente administrativo | C14: 1 | E14: Requerido | F14: 0 | G14: 0 | H14: =IF(AND(F14>=C14,C14>0,F14>=1),10,0) -> 0 | K14: ADMINISTRATIVO | O14: =IF(UPPER(E14)="REQUERIDO", 10, "") -> 10 | P14: =IF(UPPER(E14)="REQUERIDO", H14, "") -> 0
A15: FARMACIA | B15: =B1 -> Anx: | C15: =C$1 -> Requerido: | D15: Puestos; Pacientes o Servicios: | E15: Tipo: | F15: Cumple: | G15: No Cumple: | H15: Calif: | I15: Observaciones: | AE15: =SUM(O16:O17) -> 10 | AF15: 0 | AG15: 0 | AH15: 0 | AI15: 0 | AJ15: 0 | AK15: 0 | AL15: 0 | AM15: 10 | AN15: 0 | AO15: 0 | AP15: 0 | AQ15: 0 | AR15: 0 | AS15: 0 | AT15: 0
A16: Responsable Técnico Químico Farmacéutico o Bioquímico Farmacéutico | C16: 1 | E16: Requerido | F16: 0 | G16: 0 | H16: =IF(AND(F16>=C16,C16>0,F16>=1),10,0) -> 0 | K16: ADMINISTRATIVO | O16: =IF(UPPER(E16)="REQUERIDO", 10, "") -> 10 | P16: =IF(UPPER(E16)="REQUERIDO", H16, "") -> 0
A17: Asistente de Farmacia | C17: 1 | E17: Requerido | F17: 0 | G17: 0 | H17: =IF(AND(F17>=C17,C17>0,F17>=1),10,0) -> 0 | K17: ASISTENCIAL | W17: =IF(UPPER(E17)="REQUERIDO", 10, "") -> 10 | X17: =IF(UPPER(E17)="REQUERIDO", H17, "") -> 0
A18: ADMINISTRACIÓN | AE18: =SUM(O19:O21) -> 20 | AF18: 0 | AG18: 0 | AH18: 0 | AI18: 0 | AJ18: 0 | AK18: 0 | AL18: 0 | AM18: 0 | AN18: 0 | AO18: 0 | AP18: 0 | AQ18: 0 | AR18: 0 | AS18: 0 | AT18: 0
A19: DIRECCIÓN Y GESTIÓN ADMINISTRATIVA | B19: =B1 -> Anx: | C19: =C$1 -> Requerido: | D19: Puestos; Pacientes o Servicios: | E19: Tipo: | F19: Cumple: | G19: No Cumple: | H19: Calif: | I19: Observaciones: | AE19: =SUM(O20:O21) -> 20 | AF19: 0 | AG19: 0 | AH19: 0 | AI19: 0 | AJ19: 0 | AK19: 0 | AL19: 0 | AM19: 0 | AN19: 0 | AO19: 0 | AP19: 0 | AQ19: 0 | AR19: 0 | AS19: 0 | AT19: 0
A20: Director Médico Nefrólogo (Será responsable de área Técnica y Tratamiento de los Pacientes) | C20: 1 | E20: Requerido | F20: 0 | G20: 0 | H20: =IF(AND(F20>=C20,C20>0,F20>=1),10,0) -> 0 | K20: ADMINISTRATIVO | O20: =IF(UPPER(E20)="REQUERIDO", 10, "") -> 10 | P20: =IF(UPPER(E20)="REQUERIDO", H20, "") -> 0
A21: Jefa de Enfermeras ( Licenciada en enfermería) | C21: 1 | E21: Requerido | F21: 0 | G21: 0 | H21: =IF(AND(F21>=C21,C21>0,F21>=1),10,0) -> 0 | K21: ADMINISTRATIVO | O21: =IF(UPPER(E21)="REQUERIDO", 10, "") -> 10 | P21: =IF(UPPER(E21)="REQUERIDO", H21, "") -> 0
A22: SERVICIOS GENERALES | AE22: =SUM(O23:O28) -> 20 | AF22: =SUM(P23:P28) -> 0 | AG22: 0 | AH22: 0 | AI22: =SUM(S23:S28) -> 0 | AJ22: =SUM(T23:T28) -> 0 | AK22: 10 | AL22: =SUM(V23:V28) -> 0 | AM22: =SUM(W23:W28) -> 0 | AN22: 0 | AO22: =SUM(Y23:Y28) -> 0 | AP22: =SUM(Z23:Z28) -> 0 | AQ22: 0 | AR22: =SUM(AB23:AB28) -> 0 | AS22: =SUM(AC23:AC28) -> 0 | AT22: 0
A23: LIMPIEZA | B23: =B1 -> Anx: | C23: =C$1 -> Requerido: | D23: Puestos; Pacientes o Servicios: | E23: Tipo: | F23: Cumple: | G23: No Cumple: | H23: Calif: | I23: Observaciones: | AE23: =SUM(O24:O24) -> 10 | AF23: 0 | AG23: 0 | AH23: 0 | AI23: 0 | AJ23: 0 | AK23: 0 | AL23: 0 | AM23: 0 | AN23: 0 | AO23: 0 | AP23: 0 | AQ23: 0 | AR23: 0 | AS23: 0 | AT23: 0
A24: Auxiliar de Servicios (Limpieza) | C24: 1 | E24: Requerido | F24: 0 | G24: 0 | H24: =IF(AND(F24>=C24,C24>0,F24>=1),10,0) -> 0 | K24: ADMINISTRATIVO | O24: =IF(UPPER(E24)="REQUERIDO", 10, "") -> 10 | P24: =IF(UPPER(E24)="REQUERIDO", H24, "") -> 0
A25: MANTENIMIENTO | B25: =B1 -> Anx: | C25: =C$1 -> Requerido: | D25: Puestos; Pacientes o Servicios: | E25: Tipo: | F25: Cumple: | G25: No Cumple: | H25: Calif: | I25: Observaciones: | AE25: =SUM(O26) -> 0 | AF25: =SUM(P26) -> 0 | AG25: =SUM(Q26) -> 0 | AH25: =SUM(R26) -> 0 | AI25: 0 | AJ25: 0 | AK25: 10 | AL25: 0 | AM25: 0 | AN25: 0 | AO25: 0 | AP25: 0 | AQ25: 0 | AR25: 0 | AS25: 0 | AT25: 0
A26: Técnico de Mantenimiento | C26: 1 | E26: Condición | F26: 0 | G26: 0 | H26: =IF(AND(F26>=C26,C26>0,F26>=1),10,0) -> 0 | K26: ADMINISTRATIVO | U26: =IF(UPPER(E26)="CONDICIÓN", 10, "") -> 10 | V26: =IF(UPPER(E26)="CONDICIÓN", H26, "") -> 0
A27: BODEGA | B27: =B1 -> Anx: | C27: =C$1 -> Requerido: | D27: Puestos; Pacientes o Servicios: | E27: Tipo: | F27: Cumple: | G27: No Cumple: | H27: Calif: | I27: Observaciones: | AE27: =SUM(O28:O28) -> 10 | AF27: 0 | AG27: 0 | AH27: 0 | AI27: 0 | AJ27: 0 | AK27: 0 | AL27: 0 | AM27: 0 | AN27: 0 | AO27: 0 | AP27: 0 | AQ27: 0 | AR27: 0 | AS27: 0 | AT27: 0
A28: Auxiliar de Servicios (Guardalmacén) | C28: 1 | E28: Requerido | F28: 0 | G28: 0 | H28: =IF(AND(F28>=C28,C28>0,F28>=1),10,0) -> 0 | K28: ADMINISTRATIVO | O28: =IF(UPPER(E28)="REQUERIDO", 10, "") -> 10 | P28: =IF(UPPER(E28)="REQUERIDO", H28, "") -> 0
A29: TOTALES PARCIALES: | W29: TOTAL GENERAL: | AE29: =(+TalentoHumano!$AE$4) -> 60 | AF29: =(+TalentoHumano!$AF$4) -> 0 | AG29: =(+TalentoHumano!$AG$4) -> 0 | AH29: =(+TalentoHumano!$AH$4) -> 0 | AI29: =(+TalentoHumano!$AI$4) -> 0 | AJ29: =(+TalentoHumano!$AJ$4) -> 0 | AK29: =(+TalentoHumano!$AK$4) -> 10 | AL29: =(+TalentoHumano!$AL$4) -> 0 | AM29: =(+TalentoHumano!$AM$4) -> 60 | AN29: =(+TalentoHumano!$AN$4) -> 0 | AO29: =(+TalentoHumano!$AO$4) -> 0 | AP29: =(+TalentoHumano!$AP$4) -> 0 | AQ29: =(+TalentoHumano!$AQ$4) -> 0 | AR29: =(+TalentoHumano!$AR$4) -> 0 | AS29: =(+TalentoHumano!$AS$4) -> 0 | AT29: =(+TalentoHumano!$AT$4) -> 0
A30: ADMINISTRATIVOS: | C30: % Obtenido: | D30: % Obtenido: | E30: % Obtenido: | F30: % A Cumplir: | G30: % Final: | W30: SERVICIO DE DIÁLISIS PERITONEAL | AE30: =AE4*100/AE29 -> 100 | AF30: =AF4*100/AE29 -> 0 | AG30: =AG4*100/AG29 ->  | AH30: =AH4*100/AG29 ->  | AI30: =AI4*100/AI29 ->  | AJ30: =AJ4*100/AI29 ->  | AK30: =AK4*100/AK29 -> 100 | AL30: =AL4*100/AK29 -> 0 | AM30: =AM4*100/AM29 -> 100 | AN30: =AN4*100/AM29 -> 0 | AO30: =AO4*100/AO29 ->  | AP30: =AP4*100/AO29 ->  | AQ30: =AQ4*100/AQ29 ->  | AR30: =AR4*100/AQ29 ->  | AS30: =AS4*100/AS29 ->  | AT30: =AT4*100/AS29 -> 
A31: =TalentoHumano!$W$30 -> SERVICIO DE DIÁLISIS PERITONEAL | C31: =TalentoHumano!$AF$30*30/100/100 -> 0 | F31: =TalentoHumano!$AE$30*30/100/100 -> 0.3 | G31: =IF(TalentoHumano!$C$31=TalentoHumano!$F$31, "CUMPLE", "NO CUMPLE") -> NO CUMPLE | W31: CONSULTA EXTERNA Y ÁREA DE TRATAMIENTO DE DIÁLISIS PERITONEAL | AE31: =AE5*100/AE29 -> 0 | AF31: =AF5*100/AE29 -> 0 | AG31: =AG5*100/AG29 ->  | AH31: =AH5*100/AG29 ->  | AI31: =AI5*100/AI29 ->  | AJ31: =AJ5*100/AI29 ->  | AK31: =AK5*100/AK29 -> 0 | AL31: =AL5*100/AK29 -> 0 | AM31: =AM5*100/AM29 -> 83.33333333 | AN31: =AN5*100/AM29 -> 0 | AO31: =AO5*100/AO29 ->  | AP31: =AP5*100/AO29 ->  | AQ31: =AQ5*100/AQ29 ->  | AR31: =AR5*100/AQ29 ->  | AS31: =AS5*100/AS29 ->  | AT31: =AT5*100/AS29 -> 
A32: =TalentoHumano!$W$32 -> SERVICIOS DE APOYO | D32: =TalentoHumano!$AF$32*30/100/100 -> 0 | F32: =TalentoHumano!$AE$32*30/100/100 -> 0.1 | G32: =IF(TalentoHumano!$D$32=TalentoHumano!$F$32, "CUMPLE", "NO CUMPLE") -> NO CUMPLE | W32: SERVICIOS DE APOYO | AE32: =AE12*100/AE29 -> 33.33333333 | AF32: =AF12*100/AE29 -> 0 | AG32: =AG12*100/AG29 ->  | AH32: =AH12*100/AG29 ->  | AI32: =AI12*100/AI29 ->  | AJ32: =AJ12*100/AI29 ->  | AK32: =AK12*100/AK29 -> 0 | AL32: =AL12*100/AK29 -> 0 | AM32: =AM12*100/AM29 -> 16.66666667 | AN32: =AN12*100/AM29 -> 0 | AO32: =AO12*100/AO29 ->  | AP32: =AP12*100/AO29 ->  | AQ32: =AQ12*100/AQ29 ->  | AR32: =AR12*100/AQ29 ->  | AS32: =AS12*100/AS29 ->  | AT32: =AT12*100/AS29 -> 
A33: =TalentoHumano!$W$33 -> ADMINISTRACIÓN | D33: =TalentoHumano!$AF$33*30/100/100 -> 0 | F33: =TalentoHumano!$AE$33*30/100/100 -> 0.1 | G33: =IF(TalentoHumano!$D$33=TalentoHumano!$F$33, "CUMPLE", "NO CUMPLE") -> NO CUMPLE | W33: ADMINISTRACIÓN | AE33: =AE18*100/AE29 -> 33.33333333 | AF33: =AF18*100/AE29 -> 0 | AG33: =AG18*100/AG29 ->  | AH33: =AH18*100/AG29 ->  | AI33: =AI18*100/AI29 ->  | AJ33: =AJ18*100/AI29 ->  | AK33: =AK18*100/AK29 -> 0 | AL33: =AL18*100/AK29 -> 0 | AM33: =AM18*100/AM29 -> 0 | AN33: =AN18*100/AM29 -> 0 | AO33: =AO18*100/AO29 ->  | AP33: =AP18*100/AO29 ->  | AQ33: =AQ18*100/AQ29 ->  | AR33: =AR18*100/AQ29 ->  | AS33: =AS18*100/AS29 ->  | AT33: =AT18*100/AS29 -> 
A34: =TalentoHumano!$W$34 -> SERVICIOS GENERALES | D34: =TalentoHumano!$AF$34*30/100/100 -> 0 | F34: =TalentoHumano!$AE$34*30/100/100 -> 0.1 | G34: =IF(TalentoHumano!$D$34=TalentoHumano!$F$34, "CUMPLE", "NO CUMPLE") -> NO CUMPLE | W34: SERVICIOS GENERALES | AE34: =AE22*100/AE29 -> 33.33333333 | AF34: =AF22*100/AE29 -> 0 | AG34: =AG22*100/AG29 ->  | AH34: =AH22*100/AG29 ->  | AI34: =AI22*100/AI29 ->  | AJ34: =AJ22*100/AI29 ->  | AK34: =AK22*100/AK29 -> 100 | AL34: =AL22*100/AK29 -> 0 | AM34: =AM22*100/AM29 -> 0 | AN34: =AN22*100/AM29 -> 0 | AO34: =AO22*100/AO29 ->  | AP34: =AP22*100/AO29 ->  | AQ34: =AQ22*100/AQ29 ->  | AR34: =AR22*100/AQ29 ->  | AS34: =AS22*100/AS29 ->  | AT34: =AT22*100/AS29 -> 
A35: TOTAL REQUERIDO: | F35: 0.3000000119 | G35: =SUM(TalentoHumano!$C$31 : TalentoHumano!$C$34) -> 0
A36: TOTAL OPCIONAL: | F36: 0.3000000119 | G36: =30/100 -> 0.3
A37: TOTAL DESEABLE: | F37: 0.3000000119 | G37: =30/100 -> 0.3
A38: TOTAL CONDICIÓN: | F38: 0.3000000119 | G38: =TalentoHumano!$AL$29*30/TalentoHumano!$AK$29/100 -> 0
A39: ASISTENCIALES: | C39: % Obtenido: | D39: % Obtenido: | E39: % Obtenido: | F39: % A Cumplir: | G39: % Final:
A40: =TalentoHumano!$W$30 -> SERVICIO DE DIÁLISIS PERITONEAL | C40: =TalentoHumano!$AN$30*70/100/100 -> 0 | F40: =TalentoHumano!$AM$30*70/100/100 -> 0.7 | G40: =IF(TalentoHumano!$C$40=TalentoHumano!$F$40, "CUMPLE", "NO CUMPLE") -> NO CUMPLE
A41: =TalentoHumano!$W$31 -> CONSULTA EXTERNA Y ÁREA DE TRATAMIENTO DE DIÁLISIS PERITONEAL | D41: =TalentoHumano!$AN$31*70/100/100 -> 0 | F41: =TalentoHumano!$AM$31*70/100/100 -> 0.5833333333 | G41: =IF(TalentoHumano!$D$41=TalentoHumano!$F$41, "CUMPLE", "NO CUMPLE") -> NO CUMPLE
A42: =TalentoHumano!$W$32 -> SERVICIOS DE APOYO | D42: =TalentoHumano!$AN$32*70/100/100 -> 0 | F42: =TalentoHumano!$AM$32*70/100/100 -> 0.1166666667 | G42: =IF(TalentoHumano!$D$42=TalentoHumano!$F$42, "CUMPLE", "NO CUMPLE") -> NO CUMPLE
A43: TOTAL REQUERIDO: | F43: 0.6999999881 | G43: =SUM(TalentoHumano!$C$40 : TalentoHumano!$C$42) -> 0
A44: TOTAL OPCIONAL: | F44: 0.6999999881 | G44: =70/100 -> 0.7
A45: TOTAL DESEABLE: | F45: 0.6999999881 | G45: =70/100 -> 0.7
A46: TOTAL CONDICIÓN: | F46: 0.6999999881 | G46: =70/100 -> 0.7
A47: TOTALES COMPONENTE:
A48: TOTAL % REQUERIDO: | F48: 0.349999994 | G48: =(+TalentoHumano!$G$35+TalentoHumano!$G$43)*35/100 -> 0
A49: TOTAL % OPCIONAL: | F49: 0.349999994 | G49: =(+TalentoHumano!$G$36+TalentoHumano!$G$44)*35/100 -> 0.35
A50: TOTAL % DESEABLE: | F50: 0.349999994 | G50: =(+TalentoHumano!$G$37+TalentoHumano!$G$45)*35/100 -> 0.35
A51: TOTAL % CONDICIÓN: | F51: 0.349999994 | G51: =(+TalentoHumano!$G$38+TalentoHumano!$G$46)*35/100 -> 0.245

Sheet Reportes
A1: MATRIZ DE LICENCIAMIENTO:
A2: =Menu!B3 -> CENTRO ESPECIALIZADO EN DIÁLISIS PERITONEAL
A3: ENTIDAD DEL SISTEMA:
A4: NOMBRE UNIDAD OPERATIVA:
A5: CÓDIGO:
A6: REGION: | D6: COSTA
A7: PROVINCIA: | D7: GUAYAS
A8: CANTON: | D8: GUAYAQUIL
A9: PARROQUIA:
A10: ZONA:
A11: DIRECCIÓN:
C12: TELÉFONO:
A13: AREA/DISTRITO:
A14: RESPONSABLE:
A15: CORREO ELECTRÓNICO:
A16: FECHA:
A18: RESULTADOS TOTALES
A19: COMPONENTE: | C19: % A Cumplir | D19: % Requerido | E19: % Opcional | F19: % Deseable | G19: % Condición | H19: RESULTADOS
A20: INFRAESTRUCTURA | C20: =30/100 -> 0.3 | D20: =Infraestructura!$G$286 -> 0 | E20: =Infraestructura!$G$287 -> 0.15 | F20: =Infraestructura!$G$288 -> 0.15 | G20: =Infraestructura!$G$289 -> 0
A21: EQUIPAMIENTO | C21: =30/100 -> 0.3 | D21: =Equipamiento!$G$589 -> 0 | E21: =Equipamiento!$G$590 -> 0.075 | F21: =Equipamiento!$G$591 -> 0.225 | G21: =Equipamiento!$G$592 -> 0.225 | H21: =IF(D24<0.7, "NO LICENCIA", IF(D24<0.85,"LICENCIA CONDICIONADA", IF(D24<=1, "SI LICENCIA", ""))) -> NO LICENCIA
A22: TALENTO HUMANO | C22: =35/100 -> 0.35 | D22: =TalentoHumano!$G$48 -> 0 | E22: =TalentoHumano!$G$49 -> 0.35 | F22: =TalentoHumano!$G$50 -> 0.35 | G22: =TalentoHumano!$G$51 -> 0.245
A23: NORMA TECNICA | C23: =5/100 -> 0.05 | D23: =Norma!$G$106 -> 0 | E23: =Norma!$G$107 -> 0.05 | F23: =Norma!$G$108 -> 0.05 | G23: =Norma!$G$109 -> 0
A24: Total: | C24: =SUM(C20:C23) -> 1 | D24: =SUM(D20:D23) -> 0 | E24: =SUM(E20:E23) -> 0.625 | F24: =SUM(F20:F23) -> 0.775 | G24: =SUM(G20:G23) -> 0.47
